{"text_format":"3","workbook":"xlsx","n_sheets":6,"sheets":["Pricing Annexure","GROUP 1 - LEVEL & PRESSUR EQUIP","GROUP 2 - ACTUATORS & ACCESSORI","GROUP 3 - MISCELLANEOUS EQUIP","GROUP 4 - PLC EQUIPMENT","GROUP 5 - ANALYTICAL EQUIPMENT"],"not_rendered":{"images":8,"external_links":1,"defined_names":8},"read":"whole","date_system":"1900"}

{"sheet":"Pricing Annexure","index":0,"n_rows":888,"n_cols":7,"rows_kept":888,"merged":[[1,3,1,6],[2,3,2,6],[3,3,3,6],[63,1,64,1],[63,3,64,3],[63,4,64,4],[63,5,64,5],[63,6,64,6],[65,1,67,1],[65,3,67,3],[65,4,67,4],[65,5,67,5],[65,6,67,6],[68,1,70,1],[68,3,70,3],[68,4,70,4],[68,5,70,5],[68,6,70,6],[75,1,76,1],[75,3,76,3],[75,4,76,4],[75,5,76,5],[75,6,76,6],[114,1,116,1],[114,3,116,3],[114,4,116,4],[114,5,116,5],[114,6,116,6],[887,2,887,6]]}
[]
[null,null,"BID NUMBER","RW10392309/21"]
[null,null,"BID DESCRIPTION","SUPPLY & DELIVERY OF INSTRUMENTATION AND AUTOMATION EQUIPMENT SPARES"]
[null,null,"BIDDER NAME"]
[]
[]
[null,null,"DELIVERABLES (DESCRIPTION)","QTY (A)","UNIT OF MEASURE","RATE (B)","Total (A x B)"]
[null,null,"Vereeniging"]
[null,null,"VEGA EQUIPMENT"]
[null,1,"VegaPuls31 Radar Level Part No.: RA-222 229",20,"NO",null,{"$f":"F10*D10","v":0}]
[null,2,"VegaPuls C21 Part No.: RA-222 22M",80,"NO",null,{"$f":"F11*D11","v":0}]
[null,3,"VegaPuls64 – Part No.: PS64.RWCORELAXBXCCHXKMXXX (elD: ZC4126959)",20,"NO",null,0]
[null,4,"Vegapuls61 WL Part No.: PSWL61.XXBXCHKAX",10,"NO",null,0]
[null,5,"Vegascan 693 Part No.: SCAN693.XXE",10,"NO",null,0]
[null,6,"VEGASON 61 Model: 61XXAGHKMXX; Part No.: 1326690/001",10,"NO",null,0]
[null,7,"VegaBAR52  0-25Bar Pressure TX Part No.: 1751818/001",10,"NO",null,0]
[null,8,"VegaMET 391  Controller  MET391.XXHXX Part No.: 2053013/001",10,"NO",null,0]
[null,9,"VegaPULSE WL 61 Radar Level 15m Part No.: 2560934/1",10,"NO",null,0]
[null,10,"VegaSON62  ProfibusPA Level Tx 0.4-8m   Part No.: 2051554/001",10,"NO",null,0]
[null,11,"VEGASON62 – SON62.XXAGPKMXX",10,"NO",null,0]
[null,null,"ACTUATORS"]
[null,null,"AUMA ACTUATORS"]
[null,12,"Auma Actuator Profibus Interface Card  Model: AM-E/A-BUS-PBD-STD",30,"NO",null,{"$f":"F23*D23","v":0}]
[null,13,"Auma Actuator Profibus Cards Part No.: Z023.241A/06-03",30,"NO",null,0]
[null,14,"Auma Actuator – Profibus Card Part No.: Z023.241/01",30,"NO",null,0]
[null,15,"Auma Actuator - Optic Fibre Cards Part No.: Z023.241/01-04",30,"NO",null,0]
[null,16,"Auma Actuator – Matic AM Logic Board Part No.: Z013.718D/01",30,"NO",null,0]
[null,17,"Auma Actuator - 24VDC Interface Card Part No.: Z009.636B/03",30,"NO",null,0]
[]
[null,null,"EMG ACTUATORS"]
[null,18,"EMG Actuator - Profibus Cards Part No.: 23435100567",20,"NO",null,{"$f":"F31*D31","v":0}]
[null,19,"EMG Actuator Card DMC-26",20,"NO",null,0]
[]
[null,null,"BURKERT ACTUATORS"]
[null,20,"Burkert Actuators ID",40,"NO",null,{"$f":"F35*D35","v":0}]
[null,21,"Burkert Actuators Complete ID 226463",40,"NO",null,0]
[null,22,"Burkett Solenoid Valves 24VDC Part No.: 00131421 ",40,"NO",null,0]
[null,23,"Burkert Actuator 225195  240V 90 DEG 35Nm ",40,"NO",null,0]
[null,24,"Burkert 6519 H 8.0 G1/4 PN 2-8Bar 24VDC 2W  Moore Solenoid",40,"NO",null,0]
[null,25,"Burket 6519 W 6.0  FLNSCH PN 2-8Bar 24VDC 2W   Moore Solenoid",40,"NO",null,0]
[null,26,"Burkett  Solenoid Diaphragm Valve 6519-0013421",40,"NO",null,0]
[null,27,"Burkett Inline Flowmeters",20,"NO",null,0]
[null,28,"Burkett 6213A10.0 NBR 24VDC Solenoid Valve Part No.: 00125653",40,"NO",null,0]
[null,29,"Burkett Actuator 3003 24VAC/DC",40,"NO",null,0]
[null,30,"Burkett Actuator / Valve 8804 Part No.: 00226462",40,"NO",null,0]
[null,31,"Burkett Pneumatic Valve 24VDC Part No.: 00131421",40,"NO",null,0]
[]
[null,null,"NOAH ACTUATOR"]
[null,32,"Noah Actuator NA-019  220V Actuator",3,"NO",null,{"$f":"F49*D49","v":0}]
[null,33,"Noah Actuator SA005L  220V Actuator",3,"NO",null,0]
[]
[null,null,"PRESSURE TRANSMITTER"]
[null,null,"WIKA"]
[null,34,"Wika Pressure Transmitters & Pressure Gauge C/W Chemical Seal Range: 0-10Bar",30,"NO",null,{"$f":"F54*D54","v":0}]
[null,35,"Wika Pressure Transmitters LS-10 Part No.: 14067747",20,"NO",null,0]
[null,36,"Pressure Gauge C/W Chemical Seal Range: 0 – 1600kPa Dial Size: 100mm Stainless Steel inner Chemical Seal - Teflon Seal (Chlorine) ½” Entry",20,"NO",null,0]
[null,37,"Manocont Movement Pressure Gauge, All Stainless Steel, ½” BSP Bottom Connection. Range: 0-1000kPa, Fitted To 316L T-Piece, Complete With Transmitter & XWD6001 Chemical Seal, PTFE Coating Of Wetted Parts, For Chlorine Application – Including PTFE Protection Foil For Diaphragm",30,"NO",null,0]
[null,38,"Ifm Pressure Transducer PA3023 PA-025-RBR14_A-ZVG",10,"NO",null,0]
[null,39,"Ifm Pressure Switch 10 bar Part No.: 7007",10,"NO",null,0]
[null,40,"Ifm Pressure Switch 25 bar PA3024",10,"NO",null,0]
[null,41,"Instrotech 900 Transmitter 1707729",10,"NO",null,0]
[null,42,"Genspec GS4200 Pressure Transmitter 0-16Bar",20,"NO",null,0]
[null,null,"PEPPERL & FUCHS"]
[null,43,null,100,"NO",null,{"$f":"F64*D64","v":0}]
[]
[null,44,null,100,"NO",null,0]
[]
[]
[null,45,null,100,"NO",null,0]
[]
[]
[null,46,"Switch-Tek Mini Float Switch PVDF Part No.: LH25-5201",20,"NO",null,{"$f":"F72*D72","v":0}]
[null,47,"DPM temperature controller 4003 1303793",15,"NO",null,0]
[null,48,"ERO Electronic Controller Model: PKC 611252300",15,"NO",null,0]
[null,49,"RTD PT100 6mm x 210mm",30,"NO",null,0]
[null,50,null,30,null,null,0]
[]
[null,51,"Swift RTD SHE 62841 316/SS/FAB/150mm",30,"NO",null,{"$f":"F78*D78","v":0}]
[null,52,"2 way solenoid valve 2W-025-08",30,"NO",null,0]
[null,53,"Tecfluid SC250 Flow Switch Part No.: LOM09ATEX2087X",15,"NO",null,0]
[null,54,"Tecfluid ADI15/BD Flow Switch",15,"NO",null,0]
[null,55,"IFM PA3023  Pressure sensor  0-150Bar PA-025-RBR14-A-ZVG/US//V",15,"NO",null,0]
[null,56,"IFM PN7007  Pressure sensor  0-10Bar                                                      ",10,"NO",null,0]
[null,57,"Krohne Carbon Dioxide Flow meter Part No.: 011081744.001",2,"NO",null,0]
[null,58,"Afriso RTD 0380-14",10,"NO",null,0]
[null,59,"Idec Relay Type RR2P-U 26340",3,"NO",null,0]
[null,60,"Pressure Gauge -100 – 300kpa ½” 049529 PBBF105504.WB5BC01",10,"NO",null,0]
[null,61,"Pressure Gauge 0-1600kpa ½” PBBF10SS04WC3HC01",10,"NO",null,0]
[null,62,"Pressure Gauge C/W Chemical Seal -100 – 300 kpa",10,"NO",null,0]
[null,63,"Pressure Gauge C/W Chemical Seal 0 – 4000 kpa",10,"NO",null,0]
[null,64,"Posiflex Positioner Type 368.00.164",10,"NO",null,0]
[null,65,"SSD Rapier  510-300-5-0-310.0.0.0.00     Lime Plant Vibration drives",10,"NO",null,0]
[null,66,"Unite Electric Chemical Sealed  Pressure Switch Part No.: H100-702",10,"NO",null,0]
[null,67,"Kinetrol Actuators GU9-9NU Type 074-100",15,"NO",null,0]
[null,68,"Kinetrol Actuator Type 074-104 ISON",15,"NO",null,0]
[null,69,"EL-O-MATIC F20 PosiFlex  Electro/Pneumatic Positioner     368.00.164 ",10,"NO",null,0]
[]
[null,null,"Monitran Vibration Equipment"]
[null,70,"Monitran Vibration Sensor MTN-1185M8 Part No.: MONMTN1185-006",15,"NO",null,{"$f":"F99*D99","v":0}]
[null,71,"Monitran Vibration Sensor Cables 5m Part No.: MONMTNCA137-001",15,"NO",null,0]
[null,null,"Barksdale Equipment",{"$nulls":3}," R-   "]
[null,72,"Barksdale Pressure Transmitter 5W2000 (10-15Bar) Part No.: 0428-127",20,"NO"]
[null,73,"Barksdale Flow Switch UQS7-170 Part No.: 0728-017",20,"NO",null,0]
[null,74,"Barksdale Pressure sensor  0-15Bar Part No.: 0428-127",20,"NO",null,0]
[null,null,"SIEMENS"]
[null,75,"Siemens LOGO! Power Part No.: 6EP1331-ISH03   Input: 220VAC  Output: 24VDC 1.3A",15,"NO",null,0]
[null,76,"Siemens SITRANS P Pressure Transmitter Profibus PA 0 - 100Bar  Part No.: MF4034-1EA00-1AB7-Z",10,"NO",null,0]
[null,77,"Siemens SITRANS P Pressure Transmitter Profibus PA 0 - 16Bar  Part No.: MF4033-1DA00-1AB6-Z",10,"NO",null,0]
[null,78,"Siemens SITRANS T3K   PT100 - PA Converter  Part No.: 7NG3213-0NN00",10,"NO",null,0]
[null,79,"Siemens SITRANS TH400 PT100 - PA Converter  Part No.: 7NG3214-0NN00",10,"NO",null,0]
[null,80,"Siemens UXA-96285 230V Potentiometer ",10,"NO",null,0]
[null,81,"Siemens Pressure Transmitter Sitrans P 7MF034-1EA00-1AB7-2",10,"NO",null,0]
[null,82,"Siemens Pointek CIS 200 flow switch UA0089",10,"NO",null,0]
[null,null,"GRUNDFOS (Chlorine System)"]
[null,83,"Grundfos Vacuum Regulator Maintenance Kits Part No.: 96688766",10,"NO",null,0]
[null,null,"CL2/148/120Kg/H/FH"]
[null,null,"553-1084"]
[null,84,"Grundfos Regulators Maintenance Kits Part No.: 96688767",10,"NO",null,{"$f":"F118*D118","v":0}]
[null,85,"Grundfos Chlorinator Rotameter Part No.: 96680945",10,"NO",null,0]
[null,86,"Grundfos Differential Pressure Regulator Part No.: 96708603",10,"NO",null,0]
[null,87,"Grundfos Dosing Pump Model No.: DDI 6010AR PVC/V/GS-31B16F",10,"NO",null,0]
[null,88,"Grundfos Chlorine Leak Detectors Sensors 553-1011 Part No.: 91835823",100,"NO",null,0]
[null,89,"Grundfos Differential Regulator Part No.: 96708604",10,"NO",null,0]
[null,90,"Grundfos CONEX  DIS-G-P-CCA-X-W-G Chlorine Detector Type 307 Part No.:  96734178                           ",10,"NO",null,0]
[null,91,"Grundfos VGS-148 Chlorine Pressure Regulator Part No.: 96681286                                    ",10,"NO",null,0]
[null,92,"Grundfos Vacuum Regulator and attachments VGS148-120 Part No.:96681286",10,"NO",null,0]
[null,93,"Grundfos Smart Digital XL AR-PVC/V/C-F-31U3FG",10,"NO",null,0]
[null,94,"Grundfos Dosing Pump Maintenance Kit Part No.: 96688971",10,"NO",null,0]
[null,95,"Grundfos Dosing Pump DDI 150-4APF-PVC-L/V/G/-31B2B2F Part No.: 96717300",10,"NO",null,0]
[null,96,"Grundfos Dosing Pump Pressure Switch DDI 150-4PVC/FM Part No.: 96688971",10,"NO",null,0]
[null,97,"Grundfos Vacuum Pressure Gauge Part No.: 96680904",10,"NO",null,0]
[null,98,"Grundfos Vacuum Pressure Gauge Range: -10 – 0 Part No.: 96708738",10,"NO",null,0]
[null,99,"Grundfos Chlorinator GS145 Selector Switch",10,"NO",null,0]
[null,null,"ENDRESS & HAUSER"]
[null,100,"Endress & Hauser Prosonic FDU Part No.: 80-RG2A",10,"NO",null,0]
[null,101,"Endress & Hauser FMU 90 Cover P3+Display Field housing PC Part No.: 52025699 Commodity Code: 39269097",10,"NO",null,0]
[null,102,"Endress & Hauser Level Transmitter Prosonic S FMU90 Part No.: FMU 90-R21CA213AA1A",10,"NO",null,0]
[null,103,"Endress & Hauser FDU91 Prosonic S Part No.: FDU91-RG2AA",10,"NO",null,0]
[null,104,"Endress & Hauser iTemp  PT100 - PA Converter  Part No.: TMT84-1009/101",10,"NO",null,0]
[null,105,"Endress & Hauser Prosonic T FMU Part No.: FMU 230E-AA31",10,"NO",null,0]
[null,106,"Endress & Hauser Cerabar s TX PMP71-AND1U11GAAA",10,"NO",null,0]
[null,null,"WALLACE & TIERNAN"]
[null,107,"Wallace+Tiernan Sensor; Part No.: UXA 86376 (0-10ppm)",20,"NO",null,0]
[null,108,"Wallace+Tiernan Vacuum Switch; Part No.: AAB 6291-40Kg",10,"NO",null,0]
[null,109,"Wallace+Tiernan Rotameter; Part No.: AAB 2623-40Kg",10,"NO",null,0]
[null,110,"Wallace+Tiernan Clamping Screw; Part No.: W3T169846",10,"NO",null,0]
[null,111,"Wallace+Tiernan GSKT Seal; Part No.: W2T376757",10,"NO",null,0]
[null,112,"Wallace+Tiernan Shaft Seal V10K; Part No.: W2T635517",10,"NO",null,0]
[null,113,"Wallace+Tiernan Holder V-Notch; Part No.: W2T12072",10,"NO",null,0]
[null,114,"Wallace+Tiernan GSKT Seal; Part No.: W2T12130",10,"NO",null,0]
[null,115,"Wallace+Tiernan V-Notch Plug; Part No.: W3T171244",10,"NO",null,0]
[null,116,"Wallace+Tiernan FTG ORFC; Part No.: W2T12149",10,"NO",null,0]
[null,117,"Wallace+Tiernan Stem Plug; Part No.: W2T19250",10,"NO",null,0]
[null,118,"Wallace+Tiernan Vacuum Regulator; Part No.: W3T357496",10,"NO",null,0]
[null,119,"Wallace+Tiernan Heater; Part No.: W2T11756 ",10,"NO",null,0]
[null,120,"Wallace+Tiernan AAA 8167 GMS (4-20) Part No.: 231240/18",10,"NO",null,0]
[null,null,"ANALYSERS"]
[null,121,"HACH SC200 Controllers Part No.: LXV404.99.00502",20,"NO",null,0]
[null,122,"HACH SC200 General purpose analyser Part No.: LXV404.99.00552",80,"NO",null,0]
[null,123,"HACH SC1000 Turbidity Meter; Part No.: LXV 445.99.10112",40,"NO",null,0]
[null,124,"HACH SC1000 Turbidity Meter; Part No.: LXV400.99.1E082",20,"NO",null,0]
[null,125,"HACH SC1000 Display; Part No.: LXV 402.99.00002",20,"NO",null,0]
[null,126,"HACH UltraTurb TU5300 Part No.: LXV445.99.10112",80,"NO",null,0]
[null,127,"HACH pH Probe Part No.: DPD1R1",40,"NO",null,0]
[null,128,"HACH Lamp Assembly 1720D/E Part No.: 1895000",20,"NO",null,0]
[null,129,"HACH Photocell Assembly 1720D Replacement Kit Part No.: 5218000",20,"NO",null,0]
[null,130,"HACH Circuit Board Assembly 1720E with Detector Part No.: 6012000",20,"NO",null,0]
[null,131,"HACH Turb Solution 4000NTU 1000ml Part No.:",10,"NO",null,0]
[null,132,"HACH Chlorine Analyzer CL17 Maintenance Kits Part No.: 5444300",20,"NO",null,0]
[null,133,"HACH SpecCheck Color STD DPD Part No.: 28933-00",100,"NO",null,0]
[null,134,"HACH Chlorine Analyzer CL-17 Reagents Part No.: 2556900",100,"NO",null,0]
[null,135,"HACH Chlorine Analyzer CL 17; Part No.: 5440001",15,"NO",null,0]
[null,null,"SWAN"]
[null,136,null,10,"NO",null,0]
[null,137,"Swan pH Probes Part No.: A-87.120.200",30,"NO",null,0]
[null,138,"Swan Shurecon P  Conductivity Probe  Part No.: A-87.342.110",30,"NO",null,0]
[null,139,"Swan Swansensor Cable Sensor Cable and Screws  Part No.: A-88.131.120",30,"NO",null,0]
[null,140,"Swan Swansensor PT 1000  Temperature probe Part No.: A-87.030.200",30,"NO",null,0]
[null,141,"Swan Solicon4 AMI-2     Part No.:23.421.200     100-240VAC",10,"NO",null,0]
[null,142,"Swan  Flow Cell M-Flow 10-3PG   Part No.:4-83.416.330",20,"NO",null,0]
[null,null,"YOKOGAWA"]
[null,143,"Yokogawa SC21C-AGP26  Combined pH Sensor non flow heavy duty",20,"NO",null,0]
[null,null,"AUTOMATION SPARES(HMI &SCADA)"]
[null,null,"ALLEN BRADLEY"]
[null,144,"AB 1606-XL 120DR   5A Power supply",6,"NO",null,{"$f":"F185*D185","v":0}]
[null,145,"AB 1756-DNB D  Devicenet Communication module Part No.: PN-36089                                      ",4,"NO",null,0]
[null,146,"AB 1794-ADN B Devicenet Flex IO 24V adapter Part No.: PN-90463                                    ",4,"NO",null,0]
[null,147,"AB Logix5000  Battery assembly  Part No.:1756-BA2",6,"NO",null,0]
[null,148,"AB 24 Digital input cards for Controllogix PLC",12,"NO",null,0]
[null,149,"AB 2-20 mA Analog input cards Controllogix PLC",5,"NO",null,0]
[null,150,"AB 24V DC Digital Output cards Controllogix PLC",12,"NO",null,0]
[]
[null,null,"BECKHOFF HMI"]
[null,151,"BeckHoff C9900-U330 HMI BACKUP POWER SUPPLY",70,"NO",null,{"$f":"F194*D194","v":0}]
[null,152,"Beckhoff C9900-U33  HMI   UPS 24V 120m ohms                                                  ",70,"NO",null,0]
[null,153,"Beckhoff CP2219-0010 HMI 19'PCT v04  2.5\"320GB SATA (The exact type to be determined after the design of Opstats project as the HMI type may change)",20,"NO",null,0]
[null,154,"Beckhoff 19’’ Touch screen",60,"NO",null,0]
[null,155,"Beckhoff  industrial CPU for InTouch 2017 Run time (The exact type to be determined after the design of Opstats project as the HMI type may change)",60,"NO",null,0]
[]
[null,null,"PEPPERL & FUCHS"]
[null,156,"Pepperl and Fuchs Profibus PA Part No.: KLD2-PL-1PA",30,"NO",null,{"$f":"F201*D201","v":0}]
[null,157,"Pepperl+Fuchs HD2-FBPS-1.25.360 Fieldbus power supply Part No.: 189516",30,"NO",null,0]
[null,158,"Pepperl+Fuchs KFD2-BR-1.PA.1500 Profibus PA to DP converter Part No.:  277830",15,"NO",null,0]
[null,159,"Pepperl+Fuchs MB-FG-GTR1 FieldConnex   Part No.: 276874",30,"NO",null,0]
[null,160,"Pepperl+Fuchs NBB20-U1-UU Proximity switch  Part No.: 238884",15,"NO",null,0]
[null,161,"Pepperl+Fuchs TMT181L  PT100 - PA Converter Part No.: 206518",50,"NO",null,0]
[null,162,"Peppler+Fuchs Varikont NCN20+U1+U",10,"NO",null,0]
[null,null,"MISCELLANEOUS ACCESSORIES"]
[null,163,"Hirschman OZD Profi 12M G12 Fibre Optic Module Profibus",20,"NO",null,0]
[null,164,"Fiber Optic Patch Leads (1m Long) Part No.: SC-TO-ST",60,"NO",null,0]
[null,165,"Fiber Optic Patch Leads (1m Long) Part No.: SC-TO-SC",60,"NO",null,0]
[null,166,"Ethernet Cable CAT6 Armored Part No.: CAT6",1000,"meters",null,0]
[null,167,"Prosoft 5204-DFNT-PDPMV1   ProLinx Profibus DPV1 Master",2,"NO",null,0]
[null,168,"Prosoft PTQ-PDPMV1  - (To be replaced by the Schneider  PRM module)",30,"NO",null,0]
[null,169,"Calog 9000S  Universal Programable Transmitter ",2,"NO",null,0]
[null,null,"WEIDMULLER EQUIPMENT"]
[null,170,"Weidmuller FBConnector DP 1 way        Part No.: 8564350000",15,"NO",null,0]
[null,171,"Weidmuller FBConnector PA 8 way        Part No.: 8564300000",15,"NO",null,0]
[null,172,"Weidmuller POS-4P M12 M20 300mm   Part No.: 8425940000",20,"NO",null,0]
[null,173,"Weidmuller FBCon PA CG 8Way Limiter Part No.: 8714230000",15,"NO",null,0]
[null,174,null,40,"NO",null,0]
[null,175,null,25,"NO",null,0]
[null,null,"SCHNEIDER ELECTRIC PLC EQUIPMENT"]
[null,176,"Schneider Electric PLC Processor Module M340 Part No.: BMXP 342020",10,"NO",null,0]
[null,177,"Schneider Electric PLC Processor Module M580 Part No.: BMEP 583040",15,"NO",null,0]
[null,178,"Momentum I/O Base 8 Channel Analog Input Module Part No.: 170AA103000",6,"NO",null,0]
[null,179,"Momentum Top Head (Unity CPU) Part No.: 171CBU98090",7,"NO",null,0]
[null,180,"Schneider Electric MBX NOM 0200 Modbus Model 2 PLC Card RS 485 / 232 Port",18,"NO",null,0]
[null,181,"Schneider Electric M580 CPU, Part No.: BME P58 2020",10,"NO",null,0]
[null,182,"Schneider Electric M580 PLC Rack, Part No.: BME XBP 0600",12,"NO",null,0]
[null,183,"Schneider Electric M580 PLC Power Supply, Part No.: BMX CPS 3500",25,"NO",null,0]
[null,184,"Schneider Electric M580 PLC Network Module, Part No.: BME NOC 0311.3",30,"NO",null,0]
[null,185,"Schneider Electric M580 PLC 24VDC Digital Input Module, Part No.: BMX DDI 1602",80,"NO",null,0]
[null,186,"Schneider Electric  M580 24V Digital Output module",50,"NO",null,0]
[null,187,"Schneider Electric M580 4-20mA Analog input module",30,"NO",null,0]
[null,188,"Schneider Electric M580 RTD/Thermocouple module",25,"NO",null,0]
[null,189,"Schneider Electric M580 220V ac Digital Input module",30,"NO",null,0]
[null,190,"Schneider Electric M580 220V ac Digital output module",20,"NO",null,0]
[null,191,"Schneider Electric  M580 Relay output module",30,"NO",null,0]
[null,192,"Schneider Electric M580 Ethernet communication module",25,"NO",null,0]
[null,193,"Profibus PRM Module, Part No.: TCSEGPA23F14F",20,"NO",null,0]
[null,194,"Power Supply 24VDC, Part No.: ABL8RPS24100",20,"NO",null,0]
[null,195,"Modicon Momentum 170 AA0 92100 8CH AN OUT",3,"NO",null,0]
[null,196,"Modicon Momentum 170 AAI 14000 16CH AN IN",3,"NO",null,0]
[null,197,"Modicon Momentum 170 ADI 34000 16CH 24V IN",4,"NO",null,0]
[null,198,"Modicon Momentum 170 ADI 74050 16CH 230VAC IN",4,"NO",null,0]
[null,199,"Modicon Momentum 170 INT 711001Interbus comms adapter",3,"NO",null,0]
[null,200,"Modicon Momentum 170 PNT11020 Comms adapter MB+ single port",4,"NO",null,0]
[null,201,"Schneider BMEP583040 M580 processor level 3",20,"NO",null,0]
[null,202,"Schneider BMXAMI0410   Analog In 4 ch Isolated high speed",20,"NO",null,0]
[null,203,"Schneider BMXNOM0200 2 RS-485/232 port module",25,"NO",null,0]
[null,204,"Schneider BMXP342020   CPU340-20 Modbus Ethernet",20,"NO",null,0]
[null,205,"Schneider EGX100MG  Ethernet Gateway",15,"NO",null,0]
[null,206,"Schneider STBACO0220K  Analog C OUT 2ch 16Bit",15,"NO",null,0]
[null,207,"Schneider STBNDP2212 Profibus DP NIM",15,"NO",null,0]
[]
[null,null,"ZUIKERBOSCH INSTRUMENTATION"]
[null,208,"Vector Inverter SAFWO80073B2024E2S, #621394",5,"NO",null,{"$f":"F258*D258","v":0}]
[null,209,"Drivers CIMR-AC4A0072AAA, JOO8YB603310010",5,"NO",null,0]
[null,210,"PA Process Automation Unit Pro, SBQ-82O/Bin Weight, MO 09121",4,"NO",null,0]
[null,211,"IO Link Master, IFM Electronic 45128, 0001930116",3,"NO",null,0]
[null,212,"IO Link Master Cable U;250V AC/300V DC, E91664",3,"NO",null,0]
[null,213,"IO Link Electronic   E 11504, 34191605043",3,"NO",null,0]
[null,214,"Burket flow line switches, IP 66 BP n120308/048, 225192",5,"NO",null,0]
[null,215,"Filter Water Traps, MS12-LFR/LR/LWS, MS12-LF(M)/LF",10,"NO",null,0]
[null,216,"Sensor for Chlorine, A-ULTX-SENS-28-0-0, A16-400444916-10-005",5,"NO",null,0]
[null,217,"Bridges Spring Coupling, XCC-RAR1010, 093570",10,"NO",null,0]
[null,218,"Water Traps, LF1/4-D-Mini-A, Malt no 159617",10,"NO",null,0]
[null,219,"Phoenix Contact Light Arrestors , Art-NR 2792141",30,"NO",null,0]
[null,220,"Relay 24V TRP3122",15,"NO",null,0]
[null,221,"Surge Arrestors Cat No 900600, SABS 171-1986",30,"NO",null,0]
[null,222,"Relays Bazz With 11pins, 10A 250V, 0467H",10,"NO",null,0]
[null,223,"IFM Electronic flow monitor, SID10ADBFKOW/LS, 45128",5,"NO",null,0]
[null,224,"IFM Electronic flow monitor, SID10ADBFPKG/US, 100-IPF",5,"NO",null,0]
[null,225,"Burket, TCR-MODUL CROUSERIAL, 83.161.301 W2",5,"NO",null,0]
[null,226,"Omron P-35, 28Y5",5,"NO",null,0]
[null,227,"Encoders for Bridges, IFM Electronic gmbh, E60203",10,"NO",null,0]
[null,228,"Metrix Seismic Vibration Transmitter, STS484E-121-020-00, 9140151",10,"NO",null,0]
[null,229,"Telemecanique Nautilus, XMLB020A2S11, ENC Type 4x12 15A, 1LO842",4,"NO",null,0]
[null,230,"Phoenix Contact, MCR-SL-1CCP-1/1-00-4Kv, 28 14 841",5,"NO",null,0]
[null,231,"Pressure Gauge, 2,5(63mm)x ¼ BSP, 0-1000kPa black",20,"NO",null,0]
[null,232,"Burket flow , 12-30 VD4-20Ma, 4304, 0044406",7,"NO",null,0]
[null,233,"IFM proximity switch, Electronic D5128, 15mm   20…250V AC/DC, 45…65Hz   350Ma AC, 100 Ma DC , IP 67110012, 11A ",20,"NO",null,0]
[null,234,"IFM proximity switch electronic, D45127, 30…250V AC, 47…63 Hz, 250ma AC, KN 004",20,"NO",null,0]
[null,235,"IFM proximity switch D45127, 600mm, 20…250V AC/DC, 45…65Hz, 180ma AC/DC, 0G0034 0GTHB0A",20,"NO",null,0]
[null,236,"Pepperl+fuchs Proximity switch, EN 50008- A13 , 10-3V, 150ma, Part no:85358 NBB4-12 GM , 50-E2",20,"NO",null,0]
[null,237,"Auma ma Cart, Part no:3838501, Serial no:9SC-10519",10,"NO",null,0]
[null,238,"LG circuit breaker, BKN C16 , 400V IEC 60898, GB 10963, R050320 C16",2,"NO",null,0]
[null,239,"Merlin Gerin, Multi 9 , C45, 5A type 2, 380 V 5Ka , 45205",2,"NO",null,0]
[null,240,"Prrosonic level sensor, 4 bar/58psi (at20 ~C/ 68~F), -40~C (-40~F), 80~C (176~F)",30,"NO",null,0]
[null,242,"Burket Timer , 060638L, ROHS , W4XLP",30,"NO",null,0]
[null,243,"Vega level sensor , -20…+80*C, Type: SW 72, 40 KHz, 10367897, Serial no:10343969",20,"NO",null,0]
[null,258,"Milltronics high temperature transducer, ST-25HT, Serial no:2419 ",10,"NO",null,0]
[null,259,"EMA Honeywell pressure switch, 0.5-6 bar max , Druck 16 bar, DCM 6",5,"NO",null,0]
[null,260,"Endress and Hau Serial ma Cart, Lot 23111207",5,"NO",null,0]
[null,261,"Siemens positioner , 9-32V, 5W: 5.00.04, 1.4…7bar, -30…+80*C, Serial  No: N1D6247545670",8,"NO",null,0]
[null,262,"Pratley Cable boxes , 2 way, 56206",15,"NO",null,0]
[null,263,"Siemens mag flow display, 24V AC/DC, 50/60 Hz 10W, IP 67/ NEMA 6, -20*C TO +60*C Serial no:N1D7125601",5,"NO",null,0]
[null,264,"Yokogawa Display , Supply 24V AC/DC, 50/60 Hz, S5J907816",5,"NO",null,0]
[null,265,"Ultrasonic flow transmitter, Input 110-220 V, Output 24V DC",5,"NO",null,0]
[null,266,"Fuji ultrasonic flow meter, Type:flw510Y2YYY1, Serial no: A9B6552T",5,"NO",null,0]
[null,267,"Endress and hau Serial Display, 5.6V, 1Ma, Order code FHX 40-A5A Serial no:9C00C001064",5,"NO",null,0]
[null,268,"Khrone Altomermeter, 100-230 V AC, 50-60 Hz, 22V, Serial no:A12P05695",5,"NO",null,0]
[null,269,"Magflow with positioner, 100 (4inch), Lining: Ebonite, Sensor material: ASTMA 105 Electrodes: Hastelloy c276/24819, 16bar/232psi -10*C, Input 60v max 0.125max Order no:7ME65803TC142AA1",5,"NO",null,0]
[null,270,"Copper tubing, 6mm, 8mm, 10mm",50,"Meters",null,0]
[null,271,"Ifm Electronic, D-45127 Essen 20-30v",5,"NO",null,0]
[null,272,"Flow moun Ltd Harrogate, Flow indicator",5,"NO",null,0]
[null,273,"Seimens Transmitter for differential pressure, Rang 16mbar-16mbar",10,"NO",null,0]
[null,274,"Gokogawa Dp Transmitter , Model EX530A",10,"NO",null,0]
[null,275,"Rotork Vales milliamp card, Rotork 48083-02, 1151487273",10,"NO",null,0]
[null,276,"Fine Tek, TCL 0-24v K200C, Output 4-20ma ",10,"NO",null,0]
[null,277,"Wika Pressure gauge alarm contact, Type cont 821.2, ",10,"NO",null,0]
[null,278,"Endress+ Hau Serial Corabar M, Oder no PMC51-37AO/O, Oder Code PMC51-A21JAPGCXJA",5,"NO",null,0]
[null,279,"Siemens Pressure Transmitter , D76181krishe, Measuring span 16 bar, Over range limit1-32",10,"NO",null,0]
[null,280,"Signal Splitter, Supply 24v  , Signal 4-20ma out",20,"NO",null,0]
[null,281,"Gauges , Range 0-1000kpa, ½ 1nch male fitting, Glycerine filled, NIP",30,"NO",null,0]
[null,283,"Vibration Sensors, MTN/1185M8-20F, S/N 249940, ",30,"NO",null,0]
[null,284,"Flow Sensor for Filter House, Part no SA4300, Pressure Rating 50 bar",20,"NO",null,{"$f":"F318*D318","v":0}]
[null,285,"Master-shave microprocessor, Model TDC /I/0550, SUPPLY 10VDC",3,"NO",null,0]
[null,286,"RT3 Wire simplex PT100, 6mm Probe diameter, Length 100mm",40,"NO",null,0]
[null,287,"Level Switches for Chlorine plant, Model LS-7 Level switch, 20VA,120-240VAC",10,"NO",null,0]
[null,288,"Manual pneumatic valves for filter house, Part no 0452 06 13, ¼ inch valve",15,"NO",null,0]
[null,289,"Solenoid valves for filter house, Part no C23BA400-X, 24 V DC",20,"NO",null,0]
[null,290,"Solenoid valves for PAC Plant, Part no 001324650-60Hz",20,"NO",null,0]
[null,291,"Level indicators for slaker house, Make VEGAMET 381, Signal 4-20mA",10,"NO",null,0]
[null,292,"Flow indicators for flocculators, Make Calog, IP65V metal housing, ",4,"NO",null,0]
[null,293,"Waste valve solenoid for 4C Filter house, Make Numatics, Part no C3BA400-X AIR TO OPEN",20,"NO",null,0]
[null,294,"Regulators for Chlorine plant, Material ;Polyethylene Tube, Size 10mm",20,"NO",null,0]
[null,295,"Zenith  489 Indicator, AUX 24V DC, Input 4-20m, Module 489",10,"NO",null,0]
[null,296,"Digital Anzelgel, Besteil lorder code A-A1-1-2-2",10,"NO",null,0]
[null,297,"Model 3508, Process indicator instrotech instrument and process control, 12V 24V INPUT signal cal 0-200",20,"NO",null,0]
[null,298,"Lascar indicator, SP5 25j UK, 884567",5,"NO",null,0]
[null,299,"Newport electronic indicators, Model: INFcp-101B, Serial no:0365030, 230V, 9.5W",5,"NO",null,0]
[null,300,"Corel Instrument Calog 4000S indicator, Modul-4001, 230V AC, Input 4-20ma S1N1911421",10,"NO",null,0]
[null,301,"Red Lion Indicator, 3.2 V DC  for cub4LPOO, 4.0 V DC for Cub 4LP40, 32 V DC for CUB CL911, Span range 0-2000, 100Ma, M2248D, RLC PT= CUB4CL20",5,"NO",null,0]
[null,302,"Power supply , Input voltage 0-110V, Unregulated 9V supply, Serial no:0506544",20,"NO",null,0]
[null,303,"Phoenix power supply contact, order no: 2866381, Input 100-240V-6-3A, 50-60Hz Operation voltage 85-264V, Derating 90V 2.5% V, Output24V-20A",20,"NO",null,0]
[null,304,"Quint Phoenix contact DC- UPS, input: 24 DC, Output 10A, Order no:286626 22.5-30V",10,"NO",null,0]
[null,305,"Phoenix Trio power supply contact, Trio Ps/AC24DC /s, order no:2866310, Input:100-240V-?1.9-0.9A/SO-60+12, Operational voltage, 85-264V- / Derating <90V-2.5% V Output 24V…15A",20,"NO",null,0]
[null,306,"Quint diode Phoenix contact, Order no:2938963, Input 24V max 30V, Lighting and surge protection",10,"NO",null,0]
[null,307,"Load cell Cnce// Pacific weighing, Model PA6140W, Capacity st, Output 2.0003 S/no 121716",5,"NO",null,0]
[null,308,"Converter Temperature Transmitter, TX ISO pack, 2 wire 4-20Ma, PT100, 0-150C 50Hz PN 8807000100, SN 19235197",20,"NO",null,0]
[null,309,"Corel instrument Process signal splitter, Dual output , Input 4-20Ma, Output 1 and 2 4-20Ma, 24 V DC Aux, Part no: GB-SP2/1A-1A-/AC",20,"NO",null,0]
[null,310,"Load cell Process automation , ULP, Part no:H3/300kg, Serial No: 9843743, Output 2.00Mv/v",20,"NO",null,0]
[null,311,"Telemecanique inductive proximity switch, XSD-H607339, SN=30…60mm",15,"NO",null,0]
[null,312,"Pepperl+fuchs proximity sensor, Type NBB20-u/-uu, Part no:238884, 250V DC/ 24-230 VAC, 500mA, 20mm, Serial no:40000062272797",15,"NO",null,0]
[null,313,"Phoenix converter contact, EMD-FL 3V-400, Order no:2866064",10,"NO",null,0]
[null,314,"K-unit signal conditioner, Model kwDy-AAR, Input 4-20ma DC, Output1 4-20Ma DC Output2 4-20Ma DC, Power 24V DC, Serial no:1C016198",10,"NO",null,0]
[null,316,"Phoenix repetors contact, PSM-ME-RS485/RS485-p, 24V, Order no:2744429",4,"NO",null,0]
[null,317,"Pepperl+Fuchs Phoenix contact voltage monitor, Supply 240 V ac, 13W 60Hz, Relay contacts 30Vdc, 2A 250 Vac, 2A, 0.2PF",4,"NO",null,0]
[null,318,"Omnierm LP/model C 2063A, B-Serial LP 1, 4-20Ma, 100 to 1000 ohm, Part no: 6.1103.001, ",2,"NO",null,0]
[null,319,"Numatics solenoid valve, C23BA400X, Outlet valve 24 V Single",20,"NO",null,0]
[null,320,"Numatics solenoid valve, C23BB600X, Inlet valve",20,"NO",null,0]
[null,321,"Burket Fluid control system, Type 0330, Circuit function C, Orifice seal material 2.0 Body material Fkm ms, 10..-10 bar, Port connection , Nominal pressure, 8W-voltage, frequency output",2,null,null,0]
[null,322,"Vegamet 381, Type: met381.XX, Temperature: -20..6*C, Protection:IP20 / IP40, Order no: 000000/000, Serial no:42036183",20,"NO",null,0]
[null,323,"Superior gas CL2 sensor, Crowcon , Sm6323 v3.2, 2-Term sensor fit Lk2, 3 Term sensor fit LK3, Oxygen – none, S-5675 1SS/CL2 0-5ppm, S011263/S",5,"NO",null,0]
[null,324,"Barket solenoid valve 00126244 WWC, W2 4AL, PRA",20,"NO",null,0]
[null,325,"Iminorgren Solenoid Valve Type UQM/22152/122/16, Serial no: 1823, ISO –code 152 Bar 2-16",10,"NO",null,0]
[null,326,"Siemens level probes, Order no: 7ML51101De074AF1, Serial no: PBD/LD0606/77, Enclosure: 1P68 Type6, Cable Entry: M20x1.5, Am Temp:40* to +80*C, Power rating : 24VDC, Nom, 30VDC max,, 4-20mA",20,"NO",null,0]
[null,327,"Milltronics Siem Multi Range 200, Power rating , 100/115/200/230V +-15%, 15 VA, 50/60Hz, Operating temp:-20*C to 50*C",20,"NO",null,0]
[null,328,"Flow transmitter 8mm, Serial no:X0022101019",5,"NO",null,0]
[null,329,"Burket solenoid valve, 0407G40NBR, FLNSCH PN 2-10 bar, 24 V AC/DC  2W 88897",20,"NO",null,0]
[null,330,"Burkert  solenoid valve 6519 H 8.0, G1/4  PN2-8bar, 230V  50/60Hz 2W, 00132468",20,"NO",null,0]
[null,331,"Neumatics solenoid valve C34BA400-X",20,"NO",null,0]
[null,332,"Pepperl+Fuchs Phoenix contact MCR-SL-1VLP-1/1-00-4 Kv, At no:2814841",15,"NO",null,0]
[null,333,"Norgren solenoid valve 1M1 Norgren Type: UQM/23354/6123/16, Serial no: 2020 ISO-code 356, Bar 2.8-16",20,"NO",null,0]
[null,334,"Camozzi solenoid valve DKM/A-1/30 G 1/2”, MS Schlierber, Art 52XM 1030XGISSA Nr 30024374/001",20,"NO",null,0]
[null,335,"Festo solenoid valve Feto NVF 3-MOH, S/2-k-114-EX, 535987 E0SS, 2-10bar, 28-145 psi 220/230V  50/60Hz, 9/7VAIp00/65, MSFW-230-50/060Hz, 4540",20,"NO",null,0]
[null,336,"Burket solenoid valve Type 6516-6519, 3/2s/20rs/s way, Solenoid valve, 6519 H8.0,  G ¼ PN2-8 bar, 230V 50-60Hz 2W, Identity no: 00132468",20,"NO",null,0]
[null,337,"Jelpc valve Model SV310-08b-s 0.15-0.5mpa, Order code: SV-1-10-06-B-F-AC220V-W-F",2,"NO",null,0]
[null,338,"Festo plastic tubing 8mm PLN-8x1, 25-Sw, Mat-nr 195282, Serial 06-2015(016) Menge 50m ",100,"Meters",null,0]
[null,339,"Festo plastic tubing 6mm, PLN-6x1 –SW, Mat-nr 195281, Serial 02-2016(016) Menge 50m",100,"Meters",null,0]
[null,340,"Festo plastic Tubing 4mm PLN-4 0.7-Sw, Mat-nr-195280, Serial 04-20169(016), Menge 50m",100,"Meters",null,0]
[null,341,"RTD PT100 3 wire RTD, 6mm OD, with bayonet cap and springs, large head without ceramic blocks, 75mm flex leads with profibus head mount transmitter 140mm long Part Number: TMT84-1020/0",40,"NO",null,0]
[null,342,"RTD PT100, 3-wire, Simplex, 6mm diameter, 180mm long with ceramic block and compressed brass fitting",40,"NO",null,0]
[null,343,"RTD PT100, 3-wire, Simplex, 6mm diameter, 140mm long with ceramic block and compressed brass fitting",40,"NO",null,0]
[null,344,"RTD PT100, 3-wire, Simplex, 6mm diameter, 240mm long with ceramic block and compressed brass fitting",40,"NO",null,0]
[null,345,"VEGAPLUS 52 by VEGA Range 0 -+2.5 Bar (0...+250kPa), Process Pressure -1…+50kPa (100…+5000kPa), Temperature -40...+120-degree C, Electronic 4…20mA HART Power Supply 12…36V, Protection: IP66/67",20,"NO",null,0]
[null,346,"VEGAPLUS 64 by VEGA Range 0 …+25 Bar (0...+2500kPa), Process Pressure -1…+60kPa (-100…+6000kPa), Temperature -20...+120 degree C, Electronic 4…20mA HART, Power Supply 12…36V, Protection: IP66/67",20,"NO",null,0]
[null,347,"VEGAPLUS 61 by VEGA Range 0 -+2.5 Bar (0. +250kPa), Process Pressure -1…2bar , 100…+200kPa), Electronic 4…20mA HART, Power Supply 9.6…36VDC, Protection:  IP66/67",20,"NO",null,0]
[null,348,"VEGAPLUS 61 by VEGA Range 0.25…5m, Process Pressure -20…+200kPa, (-.2…2Bar) Temperature -40. +80-degree C, Electronic 4…20mA HART, Power Supply 12…36V Protection: IP66/67",20,"NO",null,0]
[null,349,"PLICS Radio R62 by VEGA Temperature 40-80 degree, Output 9.6-48V, 24-42V, Frequency 932-928mHZ",5,"NO",null,{"$f":"F382*D382","v":0}]
[null,351,"VEGAMET 391 by VEGA Ambient Temperature -20. +60-degree C, Electronic 4…20mA HART, Power Supply 20…253VAC/DC, 50-60HZ, Protection: IP66/67",20,"NO",null,0]
[null,352,"VEGA DIS12 by VEGA Type: DIS12.XBXX, Protection: IP66/IP67 ",2,"NO",null,0]
[null,353,"MiniMe Sensor by VEGA P/N:LU13 – 5001, ",2,"NO",null,0]
[null,354,"VEGA EL 4 by VEGA Type: EL4X5VTKX , LEMGTH 400mm",2,"NO",null,0]
[null,355,"VEGABAR 52 by VEGA Type BR52.XXGG10HKMAS, Range 0 -0.4 Bar (0. +40kPa), Temperature -40. +120-degree C, Electronic 4…20mA HART, Power Supply 12…36V Protection: IP66/67",10,"NO",null,0]
[null,356,"VEGAPLUS 65 by VEGA Range 1-3 Bar (-100 -300kPa), Process Pressure -1…+50kPa Process Temperature -40…+130-degree C, Electronic 4…20Ma HART, Power Supply 12…36V, Protection: IP66/67",10,"NO",null,0]
[null,357,"Pressure Transmitter (FUJI) Electronic Output 4…20mA HART, Power Supply 28VDC",15,"NO",null,0]
[null,358,"Pressure Transmitter (ROSEMOUNT), Output HART@ 4-20Ma, Power supply: 10.5 – 45VDC",15,"NO",null,0]
[null,359,"Pressure Transmitter (SIEMENS) Output HART@ 4-20Ma, Power supply: 10.5 – 45VDC Over ranging limits -1 – 32 Bar",15,"NO",null,0]
[null,360,"Pneumatic Equipment (AIR TAC) Pressure range 0-0.8 Mpa (0-8.0Ba), Temperature 5 – 60 degree C, Pressure 1.2Mpa (120ba), Operating Angle +-15 degree, Direction change:4mm(100,200Serialies) or 5mm(300 Serial)",5,"NO",null,0]
[null,361,"Prosonic  Flow 91 (ENDRESS & HAUSERIAL) 85-250VAC, 12VA, I –OUT(HART)Pulse Out",10,"NO",null,0]
[null,362,"Control board Evaporator E – 2000, W 3T163645",1,"NO",null,0]
[null,363,"Isolated Smart Transmitter Output 4- 20Ma, Range: 0_ 1600",2,"NO",null,0]
[null,364,"Relay Contracts 30VDc - 2A, PEPPERL+FUCHS, Supply 240 VAC.BW. 60HZ, N1658",2,"NO",null,0]
[null,365,"ANDERSON – NEGELE Power supply 24VDC, 30Ma, Output 2*24 Vdc/100mA",2,"NO",null,0]
[null,366,"Power Supply – PHOENIX Input:100- 240V, Output :24V /40A, O/V 250V, SN: 0000281425",20,"NO",null,0]
[null,367,"Power Supply / Phoenix Input 24V – 10.5A, Output 24 – 10A, Operational V.22.5 – 30V",20,"NO",null,0]
[null,368,"Power Supply / Phoenix Input 100V – 240 V, Output DC 24 V– 10A",20,"NO",null,0]
[null,369,"IQ4 Digital Indicator 24VDC 4-020mA",5,"NO",null,0]
[null,370,"Indicator: RKC Instrument Model: CB 900, Power Supply 240 VAC",10,"NO",null,0]
[null,371,"Honeywell : Amiens factory Indicator, Model:  DC 300E-E, SIN: A940340953149001007",2,"NO",null,0]
[null,372,"TOHO Electronics/ Indicator TTM-006",2,"NO",null,0]
[null,373,"Zenith Indicator Model:489 INS, SN:10.01.05, Power supply:24VCC",10,"NO",null,0]
[null,374,"Vertex Indicator Corel Instrument, 4-20mA",2,"NO",null,0]
[null,375,"WEG Variable Speed drive with controller CFW 08 Vector Inverter, MOD : SACFW080016S2024ESZ , V 3.98   R47, Line: 200-240VAC, 3,5A, 50/60Hz, Output : 0…Red/Line, 1,6A, 0-300Hz, Serial :# 678566, XC8, Serial HMI Interface",2,"NO",null,0]
[null,376,"Controller WEG CFW 08, MOD : HMI-CFW08-RS, Serial # 5166, No: 585788, ",10,"NO",null,0]
[null,377,"Endress + Hou Serial density meter display FHX40, Order Code: FHX40-A1A, Serial. No. C1007201064, Uin<5.6V, Iin < 1mA",5,"NO",null,0]
[null,378,"Up wash Solenoid Valve Schrader Bellows FB4, 24Vdc supply / 9 Watts, Part no: L695 43211 49",20,"NO",null,0]
[null,379,"VGS-148-70/W/17/17-S-2F-L-G, Vacuum regulator, VGS-148, PN: 96681284 Type 148, 070-10003, Full vacuum regulator for chlorine gas dosing up to max 70, kg/h. Vacuum output connection for PVC pipe DN40. inlet valve, 70 kg/h, chlorine, Indication manometer, type of contact: min. contact (closing unit), medium: chlorine connection material: PVC tube: PE-hose 8/11 labelling Grundfos connection set nominal width: DN25 connection type: R1\" standard parts 70-200KG/H, chlorine, 0.00 bar Material number: 96681284 4 68,248.00 272,992.00, 30 524 Liqufilt-200/G/L-R,G, Product Code: 96696435",2,"NO",null,0]
[null,380,"SK2 Power-Link, Profibus PA , K-System, KLD2-PL-1.PA, Part No: 96788",2,"NO",null,0]
[null,381,"SK2 Gateway, Profibus DP, K-System, KLD2 – GT- DP. 1PA, Part No. 96765                  ",2,"NO",null,0]
[null,382,"Load cell Processor Unipro measurement system, Model- SBQ-820-BINWEGH,                  Pareference M09121, 90-230Vac, 50/60Hz",2,"NO",null,0]
[null,383,"Chlorine Sensor Controller Siemens-Wallace and Tierman, GMS plus W3T158771, Electronic Module 230V. 50/60 Hz, 14VA, Sensor 1/11. 2xPT1000 .3xmA - out           ",5,"NO",null,0]
[null,384," Rotameter glass Chlorine-Kilograms per hour: 3 to 60, Man 329/565, Chlorine pounds per day: 150 to 3000, AAB 5427",20,"NO",null,0]
[null,385,"Solenoid Valve with 24V coil VSNC-FC-M52-MD-G14-F8, 577257, 2.5-10bar/36-145 psi",20,"NO",null,0]
[null,386,"Pressure Gauge Range 0-4000Kpa, 100mm Dial, ½ inch bottom entry female threaded It must have a chlorine compatible diaphragm ",20,"NO",null,0]
[null,387,"Pressure Gauge Range: -500Kpa to 500Kpa, 100mm Dial, ½ inch bottom entry female threaded It must have a chlorine compatible diaphragm",20,"NO",null,0]
[null,388,"Chlorine Gauges Range: 0-600 Bar 100mm Dial, ½ inch bottom entry female threaded It must have a chlorine compatible diaphragm",20,"NO",null,0]
[null,389,"Pressure Gauges Range 0-1600 Kpa, 100mm Dial, ½ inch bottom entry female threaded  It must have a chlorine compatible diaphragm  ",20,"NO",null,0]
[null,390,"Pressure gauge Range: 0-1000 kpa,  100mm Dial,  1/2-inch male fitting diaphragm gauge,   Glycerine filled bottom entry,   NTP",20,"NO",null,0]
[null,391,"Pressure Gauge Range: 0-1600 kpa, 100mm Dial, 1/2-inch male fitting diaphragm gauge Glycerine filled bottom entry NTP",20,"NO",null,0]
[null,392,"Pressure Gauge  Range: 0-4000 kpa, 100mm Dial, 1/2-inch male fitting diaphragm gauge, Glycerine filled bottom entry",20,"NO",null,0]
[null,393,"Pressure gauge Range: 0-2500kpa, 100mm Dial, 1/2-inch male fitting diaphragm gauge,            Glycerine filled bottom entry, NTP  ",20,"NO",null,0]
[null,394,"Vibration sensor (the plug- in version), Part No: MTN/1185M8-20F, S/N: 249940,             Include: 3m cable with plug, Sensitivity: 20.3 mm/sec@20mA, Mounting threads M8 Male",20,"NO",null,0]
[null,395,"Electromatics System: Dual Level Relays, SN 150220, Power supply 220VAC",4,"NO",null,0]
[null,396,"Electromatics system: Inductive Sensor Relay, SD 110220, Power Supply :230V",4,"NO",null,0]
[null,397,"Solenoid valve, Schrader Bellows, Volts 24DC-Watts 9, Max pressure – 140 Model-K05303549",20,"NO",null,0]
[null,398,"Solenoid valve Schrader Bellows, L70543102429, 24 Volt watt 9, Max pressure 140 Model :K065603549",20,"NO",null,0]
[null,399,"Inductive proximity switch, XS8D1A1PAL2, Ue: 12V….2V",10,"NO",null,0]
[null,null,"MW MEAN WELL RANGE OF BATTERY CHARGERS"]
[null,399,"Part NO: MW Mean Well PB -1000-24 , 2/3/8 Stage Switching Mode Battery Charger ,  Input :100 – 240V AC  12A 50-60 Hz Output: 28.8 V, 34.7A Lead Indicator, Suitable for lead-acid batteries, can be connected to 2 battery banks",6,"NO",null,0]
[null,400,"MW Mean Well Battery Charger, Part NO ADD – 155 B Input: 100 – 240 V   2,5A, 50/60Hz Output V1  + 27.6V(4.5A), V2 +5V(3.0A) , Battery 27,1V(0.5A)",3,"NO",null,0]
[null,null,"DELTEC RANGE OF BATTERIES"]
[null,401,"Part NO: DELTEC BR-12V180FT, Valve Regulated Sealed Lead-Acid Battery, Constant Voltage Charge, Cycle Use:14,6 – 14,8V (25 C), Standby Use: 13,6 – 13,8 V, Initial Current less than 54A",12,"NO",null,0]
[null,null,"ACDC DYNAMICS RANGE OF BATTERIES"]
[null,402,"ACDC Dynamics Valve Regulated Rechargeable Battery (Non-spill able)  Part No SY1270 (12V7.OAH) Voltage Regulation (Standby Use 12,7 V – 13,9 V) and (Cyclic Use 14,4 – 14,7 V) Initial Current : 2,1 A Max",3,"NO",null,0]
[null,null,"ACDC DYNAMICS RANGE OF BATTERY INVERTERS"]
[null,403,"ACDC DYNAMICS Power Inverter, Pure Sine Wave 600W, 24V, DC to AC",6,"NO",null,0]
[null,null,"YOKOGAWA RANGE OF CHART RECORDERS"]
[null,404,"Yokogawa Chart Recorder, Part No FX1002, Power Supply :100 – 240V AC, Freq 50/60Hz",4,"NO",null,0]
[null,null,"TRUTEQ RANGE OF WIRELESS RADIOS"]
[null,405,"Truteq Wireless Radio, Part No SPRi V.SMGR.FRG.1.0.0 GPRS/EDGE/HSPA ROUTER",3,"NO",null,0]
[null,406,"INSTRUMENT BLOWER FANS Blower Fan Part No: AA1282HB-AT, Dimensions 120X120X38, 220 V AC 22W Oriental Blower, 50Hz",5,"NO",null,{"$f":"F445*D445","v":0}]
[null,null,"ZUIKERBOSCH ONLINE INSTRUMENTATION"]
[null,407,"pH Sensor SWAN AMI pH-Redox Manufacturer SWAN Part Number A.21.221.210 ",12,"NO",null,{"$f":"F447*D447","v":0}]
[null,408,"Temperature Sensor SWAN AMI pH-Redox Manufacturer SWAN Part Number A.87.120.200",12,"NO",null,0]
[null,409,"Conductivity Sensor SWAN AMI SILICON4 Manufacturer SWAN Part Number A.23.421.200",12,"NO",null,0]
[null,410,"HACH CL17sc Colorimetric Chlorine Analyser with Pressure Regulator Installation Kit and Reagents for Free Chlorine Manufacturer HACH Part Number 8572900",3,"NO",null,0]
[null,411,"2/2 way Solenoid Valve Manufacturer Burkert Part Number 5281-00-A13,0BBMSGM84-5-024/DC-08",12,"NO",null,0]
[null,412,"Timer Control Unit Manufacturer Burkert Part Number 1078-1-BBT/DC-B-1",12,"NO",null,0]
[null,413,"Rotameter 160– 1600 l/hr Manufacturer TEC Part Number PT-11/1600/DR",12,"NO",null,0]
[null,414,"Digital Differential pH Sensor Manufacturer HACH Part Number DPD1R1",80,"NO",null,0]
[null,415,"Digital Contacting Conductivity Sensor for High Conductivity (k=5.0) with 3/4\" Kynar Compression Fitting Manufacturer HACH Part Number D3422D3",6,"NO",null,0]
[null,416,"TU5300sc Low Range Laser Turbidimeter with Flow Sensor, Automatic Cleaning, RFID, and System Check, ISO Version Manufacturer HACH Part Number LXV445.99.53122",12,"NO",null,0]
[null,417,"SC200 Universal Controller: 100-240 Vac with TWO DIGITAL SENSOR INPUTS and TWO 4-20mA Outputs Manufacturer HACH Part Number LXV404.99.00552",40,"NO",null,0]
[null,418,"SC1000 Probe Module Manufacturer HACH Part Number LXV400.99.10092",8,"NO",null,0]
[null,419,"SC1000 Multi-parameter Universal Controller Display Module Manufacturer HACH Part Number LXV402.99.11002",2,"NO",null,0]
[null,420,"Controller/Transmitter AMI pH/Redox- Power Supply 100-240 Vac, 50/60Hz Manufacturer SWAN Part Number A-11.411.100",12,"NO",null,0]
[null,421,"Controller/Transmitter AMI Solicon 4 - Power Supply 100-240 Vac, 50/60Hz Manufacturer SWAN Part Number A-13.411.100",12,"NO",null,0]
[null,422,"SS7 Surface Scatter High Range Turbidity Meter Manufacturer HACH Part Number 2977200",2,"NO",null,0]
[null,423,"Digital Termination Box Manufacturer HACH Part Number 5867000",40,"NO",null,0]
[null,null,"AUTOMATION"]
[null,424,"140 NOE 771 10 TSX Quantum Ethernet Card",20,"NO",null,0]
[null,425,"140 NOM 252 00 TSX Quantum ModBus Plus Card",10,"NO",null,0]
[null,426,"140 DDO 353 00 Discreet DC Output 24V 4x8 Source",5,"NO",null,0]
[null,427,"140 DDO 364 00 DC Output 24V 6x16 Source",15,"NO",null,0]
[null,428,"140 DDM 390 00 Module I/O 24VDC",10,"NO",null,0]
[null,429,"140 DDI 673 00 Module Input 125VDC 3x8",5,"NO",null,0]
[null,430,"140 DDI 353 00  Discreet DC Input 24V 4x8 Sink",5,"NO",null,0]
[null,431,"140 DDI 841 00 DC Input 10-60V 8x2 Sink",20,"NO",null,0]
[null,432,"140 ATI 030 00 TC Input 8CH",10,"NO",null,0]
[null,434,"140 ACI 030 00 Analog Input 8CH Unipolar",10,"NO",null,0]
[null,435,"140 ACO 020 00 Analog Output 4CH Current",15,"NO",null,0]
[null,436,"140 DAO 840 00  AC OUT 24-230V 16x1",10,"NO",null,0]
[null,437,"140 DAI 540 00 AC Input 115V 16x1",10,"NO",null,0]
[null,438,"140 DAI 740 00 AC Input 230V 16x1",10,"NO",null,0]
[null,439,"140 ACI 0400  Modicon Quantum 16 channel Analogue Input module",30,"NO",null,0]
[null,440,"140 CPS 11420  Modicon Quantum Power Supply module 115/230V AC",20,"NO",null,0]
[null,441,"140 CRA 21110 DIO DROP ModBus AC Power Supply 1CH",15,"NO",null,0]
[null,442,"140 CRA 93100 RIO DROP S908 1CH",10,"NO",null,0]
[null,443,"BMX NOE 0100 Ethernet 10/100 RJ45",20,"NO",null,0]
[null,444,"BMX AMI  0410 Analogue input module X-80 with 4 high speed inputs",20,"NO",null,0]
[null,445,"BMX AMI 0810 Analogue input module X-80 with 8 high speed inputs",20,"NO",null,0]
[null,446,"BMX AMO 0802 Analog 8 U/I Input Isolated Fast",20,"NO",null,0]
[null,447,"BME CRA 31210 X80 RIO DROP E/IP Perf",15,"NO",null,0]
[null,448,"BMX NOM 0200 Serial link Module with RS-458/232 ports in Modbus and character mode",5,"NO",null,0]
[null,449,"BMX CPS 2000 Standard AC Power Supply ",30,"NO",null,0]
[null,450,"BMX CPS 3000 Power Supply Isolated 24to48VDC",20,"NO",null,0]
[null,451,"BMX CPS 3020 High Power Isolated 24to48VDC Power Supply",20,"NO",null,0]
[null,452,"BMX CPS 3500 High Power AC Power Supply",20,"NO",null,0]
[null,453,"BMX DDO 1602 Digital  16Q Trans Source 0.5A",10,"NO",null,0]
[null,454,"BMX DDO 3202K Digital  32Q Trans Source 0.1A",20,"NO",null,0]
[null,455,"BMX DDI 1602 Digital  16I 24VDC Sink ",10,"NO",null,0]
[null,456,"BMX DDI 6402K  Digital  64I 24VDC Sink ",10,"NO",null,0]
[null,457,"BMX DDI 3202 Digital  32I 24VDC Sink ",15,"NO",null,0]
[null,458,"BMX DRA 0805 Digital  16I 24VDC Sink ",20,"NO",null,0]
[null,459,"BMX PRA 0100 Peripheral Remote IO Adapter",10,"NO",null,0]
[null,460,"BMX P34 2020 CPU340-20 Modbus Ethernet ",20,"NO",null,0]
[null,461,"BMX NOC 0401 EtherNet/IP &Modbus TCPM340 Module",10,"NO",null,0]
[null,462,"BMX EHC 0200 High Speed Counter 2CH",10,"NO",null,0]
[null,463,"BMX XBP 0800 M340 8 Slot Backplane ",10,"NO",null,0]
[null,464,"BME P58 3040 M580 Processor level 3 for D&R I/Os",20,"NO",null,0]
[null,465,"BME P58 4020 M580 Processor level 4 for D I/Os",10,"NO",null,0]
[null,466,"BME P58 4040 M580 Processor level 4 for D&R I/Os",10,"NO",null,0]
[null,467,"STB DDI 3725KS 24VDC Input 16PT Basic kit screw, Base",20,"NO",null,0]
[null,468,"STB DDO 3600 24VDC Output 6PT Basic kit Conns, Base",10,"NO",null,0]
[null,469,"STB XBA 2200 Mounting Base for STB Power module",10,"NO",null,0]
[null,470,"STB NDP 2212 Standard Network interface Module for Profibus DP at 9.6kbit/s",10,"NO",null,{"$f":"F510*D510","v":0}]
[null,471,"STB DRC 3210 Standard Digital output kit 24V 115…230V AC 2 NO/NC",10,"NO",null,0]
[null,472,"STB NIP 2311 Standard Network Interface Module STB - Ethernet modbus TCP/IP - 10...100 Mbits",20,"NO",null,0]
[null,473,"STB NIP 2212 Standard Network Interface Module STB - Ethernet - 10 Mbit/s",30,"NO",null,0]
[null,474,"STB ACO 0220K  Analog C OUT 2CH 4-20MA 16 Bit",20,"NO",null,0]
[null,475,"STB ACO 1225K  Analog C OUT 2CH Basic  4-20 Kit Conns, Base",10,"NO",null,0]
[null,476,"STB ACI 0320K  Analog C OUT 4CH,  4-20MA Kit Conns, Base",20,"NO",null,0]
[null,477,"STB ACI 0320K  Analog C OUT 4CH,  4-20MA Kit Conns, Base",20,"NO",null,0]
[null,478,"STB PDT 3100K  STB Power Module 24V DC card",15,"NO",null,0]
[null,479,"STB PDT 2100 STB Power Module 115/220V AC card",10,"NO",null,0]
[null,480,"STB DAI 7220 230VAC Input 2PT Kit Conns",10,"NO",null,0]
[null,481,"STB DAO 8210 115/230VAC Output 2PTb Kit",10,"NO",null,0]
[null,482,"HMI HMIDT732 18-28V input power 15-inch display 1024 x 768 pixel XGA IP 67 protection Ethernet TCP/IP Multi touch analogue resistive outdoor installation",20,"NO",null,0]
[null,483,"HMIG3U MODULO PROCESADOR PREMIUM BOX GTU",30,"NO",null,0]
[null,484,"AB7028 AnyBus Communicator",30,"NO",null,0]
[null,485,"EDS-505A-MM-SC  Layer 2, 5 port managed Ethernet Switch EDS-505A-MM-SC",20,"NO",null,0]
[null,486,"EDS-508A-MM-SC Layer 2, 6(2 Fibre) port managed Ethernet Switch EDS-508A-MM-SC",15,"NO",null,0]
[null,487,"EDS-508A-SS-SC Layer 2, 6(2 Fibre) port managed Ethernet Switch EDS-508A-SS-SC ",20,"NO",null,0]
[null,488,"EDS-518E-MM-SC Layer 2, 14 port managed Ethernet Switch EDS-518E-MM-SC ",30,"NO",null,0]
[null,489,"EDS-82810G-4GTX Layer 3, Gigabit Modular managed Ethernet Switch EDS-82810G-4GTX",15,"NO",null,0]
[null,490,"BMX RMS 008 MPF 8MB CPU Memory Card",10,"NO",null,0]
[null,491,"BME CRA 31210 M580 RIO CPU Remote IO CPU",15,"NO",null,0]
[null,492,"Modbus TCP IP Converter Anybus Coverter",10,"NO",null,0]
[null,493,"EDS-619 Moxa Switch",10,"NO",null,0]
[null,494,"PA 003135 Profibus  Easy Connector",5,"NO",null,0]
[null,495,"TCS EGPA23F14F Schneider Communication Module Profibus Remote Master",10,"NO",null,0]
[null,496,"EGX 100/150 Ethernet Gateway Modbus to Ethernet Gateway ",20,"NO",null,0]
[null,497,"FTB 1DP16EPO Profibus IO Module Digital Input/Output Module",10,"NO",null,0]
[null,498,"IM-4TX Moxa Switch Module 4 Coper port module ",15,"NO",null,0]
[null,499,"IM-4MSC Moxa Switch Module 4 Fibre Port Module SC Connector",15,"NO",null,0]
[null,null,"ZB - P.04260 PLC EQUIPMENT INSTALLATION",null,"NO",null,0]
[null,500,"BMXCPS3500 M340,FA 100/240vCA 36W",10,"NO",null,0]
[null,501,"BMXXBP1200 M340,Rack 12 Pos",5,"NO",null,0]
[null,502,"BMEP581020 M580,CPU,Eth,1024D,256A,NoRIO",10,"NO",null,0]
[null,503,"BMXDDI3202K M340,32 ED,24vDC (40P)",10,"NO",null,0]
[null,504,"BMXDDO3202K M340,32 SD,TRT,24vDC,LogPos (40P)",10,"NO",null,0]
[null,505,"BMXFCW303 M340,Bornero 40P+Precable 2x20 Hilos 3m",10,"NO",null,0]
[null,506,"BMXAMI0810 M340,08 EA 16b,Aisl,10v,20mA",10,"NO",null,0]
[null,507,"BMXFTW308S M340,Bornero 28P+Precable Apant_3m",5,"NO",null,0]
[null,508,"BMXART0814 M340,08 EA 15b+sig,Aisl,Temp.TC/RTD",20,"NO",null,0]
[null,509,"BMXFCW301S M340,Bornero 40P+Precable Apant 1x20 Hil",10,"NO",null,0]
[null,510,"BMXXEM010 KIT 5 MODULOS VACIOS",5,"NO",null,0]
[null,511,"ABL8RPS24100 FUENTE CONM. FILTRO ARM. 10A 24Vdc 240W",5,"NO",null,0]
[null,512,"HMIDT732 PANTALLA 15'' XGA SMART DISPLAY GTU",10,"NO",null,0]
[null,513,"HMIG3U MODULO PROCESADOR PREMIUM BOX GTU",15,"NO",null,0]
[null,514,"STBNIP2311 STB,Com,Eth MB TCP/IP Dual Port",20,"NO",null,0]
[null,515,"BMEXBP1200 M580,Rack Eth 12 Pos",5,"NO",null,0]
[null,516,"BMEP584040 M580,CPU,Eth,4096D,1024A,RIO",10,"NO",null,0]
[null,517,"BMXNRP0200 M340,Com,FOMultiLC",15,"NO",null,0]
[null,518,"BMECRA31210 M580,Com,EthernetIO Drop Avanzado",20,"NO",null,0]
[null,519,"EGX150 PASARELA ETHERNET LINK150",10,"NO",null,0]
[null,520,"BMXP342020 M340,CPU,Eth,Serie,USB,1024D,256A",10,"NO",null,0]
[null,521,"BMXNOC0401 M340,Com,Eth DIO Head",10,"NO",null,0]
[null,522,"BMXAMO0410 M340,04 SA 15b+sig,Aisl,10v,20mA",15,"NO",null,0]
[null,523,"BMXFTW301S M340,Bornero 20P+Precable Apant 3m",5,"NO",null,0]
[null,524,"BMXXBE2005 M340,Kit,2xTSXTLYEX,2xBMXXBE1000,1xBMXXB",5,"NO",null,0]
[null,525,"BMXDDO3202K M340,32 SD,TRT,24vDC,LogPos (40P)",10,"NO",null,0]
[null,526,"BMEXBP0400 4 slots Eth backplane",10,"NO",null,0]
[null,527,"XVUC21B Unidad (DC) XVU, Negro",10,"NO",null,0]
[null,528,"XVUC23 Elemento Lumnioso LED XVU Verde",10,"NO",null,0]
[null,529,"XVUC24 Elemento Lumnioso LED XVU Rojo",10,"NO",null,0]
[null,530,"XVUC25 Elemento Lumnioso LED XVU Naranja",10,"NO",null,0]
[null,531,"XVSUC9 Elemento Sorono XVU, Negro",10,"NO",null,0]
[null,532,"XVUZ02 Base con tubo de 100mm, Negro",10,"NO",null,0]
[null,533,"XVUC29 Multicolour –Unit",10,"NO",null,{"$f":"F574*D574","v":0}]
[null,534,"405282400000 Finder relay Mini 2CO 8A 240VAC",20,"NO",null,0]
[null,535,"9505SPA Finder relay base 40/44 series",20,"NO",null,0]
[null,536,"405191100000 Finder relay Mini 2CO 8A 110VDC",20,"NO",null,0]
[null,537,"405281100000 Finder relay Mini 2CO 8A 110VAC",20,"NO",null,0]
[null,538,"405290240000 Finder relay Mini 2CO 8A 24VDC",10,"NO",null,0]
[null,539,"EDS-G512E-8POESFP 12 Port Full Gigabit managed Ethernet Switch",5,"NO",null,0]
[null,540,"EDS-510E-3GTXSFP Managed Gigabit Ethernet Switch",5,"NO",null,0]
[null,541,"IKS-G6524A 24G part layer 2 full Gigabit managed Ethernet Switch",5,"NO",null,0]
[null,null,"ZWARTKOPJIES PUMPING STATION",{"$nulls":3},0]
[null,null,"AUTOMATION EQUIPMENT-ZK",{"$nulls":3},0]
[null,542,"Pepperl and Fuchs Profibus PA Part No.: KLD2-PL-1PA",10,"NO",null,0]
[null,543,"Pepperl+Fuchs HD2-FBPS-1.25.360 Fieldbus power supply Part No.: 189516",10,"NO",null,0]
[null,544,"Pepperl+Fuchs KFD2-BR-1.PA.1500 Profibus PA to DP converter Part No.:  277830",10,"NO",null,0]
[null,545,"STB NDP 2212 Standard Network interface Module for Profibus DP",10,"NO",null,0]
[null,546,"Schneider Electric PowerLogic EGX100MG",10,"NO",null,0]
[null,547,"MOXA EDS-508A-MM-SC",6,"NO",null,0]
[null,548,"MOXA EDS-611",3,"NO",null,0]
[null,549,"MOXA IM-4MSC",5,"NO",null,0]
[null,550,"140 ACI 030 00 Analog Input",5,"NO",null,0]
[null,551,"HMIDT732 PANTALLA 15'' XGA SMART DISPLAY GTU",3,"NO",null,0]
[null,552,"HMIG3U MODULO PROCESADOR PREMIUM BOX GTU",3,"NO",null,0]
[null,null,"BULK WATER AUTOMATION SPARES"]
[null,{"$f":"B595+1","v":553},"ALLPRONIX RS-232 DAT9011-USB MODBUS CONVERTER",3,"NO",null,{"$f":"F597*D597","v":0}]
[null,554,"ALLP PR6333A RTDS CONVERTER 2 WIRE PROGRAMABLE TRANSMITTERS",9,"NO",null,0]
[null,{"$f":"B598+1","v":555},"ALLPRONIX DAT511 LOOP ISOLATOR",20,"NO",null,0]
[null,{"$f":"B599+1","v":556},"ALLPRONIX PROFIHUB B5+ 6 SEGMENT",3,"NO",null,0]
[null,{"$f":"B600+1","v":557},"ATI, Part Number: Q46-P-1-1-4-1,  pH Monitor",24,"NO",null,0]
[null,558,"ATI, Part Number: 07-0092, 03-0029, pH Sensor with Cable",45,"NO",null,0]
[null,559,"ATI, Part Number: Q46-63-1-1-1-4-1-3,  Residual CL2 Analyser complete",30,"NO",null,0]
[null,560,"ATI, Part Number: Q46-62-1-1-1-4-1-3,  Free CL2 Analyser complete",30,"NO",null,0]
[null,561,"ATI, Part Number: 00-15-10,  Combined CL2 Sensor",30,"NO",null,0]
[null,562,"ATI, Part Number: 00-0066,  Free CL2 Sensor",30,"NO",null,0]
[null,563,"ATI, Part Number: 09-0010,  Residual CL2 Electrolyte",45,"NO",null,0]
[null,564,"ATI, Part Number: 09-0011,  Free CL2 Electrolyte",45,"NO",null,0]
[null,565,"ATI, Part Number: 05-0007,  Residual CL2 Membranes",150,"NO",null,0]
[null,566,"ATI, Part Number: 05-0005,  Free CL2 Membranes",150,"NO",null,0]
[null,567,"ATI, Part Number: 23-00018,  Residual CL2 Fuses",30,"NO",null,0]
[null,568,"ATI, Part Number: Q46/76-2-1-1-1-4,  Turbidity Analyser ",15,"NO",null,0]
[null,569,"ATI, Part Number: 63-0109,  Turbidity Sensor",15,"NO",null,0]
[null,570,"ATI, Part Number: Q46C2-1-3-4-4-1-1,  Cond Analyser-=",30,"NO",null,0]
[null,571,"ATI, Part Number: 07-0056,  2 Electrode Conductivity Sensor",45,"NO",null,0]
[null,572,"ABB ADJUSTABLE AMING MOUNTING BRACKET A900",15,"NO",null,0]
[null,573,"ABB LLT100 LEVEL TRANSMITTER LAZER TRANSMITTER",15,"NO",null,0]
[null,574,"ABB LST 400YOS15NIP3AIH15C2M5",6,"NO",null,0]
[null,575,"ASHKROFT  ½” BOTTOM ENTRY 100MM DAIL 0-1600 KPA",45,"NO",null,0]
[null,576,"ASHKROFT  ½” BOTTOM ENTRY 100MM DAIL 0-4000 KPA",45,"NO",null,0]
[null,null,"BECKHOFF EQUIPMENT"]
[null,{"$f":"B620+1","v":577},"BeckHoff C9900-U330 HMI BACKUP POWER SUPPLY",6,"NO",null,0]
[null,578,"Beckhoff CP2219-0010 HMI 19'PCT v04  2.5\"320GB SATA",6,"NO",null,0]
[null,579,"Beckhoff C9900-U33  HMI   UPS 24V 120m ohms                                                  ",6,"NO",null,0]
[null,580,"BECKHOFF CP2215-0010 HMI",15,"NO",null,0]
[null,581,"BURKERT 225192 15-20V 12-48V 15WN50/60HZ ACTUATOR",9,"NO",null,0]
[null,582,"DANUBE Q06-150112-00",9,"NO",null,0]
[null,583,"ENDRESS+HAUSER PH METER",9,"NO",null,0]
[null,584,"ENDRESS+HAUSER PROFIBUS TURBIDITY METER ",3,"NO",null,0]
[null,585,"ENDRESS+HAUSER DTI130 FLUITECTOR",3,"NO",null,0]
[null,586,"ENDRESS+HAUSER EA021020000 RELAY",0,"NO",null,0]
[null,587,"ENDRESS+HAUSER DTT31 FLOWSWITCHES",18,"NO",null,0]
[null,588,"ENDRESS+HAUSER TR 24-A42BXB300RTD PT100",3,"NO",null,0]
[null,589,"ENDRESS+HAUSER CPS11D-7BT21 LIQUID ANALYSIS SENSOR",3,"NO",null,0]
[null,590,"ENDRESS+HAUSER CPS11D-CIEI LIQUID ANALYSIS SENSOR",3,"NO",null,0]
[null,591,"ENDRESS+HAUSER TMT84-11K/115",12,"NO",null,0]
[null,592,"GE PT878 ULTRASONIC UNIT",18,"NO",null,0]
[null,593,"Grundfos Dosing Pump Model No.: DDI 6010AR PVC/V/GS-31B16F",20,"NO",null,0]
[null,null,"EWON TELEMETRY EQUIPMENT"]
[null,{"$f":"B638+1","v":594},"FLEXY E-WON FLX401_00/S MODULE 8DI-4AI-2DO",40,"NO",null,0]
[null,{"$f":"B640+1","v":595},"FLEXY E-WON FBL3202_01/S 3G GSM MODEM",30,"NO",null,0]
[null,596,"FLEXY E-WON FLEXY 20200_00MA/S E-WON (ETHERNET&SERIAL)",50,"NO",null,0]
[null,597," E-WON FLEXY  205",50,"NO",null,0]
[null,598,"EWANT1A AERIAL",30,"NO",null,0]
[null,599,"SD-Card Ewon SD-card\n",100,"NO",null,0]
[null,600,"FLB3204 _00/S 4G MODEM",40,"NO",null,0]
[null,601,"EW-Netgate XG-7100 1U BASE PFSENSE+ SECURITY GATEWAY\n",5,"NO",null,0]
[null,602,"E520201  VPN server upto 100 suggested users\n",5,"NO",null,0]
[null,603,"HACH 1895000 TURBIDITY GLOBE",9,"NO",null,0]
[null,604,"HACH 4503400 TURBIDITY GLOBE",9,"NO",null,0]
[null,605,"HACH TU5300 PART NO: LXV445.99.00002",6,"NO",null,0]
[null,606,"HACH SC200 Controllers Part No.: LXV404.99.00502 1610CO162893",6,"NO",null,0]
[null,607,"HACH SC200 General purpose analyser Part No.: LXV404.99.00552",6,"NO",null,0]
[null,608,"HACH TUS300 SC (EPA) LXG445.99.1012 12V",6,"NO",null,0]
[null,609,"HACH SC100 LXV 40 1.52. 00002 09110C2338",6,"NO",null,0]
[null,610,"HACH FLOWFIT W C P A250 CPA-A00 90 DEG BAR",6,"NO",null,0]
[null,611,"HONEY WELL DO6F-1/2A CHLORINE ANALISER ( DEPOLOX4)",12,"NO",null,0]
[null,612,"IQ PAT 2400-M8C SENSORS VIVIBRATION",24,"NO",null,0]
[null,613,"I.T.S.LIQUID LEVEL TRASMITTER TSS 15XLP 19040917mH20 17m",12,"NO",null,0]
[null,614,"I.T.S.LIQUID LEVEL TRASMITTER TSS 10XLP0-10,00 mh 190408 12m",12,"NO",null,0]
[null,615,"MEAN WELLSD-50A-24 POWER SUPPLY",12,"NO",null,{"$f":"F661*D661","v":0}]
[null,616,"MOBREY ROSEMOUNT MEASUREMENT MSP9OOSH-AULTRASONIC LEVEL TRANSMITTER",15,"NO",null,0]
[null,617,"MOBREY MCU 901 WX-A DISPLAY 220V",6,"NO",null,0]
[null,618,"MOBREY MCU 901 WX-A24 DISPLAY 24V",6,"NO",null,0]
[null,619,"MOXA EDS-408A-MM-SC DISPLAY",20,"NO",null,0]
[null,620,"MOXA EDS-508A-MM-SC DISPLAY",20,"NO",null,0]
[null,621,"MOXA RS-232 TCC-100 CONVERTER",20,"NO",null,0]
[null,null,"SCHNEIDER HMI",null,"NO"]
[null,{"$f":"B667+1","v":622},"HMIGTO5310",15,"NO",null,{"$f":"F669*D669","v":0}]
[null,{"$f":"B669+1","v":623},"HMIGTO6310",15,"NO",null,0]
[null,{"$f":"B670+1","v":624},"HMIGTO4310",15,"NO",null,0]
[null,{"$f":"B671+1","v":625},"HMIDT542",15,"NO",null,0]
[null,{"$f":"B672+1","v":626},"HMIDT642",15,"NO",null,0]
[null,null,"PEPPERL +FUCHS EQUIPMENT"]
[null,{"$f":"B673+1","v":627},"PEPPERL +FUCHS HD2-FBPS-1,25.360 POWER SUPPLY PART NO:189516",15,"NO",null,0]
[null,{"$f":"B675+1","v":628},"PEPPERL +FUCHS MBCB-FB-GT",15,"NO",null,0]
[null,629,"PEPPERL +FUCHS KLD2-PL-1.PA",15,"NO",null,0]
[null,630,"PEPPERL +FUCHS KFD2 BR-1.PA.93",15,"NO",null,0]
[null,631,"PEPPERL +FUCHS KFD2 HMM-16",15,"NO",null,0]
[null,632,"PEPPERL +FUCHS F1-DO-R-Y41610",15,"NO",null,0]
[null,633,"PROSOFT TECHNOLOGY RLX2-1FH24 E-E ANTENNA",15,"NO",null,0]
[null,null,"PRODESIGN EQUIPMENT"]
[null,{"$f":"B681+1","v":634},"PRODESIGN RTU",20,"NO",null,0]
[null,635,"PRODESIGN FXT009 SIERRA WIRELESS MODERM",30,"NO",null,0]
[null,636,"PRODESIGN 410-530 12/24V ISOLATED PSU",20,"NO",null,0]
[null,637,"PRODESIGN RS232/RS485 ISOLATOR",20,"NO",null,0]
[null,638,"PRODESIGN 392-355 MH ",20,"NO",null,0]
[null,639,"PRODESIGN TDCRLPU 151-110-155 LIGHTNING PROTECTOR",20,"NO",null,0]
[null,640,"PRODESIGN 420-1000 PROGRAMMABLE ISOLATED SIGNAL CONDITIONER",20,"NO",null,0]
[null,641,"PRODESIGN SD-50A-24 INPUT DC 12V(9.2-18V) 7A POWER SUPPLY",20,"NO",null,0]
[null,642,"PRO VISTA TECNOLOGY ISC1000 MINI ISC  SOLA REGULATOR",20,"NO",null,0]
[null,643,"RHOMBERG 0-100 KPA ½” BSP",15,"NO",null,0]
[null,644,"RHOMBERG 0-250 KPA 1/2 “ BSP",15,"NO",null,0]
[null,645,"RHOMBERG 0-600 KPA ½” BSP",15,"NO",null,0]
[null,646,"RHOMBERG 0-1000 KPA ½” BSP",15,"NO",null,0]
[null,647,"RHOMBERG 0-4000 KPA ½” BSP",15,"NO",null,0]
[null,648,"RHOMBERG 0-6000 KPA ½” BSP",15,"NO",null,0]
[null,649,"RHOMBERG 0-100 KPA ½” BSP",15,"NO",null,0]
[null,650,"SA GAUGE 0-1600 KPA/16BAR PT1-16B",15,"NO",null,0]
[null,651,"SA GAUGE 0-1000KPA/10BAR PT1-10B",12,"NO",null,0]
[null,null,"SCHNEIDER QUANTUM PLCS EQUIPMENT"]
[null,{"$f":"B700+1","v":652},"SCHNEIDER ELECTRIC 140 CPU 65150 PENTIUM CONTROLLER  CPU UNITY",10,"NO",null,0]
[null,653,"SCHNEIDER ELECTRIC 140 ACO 02000 4CH ANALOGUE OUT VOLTAGE",10,"NO",null,0]
[null,654,"SCHNEIDER ELECTRIC 140 ACI 0300 ANA IN 8CH UNIPOLAR",30,"NO",null,0]
[null,655,"SCHNEIDER ELECTRIC 140 CPS 1142ORSTD EXCH",15,"NO",null,0]
[null,656,"SCHNEIDER ELECTRIC 140 CRA 31200 R10 DROP E/IP QUANTUM",10,"NO",null,0]
[null,657,"SCHNEIDER ELECTRIC 140 CRP 31200 ETHERNET RIO HEAD",10,"NO",null,0]
[null,658,"SCHNEIDER ELECTRIC 140 DAI 74000 AC IN 230V",20,"NO",null,0]
[null,659,"SCHNEIDER ELECTRIC 140 DDI 35300 DC IN 24V 4x8 DISCRETE INPUT MODULE",20,"NO",null,0]
[null,660,"SCHNEIDER ELECTRIC 140 DDI 84100 DC IN 10-60V 8x2 SINK",20,"NO",null,0]
[null,661,"SCHNEIDER ELECTRIC 140 DDI 67300IN 125V 3x8 MODULE INPUT",20,"NO",null,0]
[null,662,"SCHNEIDER ELECTRIC 140 DDM 39000 MODULE 24VDC INPUT/OUTPUT",20,"NO",null,0]
[null,663,"SCHNEIDER ELECTRIC 140 DRA 84000 RELAY OUT 16x11 NO",20,"NO",null,0]
[null,664,"SCHNEIDER ELECTRIC 140 DDO 35300 DC OUT 24 V 4x8",20,"NO",null,0]
[null,665,"SCHNEIDER ELECTRIC 140 DRC 8300 RELAY OUT 8x1 NO/NC",20,"NO",null,0]
[null,666,"SCHNEIDER ELECTRIC 140 XTS 00200 TERMINAL STRIP 40 POINT",20,"NO",null,0]
[null,667,"SCHNEIDER ELECTRIC 140 XBP 0100 BACKPLANE",10,"NO",null,0]
[null,668,"SCHNEIDER ELECTRIC 140 XBP 1600 36 SLOTS",10,"NO",null,0]
[null,{"$f":"B718+1","v":669},"SCHNEIDER ELECTRIC ABL8 REM 24050 OPTIMUM POWER SUPPLY",10,"NO",null,0]
[null,670,"Profibus PRM Module, Part No.: TCSEGPA23F14F",10,"NO",null,0]
[null,671,"SCHNEIDER ELECTRIC ABL8 RPS24100 UNIVERSAL POWER SUPPLY",10,"NO",null,0]
[null,null,"SCHNEIDER ELECTRIC M340 PLC EQUIPMENT"]
[null,{"$f":"B721+1","v":672},"SCHNEIDER ELECTRIC BMX P342000 CPU 340 MODBUS",20,"NO",null,0]
[null,673,"SCHNEIDER ELECTRIC BMX CPS 3500  HIGH POWER SUPPLY",15,"NO",null,0]
[null,{"$f":"B724+1","v":674},"SCHNEIDER ELECTRIC BMX AM10810 ANA 8U/I IN ISOLATED FAST",20,"NO",null,0]
[null,675,"SCHNEIDER ELECTRIC BMX NOE0100 ETHERNET 10/100 RI45",15,"NO",null,0]
[null,676,"SCHNEIDER ELECTRIC BMX XBP 08008 SLOTS BACKPLANE",10,"NO",null,0]
[null,677,"SCHNEIDER ELECTRIC BMX XBP 1200 12 SLOTS BACKPLANE ",10,"NO",null,0]
[null,678,"SCHNEIDER ELECTRIC BMX XBP 0600 6 SLOTS",10,"NO",null,0]
[null,679,"SCHNEIDER ELECTRIC BMX CPS 200 STANDARD AC POWER SUPPLY",15,"NO",null,0]
[null,680,"SCHNEIDER ELECTRIC BMX DDI 3202K DIG 321 SINK",20,"NO",null,0]
[null,681,"SCHNEIDER ELECTRIC EGX100MG ETHERNET GATEWAY",15,"NO",null,0]
[null,682,"SCHNEIDER ELECTRIC EGX150 ETHERNET GATEWAY LINK 150","10","NO",null,0]
[null,{"$f":"B733+1","v":683},"SCHNEIDER ELECTRIC STBDD3600K 6PT KIT CONNS, BASE",10,"NO",null,{"$f":"F734*D734","v":0}]
[null,{"$f":"B734+1","v":684},"SCHNEIDER ELECTRIC STBACO0220K ANALOG C OUT 2CH 16 BIT",10,"NO",null,0]
[null,685,"SCHNEIDER ELECTRIC STBNDP2212 PROFIBUS DP NIM",10,"NO",null,0]
[null,null,"SCHNEIDER ELECTRIC TSX PREMIUM PLC EQUIPMENT"]
[null,{"$f":"B736+1","v":686},"SCHNEIDER ELECTRIC TSX ASY 410 4Q ANA HL 150",10,"NO",null,{"$f":"F738*D738","v":0}]
[null,687,"SCHNEIDER ELECTRIC TSX AEY 810 81 ANA HIGH LEVEL",10,"NO",null,0]
[null,{"$f":"B739+1","v":688},"SCHNEIDER ELECTRIC TCSESUO83FNO INDUSRIAL ETHERNET",20,"NO",null,0]
[null,{"$f":"B740+1","v":689},"SCHNEIDER ELECTRIC TSXPS73634M PROCESS UNIT",5,"NO",null,0]
[null,690,"SCHNEIDER ELECTRIC TSXPSY2600M POWER SUPPLY",10,"NO",null,0]
[null,691,"SCHNEIDER ELECTRIC TSXDEY32D2K SINK CONN",10,"NO",null,0]
[null,692,"SCHNEIDER ELECTRIC TCSESMO83F2CUO CONNEXIUM MANAGED SWITCH",25,"NO",null,0]
[null,693,"SCHNEIDER ELECTRIC TBUABR20-6000 ACCUTECH BR20 BASE RADIO",6,"NO",null,0]
[null,694,"SCHNEIDER ELECTRIC TBUAAVFGPNOOA RADIO TRANSMITTER",6,"NO",null,0]
[null,695,"SCHNEIDER ELECTRIC XBTGT7340 15” COLOUR TOUCH PANEL TFY",2,"NO",null,0]
[null,null,"SCHNEIDER ELECTRIC M580 PLC EQUIPMENT"]
[null,{"$f":"B747+1","v":696},"BMXDAI1602",30,"NO",null,0]
[null,{"$f":"B749+1","v":697},"BMXDAO1605",30,"NO",null,0]
[null,{"$f":"B750+1","v":698},"BMXFTW308S",20,"NO",null,0]
[null,{"$f":"B751+1","v":699},"BMXFCW303",20,"NO",null,0]
[null,{"$f":"B752+1","v":700},"BMXAMO0802",30,"NO",null,0]
[null,701,"BMXDDO3202K",30,"NO",null,0]
[null,702,"BMXDDI3202K",30,"NO",null,0]
[null,703,"BMXNOM0200",30,"NO",null,0]
[null,704,"BMXFCW301S",30,"NO",null,0]
[null,{"$f":"B757+1","v":705},"BMXFTB2820",50,"NO",null,0]
[null,{"$f":"B758+1","v":706},"BMXFTB2010",50,"NO",null,0]
[null,{"$f":"B759+1","v":707},"BMXAMI0810",30,"NO",null,0]
[null,708,"BMXDDI1602",10,"NO",null,0]
[null,709,"BMEP582040",10,"NO",null,0]
[null,710,"BMXCPS3500",20,"NO",null,0]
[null,711,"BMEXBP1200",10,"NO",null,0]
[null,712,"BMEXBP0800",10,"NO",null,0]
[null,713,"SCHNEIDER ELECTRIC BMX AM 10410 ISOLATOR",20,"NO",null,0]
[null,714,"SCHNEIDER ELECTRICBMX P342020 ETHERNET MODBUS",10,"NO",null,0]
[null,715,"SCHNEIDER ELECTRIC BMX DRA 1605 RELAY",20,"NO",null,0]
[null,716,"SCHNEIDER ELECTRIC 8B-2016-W34 VGA-TFT 10.4",10,"NO",null,0]
[null,717,"SCHNEIDER ELECTRIC 8B-2016-W455 VGA-TFT",10,"NO",null,0]
[null,718,"SENSUS 10BAR PART NUMBER:182056 PRESSURE SENSOR",30,"NO",null,0]
[null,719,"SENSUS 20 BAR PART NUMBER: 182077 PRESSURE SENSOR",30,"NO",null,0]
[null,720,"SENSUS 40 BAR PART NUMBER: 243900 PRESSURE SENSOR",30,"NO",null,0]
[null,721,"SENSUS REED SWITH: READ 01 IP68 WITHPLUGS",30,"NO",null,0]
[null,722,"SENSUS COSMOS DATA LOGGER: IP68: 2 CHANNELS",30,"NO",null,0]
[null,723,"SENSUS HRI-MEI B4/32ms/10L/DN40-125 EXTERNAL POWER SUPPLY",30,"NO",null,0]
[null,null,"SIEMENS PLC EQUIPMENT"]
[null,{"$f":"B776+1","v":724},"Siemens RTU 3030C",20,"NO",null,0]
[null,{"$f":"B778+1","v":725},"SIEMENS EMAI 4x12 BIT ANA INPUT MODULE",20,"NO",null,0]
[null,{"$f":"B779+1","v":726},"SIEMENS SM 1231 AI 8x13 BIT ANA INPUT MODULE",20,"NO",null,0]
[null,{"$f":"B780+1","v":727},"SIEMENS SM1223 DQ 16 MODULE DIGITAL INPUT/OUTPUT",20,"NO",null,0]
[null,{"$f":"B781+1","v":728},"SIEMENS CM1241 RS 422/485 COMMUNICATION MODULE",20,"NO",null,0]
[null,729,"SIEMENS SITOP PSU100S 6EP1332-ISH43 POWER SUPPLY ",20,"NO",null,0]
[null,730,"SIEMENS KTP700 BASICPANEL",10,"NO",null,0]
[null,731,"SIEMENS SITOP UPS1100  BATTERY MODUL",10,"NO",null,0]
[null,732,"SIEMENS RS 422/485BASIC COMMUNICATION MODULE",10,"NO",null,0]
[null,733,"SIEMENS CP1242-7 COMMUNICATION PROCESSOR",10,"NO",null,0]
[null,734,"SIEMENS SITOP UPS 1600 POWER SUPPLY",10,"NO",null,0]
[null,735,"SIEMENS NEC CLASS 2 POWER SUPPLY",10,"NO",null,0]
[null,736,"SIEMENS 1214C CPU MODULE",10,"NO",null,0]
[null,737,"SIEMENS SM 1232 AQ 4x14 BIT ANALOGUE OUTPUT MODULE",10,"NO",null,0]
[null,738,"SIEMENS PRESSURE TRANSMITTER 0-10 BAR",50,"NO",null,0]
[null,739,"SIEMENS PRESSURE TRANSMITTER 0-16 BAR",50,"NO",null,0]
[null,740,"SIEMENS 7ME6920-1AA30-1AAO",10,"NO",null,0]
[null,741,"SIEMENS 0-10 BAR 7MF1567-3CA-001GA1 PRESSURE TRANSMITTER",20,"NO",null,0]
[null,742,"SIEMENS CTRANS1P7ML52211DB11",10,"NO",null,0]
[null,743,"STUBBE DFM 160-350 2215870030 25-250-I/min WASSER 10/65 FA16-61906 ",20,"NO",null,0]
[null,744,"SWIFT 316/SS/RTD/230 68778 150MM RTD",50,"NO",null,0]
[null,745,"SWIFT 316/SS/RTD/110 6877 210MM RTD",50,"NO",null,0]
[null,746,"TPS BUFFER 4.01 PH BUFFER",50,"NO",null,0]
[null,747,"TPS BUFFER 7.00 PH BUFFER",50,"NO",null,0]
[null,748,"TPS 122306 STANDARD SOLUTION CONDUCTIVITY",50,"NO",null,{"$f":"F802*D802","v":0}]
[null,749,"TPS 11228 5M PH SENSOR CABLES",20,"NO",null,0]
[null,750,"TERRA WAVE SOLUTION T24085P13606 PATCH ANTENNA",10,"NO",null,0]
[null,751,"TERRA WAVE SOLUTION TW-ART-MOUNT UNIVERSAL ARTICULATING MODULE",10,"NO",null,0]
[null,null,"VEGA EQUIPMENT"]
[null,{"$f":"B805+1","v":752},"VEGA BAR 82 2601950/003 0-60 BAR LEVPRESSURE TRANSMITTER",20,"NO",null,{"$f":"F807*D807","v":0}]
[null,753,"VEGAPULS C31 Radar Level Part No.: RA-222 229",50,"NO",null,0]
[null,754,"VEGAPULS  C21 Part No.: RA-222 22M",50,"NO",null,0]
[null,755,"VEGAMET 841",15,"NO",null,0]
[null,756,"PLICSCOM",10,"NO",null,0]
[null,757,"VEGAMET 842",15,"NO",null,0]
[null,758,"VEGAMET 381",15,"NO",null,0]
[null,759,"VEGA PULSE WL 61 RADA LEVEL 15M PART NO: 2601950/1",30,"NO",null,0]
[null,null,"WAGO EQUIPMENT"]
[null,{"$f":"B814+1","v":760},"WAGO 787-1662/006-1000 ELECTRIC CIRCUIT BREAKER",20,"NO",null,0]
[null,761,"750-362 Fieldbus Coupler ETHERNET; 3rd Generation",100,"NO",null,0]
[null,762,"WAGO 2787-2146",20,"NO",null,0]
[null,763,"WAGO ECO POWER 787-712 POWER SUPPLY",20,"NO",null,0]
[null,764,"WAGO 750-455",50,"NO",null,0]
[null,765,"WAGO 750-402",50,"NO",null,0]
[null,766,"WAGO 750-430",50,"NO",null,0]
[null,767,"750-352/040-000 FIELDBUS COUPLER ETHERNET 3RD GENERATION",50,"NO",null,0]
[null,768,"WAGO 753-110 PLUG",50,"NO",null,0]
[null,769,"WAGO 753- 455 4AI",50,"NO",null,0]
[null,770,"WAGO 750-602 POWER SUPPLY MODULE",50,"NO",null,0]
[null,771,"WAGO 753-402 4DI",50,"NO",null,0]
[null,772,"WAGO 857-423 ISOLATION AMPLIFIER CRRENT AND VOLTAGE INPUT SIGNAL 2XCURRENT OUTPUT SIGNAL",50,"NO",null,0]
[null,773,"WAGO 857-451 ",50,"NO",null,0]
[null,774,"WAGO 857-560",50,"NO",null,0]
[null,775,"WAGO 857-403",50,"NO",null,0]
[null,776,"WAGO 857-801",50,"NO",null,0]
[null,777,"WAGO 7500602",50,"NO",null,0]
[null,778," WAGO 210-722",50,"NO",null,0]
[null,779,"WAGO 750-923",50,"NO",null,0]
[null,780,"WAGO 221-412",50,"NO",null,0]
[null,781,"WAGO 221-415",50,"NO",null,0]
[null,782,"WAGO 221-413",50,"NO",null,0]
[null,783,"WAGO 750-921",50,"NO",null,0]
[null,784,"WAGO 859-408/000-005",40,"NO",null,0]
[null,785,"WAGO 859-408/000-006",40,"NO",null,0]
[null,786,"WAGO 750-600 END MODULE",100,"NO",null,0]
[null,787,"WATSON MARLOW 050.914N EMD 181129-202843 530 UN/REM IP66 DOSING PUMP ZA VIN 4BAR",30,"NO",null,0]
[null,788,"WATSON MARLOW 520 REM 0-2 BAR 0-30 PSI ROTA",30,"NO",null,0]
[null,789,"WATSON MARLOW 520 REM 2-4 BAR 30-60 PSI ROTA",30,"NO",null,0]
[null,{"$f":"B845+1","v":790},"WATSON MARLOW 520 REM 4-7 BAR 60-100 PSI ROTA",30,"NO",null,0]
[null,791,"WATSON MARLOW 050.716N.EHO 520 Bpn/REH PROFIBUS LOAD SURE DOSING PUMP S 313066 ZA VIN 4BAR",30,"NO",null,0]
[null,792,"WALLANCE &TIERNAN SFCPC EVOQUA 230VAC 100-240V-50/60HZ 15W 42 CONTROLLER",15,"NO",null,0]
[null,793,"WALLANCE &TIERNAN DEPOLOX 5 PART W3T162565 SENSOR",15,"NO",null,0]
[null,794,"WIKA 0-6 BAR UPT-20 –ZZZ-KA-AA-BG360-GDS2Z-Z PART NO:14107319",15,"NO",null,0]
[null,795,"WIKA 0-10 BAR UPT-20 –ZZZ-KA-AA-BG416-GDS2Z-Z PART NO:14104581",15,"NO",null,0]
[null,796,"WIKA 0-16 BAR UPT-20 –ZZZ-KA-AA-BG416-GDS2Z-Z PART NO:14104581",15,"NO",null,0]
[null,797,"WEIDMULLER QO6-17966-140902-00 POWER SUPPLY",30,"NO",null,0]
[null,798,"WEIDMULLER QO6-17966-160502-01 POWER SUPPLY",30,"NO",null,0]
[null,799,"WEIDMULLER 1469480000 POWER SUPPLY",30,"NO",null,0]
[null,800,"WEIDMULLER QO6-17966-150209-00 CP DM 10",30,"NO",null,0]
[null,801,"WEIDMULLER QO6-17966-150112-00 POWER SUPPLY",30,"NO",null,0]
[null,802,"12V 102A/H Royal Batteries ",200,"NO",null,0]
[null,803,"CS3 12v 7A/H Batteries",200,"NO",null,0]
[null,804,"Battery charger 12V DC - Smart 15 12V",20,"NO",null,0]
[null,805,"Inverter - FCS-3K-VP-3000w",15,"NO",null,0]
[null,806,"Single Phase UPS - UPS 003505MP105 5kva 1Ph",5,"NO",null,0]
[null,807,"Three Phase UPS - UPS0035-3PH-MP1055kva 3ph",5,"NO",null,0]
[null,808,"Eaton UPS - Eaton95x1000i",15,"NO",null,0]
[null,809,"Eaton UPS - Eaton5E11001USB",15,"NO",null,0]
[null,810,"WEIDMULLER FBCON PA CG 8 WAY",10,"NO",null,0]
[null,811,"WEIDMULLER FBCON DP M12 1 WAY",10,"NO",null,0]
[null,812,"WEIDMULLER FB CON PA CG/M12 8 WAY OVP",10,"NO",null,0]
[null,813,"WIKA UPT20 PRESSURE INDICATOR 0-16 BAR",15,"NO",null,0]
[null,null,"CENTRAL DEPOT CONTROL ROOM VIDEO WALLING EQUIPMENT"]
[null,{"$f":"B869+1","v":814},"HPE ProLiant DL325 Gen 10 AMD EPYC 7601 180W 1P 2T-16LR P408i-a Premium 10NVMe 2×1600W  SERVER",5,"NO",null,{"$f":"F871*D871","v":0}]
[null,815,"Alpha FX Video Wall Controller",5,"NO",null,0]
[null,816,"CINEMASSIVE CINEVIEW VIDEO WALL",5,"NO",null,0]
[null,817,"LOGIC SUPPLY TM600",5,"NO",null,0]
[null,818,"Pressure Recorder USB Communication cable - Model IRDA",10,"NO",null,0]
[null,819,"Pressure Recorder - Model TRIDP ",30,"NO",null,0]
[null,null,"SUB-TOTAL",{"$nulls":3},{"$f":"SUM(G10:G876)","v":0}]
[]
[]
[]
[null,null,"Total for all  Deliverables",{"$f":"G877","v":0}]
[null,null,"Disbursements at 12% of Total for all Deliverables",{"$f":"D881*0.12","v":0}]
[null,null,"Transport Costs at 8%",{"$f":"D881*0.08","v":0}]
[null,null,"SUBTOTAL before VAT",{"$f":"SUM(D881:D883)","v":0}]
[null,null,"VAT (if applicable)",{"$f":"D884*0.15","v":0}]
[null,null,"FORM OF OFFER \n(for commercial evaluation purposes)",{"$f":"SUM(D884:D885)","v":0}]
[]
[null,null,"NOTE : Goods/services will be called-off as and when required by Rand Water after the award of the contract. Rand Water reserves the right not to acquire all the estimated quantities at once. Suppliers are therefore advised not to procure goods/services upfront and only procure upon the instruction of Rand Water."]

{"sheet":"GROUP 1 - LEVEL & PRESSUR EQUIP","index":1,"n_rows":175,"n_cols":7,"rows_kept":175,"merged":[[1,3,1,6],[2,3,2,6],[3,3,3,6],[174,2,174,6]]}
[]
[null,null,"BID NUMBER","RW10392309/21"]
[null,null,"BID DESCRIPTION","SUPPLY & DELIVERY OF INSTRUMENTATION AND AUTOMATION EQUIPMENT SPARES"]
[null,null,"BIDDER NAME"]
[]
[]
[null,null,"DELIVERABLES (DESCRIPTION)","QTY (A)","UNIT OF MEASURE","RATE (B)","Total (A x B)"]
[null,null,"LEVEL EQUIPMENT"]
[null,null,"VEGA EQUIPMENT"]
[null,1,"VegaPuls31 Radar Level Part No.: RA-222 229",20,"NO",null,{"$f":"F10*D10","v":0}]
[null,{"$f":"B10+1","v":2},"VegaPuls C21 Part No.: RA-222 22M",80,"NO",null,{"$f":"F11*D11","v":0}]
[null,{"$f":"B11+1","v":3},"VegaPuls64 – Part No.: PS64.RWCORELAXBXCCHXKMXXX (elD: ZC4126959)",20,"NO",null,0]
[null,4,"Vegapuls61 WL Part No.: PSWL61.XXBXCHKAX",10,"NO",null,0]
[null,5,"Vegascan 693 Part No.: SCAN693.XXE",10,"NO",null,0]
[null,6,"VEGASON 61 Model: 61XXAGHKMXX; Part No.: 1326690/001",10,"NO",null,0]
[null,7,"Vega level sensor , -20…+80*C, Type: SW 72, 40 KHz, 10367897, Serial no:10343969",20,"NO",null,{"$f":"F16*D16","v":0}]
[null,8,"VegaMET 391  Controller  MET391.XXHXX Part No.: 2053013/001",10,"NO",null,0]
[null,9,"VegaPULSE WL 61 Radar Level 15m Part No.: 2560934/1",10,"NO",null,0]
[null,10,"VegaSON62  ProfibusPA Level Tx 0.4-8m   Part No.: 2051554/001",10,"NO",null,0]
[null,11,"VEGASON62 – SON62.XXAGPKMXX",10,"NO",null,0]
[null,12,"VEGAPULS C31 Radar Level Part No.: RA-222 229",50,"NO",null,{"$f":"F21*D21","v":0}]
[null,13,"VEGAPULS  C21 Part No.: RA-222 22M",50,"NO",null,0]
[null,14,"VEGAMET 841",15,"NO",null,0]
[null,15,"PLICSCOM",10,"NO",null,0]
[null,16,"VEGAMET 842",15,"NO",null,0]
[null,17,"VEGAMET 381",15,"NO",null,0]
[null,18,"VEGA PULSE WL 61 RADA LEVEL 15M PART NO: 2601950/1",30,"NO",null,0]
[null,19,"VEGAPLUS 61 by VEGA Range 0.25…5m, Process Pressure -20…+200kPa, (-.2…2Bar) Temperature -40. +80-degree C, Electronic 4…20mA HART, Power Supply 12…36V Protection: IP66/67",20,"NO",null,0]
[null,20,"Vega level sensor , -20…+80*C, Type: SW 72, 40 KHz, 10367897, Serial no:10343969",20,"NO",null,0]
[null,21,"VEGAMET 391 by VEGA Ambient Temperature -20. +60-degree C, Electronic 4…20mA HART, Power Supply 20…253VAC/DC, 50-60HZ, Protection: IP66/67",20,"NO",null,0]
[null,22,"Vegamet 381, Type: met381.XX, Temperature: -20..6*C, Protection:IP20 / IP40, Order no: 000000/000, Serial no:42036183",20,"NO",null,0]
[null,23,"VEGA DIS12 by VEGA Type: DIS12.XBXX, Protection: IP66/IP67 ",2,"NO",null,0]
[null,24,"MiniMe Sensor by VEGA P/N:LU13 – 5001, ",2,"NO",null,0]
[null,25,"VEGA EL 4 by VEGA Type: EL4X5VTKX , LEMGTH 400mm",2,"NO",null,0]
[null,26,"PLICS Radio R62 by VEGA Temperature 40-80 degree, Output 9.6-48V, 24-42V, Frequency 932-928mHZ",5,"NO",null,0]
[null,27,"Level indicators for slaker house, Make VEGAMET 381, Signal 4-20mA",10,"NO",null,0]
[null,28,"Vegamet 381, Type: met381.XX, Temperature: -20..6*C, Protection:IP20 / IP40, Order no: 000000/000, Serial no:42036183",20,"NO",null,0]
[null,null,"ENDRESS & HAUSER EQUIPMENT"]
[null,{"$f":"B37+1","v":29},"Endress & Hauser Prosonic FDU Part No.: 80-RG2A",10,"NO",null,{"$f":"F39*D39","v":0}]
[null,{"$f":"B39+1","v":30},"Endress & Hauser FMU 90 Cover P3+Display Field housing PC Part No.: 52025699 Commodity Code: 39269097",10,"NO",null,0]
[null,{"$f":"B40+1","v":31},"Endress & Hauser Level Transmitter Prosonic S FMU90 Part No.: FMU 90-R21CA213AA1A",10,"NO",null,0]
[null,32,"Endress & Hauser FDU91 Prosonic S Part No.: FDU91-RG2AA",10,"NO",null,0]
[null,33,"Endress & Hauser Prosonic T FMU Part No.: FMU 230E-AA31",10,"NO",null,0]
[null,34,"Prosonic level sensor, 4 bar/58psi (at20 ~C/ 68~F), -40~C (-40~F), 80~C (176~F)",30,"NO",null,0]
[null,null,"SIEMENS EQUIPMENT"]
[null,{"$f":"B44+1","v":35},"Siemens level probes, Order no: 7ML51101De074AF1, Serial no: PBD/LD0606/77, Enclosure: 1P68 Type6, Cable Entry: M20x1.5, Am Temp:40* to +80*C, Power rating : 24VDC, Nom, 30VDC max,, 4-20mA",20,"NO",null,{"$f":"F46*D46","v":0}]
[null,null,"MISCELLANEOUS"]
[null,{"$f":"B46+1","v":36},"MOBREY ROSEMOUNT MEASUREMENT MSP9OOSH-AULTRASONIC LEVEL TRANSMITTER",15,"NO",null,{"$f":"F48*D48","v":0}]
[null,{"$f":"B48+1","v":37},"Level Switches for Chlorine plant, Model LS-7 Level switch, 20VA,120-240VAC",10,"NO",null,{"$f":"F49*D49","v":0}]
[null,{"$f":"B49+1","v":38},"Milltronics Siem Multi Range 200, Power rating , 100/115/200/230V +-15%, 15 VA, 50/60Hz, Operating temp:-20*C to 50*C",20,"NO",null,{"$f":"F50*D50","v":0}]
[null,null,"PRESSURE TRANSMITTER"]
[null,null,"WIKA EQUIPMENT"]
[null,{"$f":"B50+1","v":39},"Wika Pressure Transmitters & Pressure Gauge C/W Chemical Seal Range: 0-10Bar",30,"NO",null,{"$f":"F53*D53","v":0}]
[null,{"$f":"B53+1","v":40},"Wika Pressure Transmitters LS-10 Part No.: 14067747",20,"NO",null,0]
[null,41,"WIKA 0-6 BAR UPT-20 –ZZZ-KA-AA-BG360-GDS2Z-Z PART NO:14107319",15,"NO",null,0]
[null,42,"WIKA 0-10 BAR UPT-20 –ZZZ-KA-AA-BG416-GDS2Z-Z PART NO:14104581",15,"NO",null,0]
[null,43,"WIKA 0-16 BAR UPT-20 –ZZZ-KA-AA-BG416-GDS2Z-Z PART NO:14104581",15,"NO",null,0]
[null,44,"WIKA UPT20 PRESSURE INDICATOR 0-16 BAR",15,"NO",null,0]
[null,45,"Wika Pressure gauge alarm contact, Type cont 821.2, ",10,"NO",null,0]
[null,null,"IFM EQUIPMENT"]
[null,{"$f":"B59+1","v":46},"IFM Pressure Transducer PA3023 PA-025-RBR14_A-ZVG",10,"NO",null,{"$f":"F61*D61","v":0}]
[null,47,"IFM Pressure Switch 10 bar Part No.: 7007",10,"NO",null,0]
[null,48,"IFM Pressure Switch 25 bar PA3024",10,"NO",null,0]
[null,49,"IFM PA3023  Pressure sensor  0-150Bar PA-025-RBR14-A-ZVG/US//V",15,"NO",null,0]
[null,50,"IFM PN7007  Pressure sensor  0-10Bar                                                      ",10,"NO",null,0]
[null,51,"IFM Electronic, D-45127 Essen 20-30v",5,"NO",null,0]
[null,null,"Barksdale Equipment",{"$nulls":3}," R-   "]
[null,{"$f":"B66+1","v":52},"Barksdale Pressure Transmitter 5W2000 (10-15Bar) Part No.: 0428-127",20,"NO"]
[null,53,"Barksdale Pressure sensor  0-15Bar Part No.: 0428-127",20,"NO",null,{"$f":"F69*D69","v":0}]
[null,null,"SIEMENS"]
[null,{"$f":"B69+1","v":54},"Siemens SITRANS P Pressure Transmitter Profibus PA 0 - 100Bar  Part No.: MF4034-1EA00-1AB7-Z",10,"NO",null,{"$f":"F71*D71","v":0}]
[null,55,"Siemens SITRANS P Pressure Transmitter Profibus PA 0 - 16Bar  Part No.: MF4033-1DA00-1AB6-Z",10,"NO",null,0]
[null,56,"Pressure Transmitter (SIEMENS) Output HART@ 4-20Ma, Power supply: 10.5 – 45VDC Over ranging limits -1 – 32 Bar",15,"NO",null,0]
[null,57,"Siemens Pressure Transmitter , D76181krishe, Measuring span 16 bar, Over range limit1-32",10,"NO",null,0]
[null,58,"Seimens Transmitter for differential pressure, Rang 16mbar-16mbar",10,"NO",null,0]
[null,59,"SIEMENS PRESSURE TRANSMITTER 0-10 BAR",50,"NO",null,0]
[null,60,"SIEMENS PRESSURE TRANSMITTER 0-16 BAR",50,"NO",null,0]
[null,61,"SIEMENS 0-10 BAR 7MF1567-3CA-001GA1 PRESSURE TRANSMITTER",20,"NO",null,0]
[null,62,"Siemens Pressure Transmitter Sitrans P 7MF034-1EA00-1AB7-2",10,"NO",null,0]
[null,null,"ENDRESS & HAUSER"]
[null,{"$f":"B79+1","v":63},"Endress & Hauser iTemp  PT100 - PA Converter  Part No.: TMT84-1009/101",10,"NO",null,{"$f":"F81*D81","v":0}]
[null,64,"Endress & Hauser Cerabar s TX PMP71-AND1U11GAAA",10,"NO",null,{"$f":"F82*D82","v":0}]
[null,65,"Endress+ Hauser Serial Cerabar M, Oder no PMC51-37AO/O, Oder Code PMC51-A21JAPGCXJA",5,"NO",null,{"$f":"F83*D83","v":0}]
[null,null,"ROSEMOUNT EQUIPMENT"]
[null,{"$f":"B83+1","v":66},"Pressure Transmitter (ROSEMOUNT), Output HART@ 4-20Ma, Power supply: 10.5 – 45VDC",15,"NO",null,{"$f":"F85*D85","v":0}]
[null,null,"FUJI EQUIPMENT"]
[null,{"$f":"B85+1","v":67},"Pressure Transmitter (FUJI) Electronic Output 4…20mA HART, Power Supply 28VDC",15,"NO",null,{"$f":"F87*D87","v":0}]
[null,null,"ASHKROFT EQUIPMENT"]
[null,{"$f":"B87+1","v":68},"ASHKROFT  ½” BOTTOM ENTRY 100MM DAIL 0-1600 KPA",45,"NO",null,{"$f":"F89*D89","v":0}]
[null,{"$f":"B89+1","v":69},"ASHKROFT  ½” BOTTOM ENTRY 100MM DAIL 0-4000 KPA",45,"NO",null,{"$f":"F90*D90","v":0}]
[null,{"$f":"B90+1","v":70},"I.T.S.LIQUID LEVEL TRASMITTER TSS 15XLP 19040917mH20 17m",12,"NO",null,{"$f":"F91*D91","v":0}]
[null,{"$f":"B91+1","v":71},"I.T.S.LIQUID LEVEL TRASMITTER TSS 10XLP0-10,00 mh 190408 12m",12,"NO",null,{"$f":"F92*D92","v":0}]
[null,null,"RHOMBERG EQUIPMENT"]
[null,{"$f":"B92+1","v":72},"RHOMBERG 0-100 KPA ½” BSP",15,"NO",null,{"$f":"F94*D94","v":0}]
[null,{"$f":"B94+1","v":73},"RHOMBERG 0-250 KPA 1/2 “ BSP",15,"NO",null,0]
[null,74,"RHOMBERG 0-600 KPA ½” BSP",15,"NO",null,0]
[null,75,"RHOMBERG 0-1000 KPA ½” BSP",15,"NO",null,0]
[null,76,"RHOMBERG 0-4000 KPA ½” BSP",15,"NO",null,0]
[null,77,"RHOMBERG 0-6000 KPA ½” BSP",15,"NO",null,0]
[null,78,"RHOMBERG 0-100 KPA ½” BSP",15,"NO",null,0]
[null,null,"MISCELLANEOUS"]
[null,{"$f":"B100+1","v":79},"SA GAUGE 0-1600 KPA/16BAR PT1-16B",15,"NO",null,{"$f":"F102*D102","v":0}]
[null,{"$f":"B102+1","v":80},"SA GAUGE 0-1000KPA/10BAR PT1-10B",12,"NO",null,0]
[null,{"$f":"B103+1","v":81},"SENSUS 10BAR PART NUMBER:182056 PRESSURE SENSOR",30,"NO",null,0]
[null,82,"SENSUS 20 BAR PART NUMBER: 182077 PRESSURE SENSOR",30,"NO",null,0]
[null,83,"SENSUS 40 BAR PART NUMBER: 243900 PRESSURE SENSOR",30,"NO",null,0]
[null,84,"SENSUS REED SWITH: READ 01 IP68 WITHPLUGS",30,"NO",null,0]
[null,85,"SENSUS HRI-MEI B4/32ms/10L/DN40-125 EXTERNAL POWER SUPPLY",30,"NO",null,0]
[null,86,"Pressure Gauge, 2,5(63mm)x ¼ BSP, 0-1000kPa black",20,"NO",null,0]
[null,87,"Pressure Gauge Range 0-4000Kpa, 100mm Dial, ½ inch bottom entry female threaded It must have a chlorine compatible diaphragm ",20,"NO",null,0]
[null,88,"Pressure Gauge Range: -500Kpa to 500Kpa, 100mm Dial, ½ inch bottom entry female threaded It must have a chlorine compatible diaphragm",20,"NO",null,0]
[null,89,"Chlorine Gauges Range: 0-600 Bar 100mm Dial, ½ inch bottom entry female threaded It must have a chlorine compatible diaphragm",20,"NO",null,0]
[null,90,"Instrotech 900 Transmitter 1707729",10,"NO",null,0]
[null,91,"Genspec GS4200 Pressure Transmitter 0-16Bar",20,"NO",null,0]
[null,92,"EMA Honeywell pressure switch, 0.5-6 bar max , Druck 16 bar, DCM 6",5,"NO",null,0]
[null,93,"ABB ADJUSTABLE AMING MOUNTING BRACKET A900",15,"NO",null,0]
[null,94,"ABB LLT100 LEVEL TRANSMITTER LAZER TRANSMITTER",15,"NO",null,0]
[null,95,"ABB LST 400YOS15NIP3AIH15C2M5",6,"NO",null,0]
[null,96,"Yokogawa Dp Transmitter , Model EX530A",10,"NO",null,0]
[null,97,"Gauges , Range 0-1000kpa, ½ 1nch male fitting, Glycerine filled, NIP",30,"NO",null,0]
[null,98,"Pressure Gauge C/W Chemical Seal Range: 0 – 1600kPa Dial Size: 100mm Stainless Steel inner Chemical Seal - Teflon Seal (Chlorine) ½” Entry",20,"NO",null,0]
[null,99,"Pressure Gauges Range 0-1600 Kpa, 100mm Dial, ½ inch bottom entry female threaded  It must have a chlorine compatible diaphragm  ",20,"NO",null,0]
[null,100,"Pressure gauge Range: 0-1000 kpa,  100mm Dial,  1/2-inch male fitting diaphragm gauge,   Glycerine filled bottom entry,   NTP",20,"NO",null,0]
[null,101,"Pressure Gauge Range: 0-1600 kpa, 100mm Dial, 1/2-inch male fitting diaphragm gauge Glycerine filled bottom entry NTP",20,"NO",null,0]
[null,102,"Pressure Gauge  Range: 0-4000 kpa, 100mm Dial, 1/2-inch male fitting diaphragm gauge, Glycerine filled bottom entry",20,"NO",null,0]
[null,103,"Pressure gauge Range: 0-2500kpa, 100mm Dial, 1/2-inch male fitting diaphragm gauge,            Glycerine filled bottom entry, NTP  ",20,"NO",null,0]
[null,104,"Manocont Movement Pressure Gauge, All Stainless Steel, ½” BSP Bottom Connection. Range: 0-1000kPa, Fitted To 316L T-Piece, Complete With Transmitter & XWD6001 Chemical Seal, PTFE Coating Of Wetted Parts, For Chlorine Application – Including PTFE Protection Foil For Diaphragm",30,"NO",null,0]
[null,105,"Pressure Gauge -100 – 300kpa ½” 049529 PBBF105504.WB5BC01",10,"NO",null,0]
[null,106,"Pressure Gauge 0-1600kpa ½” PBBF10SS04WC3HC01",10,"NO",null,0]
[null,107,"Pressure Gauge C/W Chemical Seal -100 – 300 kpa",10,"NO",null,0]
[null,108,"Pressure Gauge C/W Chemical Seal 0 – 4000 kpa",10,"NO",null,0]
[null,109,"Unite Electric Chemical Sealed  Pressure Switch Part No.: H100-702",10,"NO",null,0]
[null,110,"Pressure Recorder - Model TRIDP ",30,"NO",null,0]
[null,111,"WATSON MARLOW 520 REM 0-2 BAR 0-30 PSI ROTA",30,"NO",null,0]
[null,112,"WATSON MARLOW 520 REM 2-4 BAR 30-60 PSI ROTA",30,"NO",null,0]
[null,113,"WATSON MARLOW 520 REM 4-7 BAR 60-100 PSI ROTA",30,"NO",null,0]
[null,114,"Isolated Smart Transmitter Output 4- 20Ma, Range: 0_ 1600",2,"NO",null,0]
[null,115,"Pneumatic Equipment (AIR TAC) Pressure range 0-0.8 Mpa (0-8.0Ba), Temperature 5 – 60 degree C, Pressure 1.2Mpa (120ba), Operating Angle +-15 degree, Direction change:4mm(100,200Serialies) or 5mm(300 Serial)",5,"NO",null,0]
[null,null,"VEGA EQUIPMENT"]
[null,{"$f":"B138+1","v":116},"VegaBAR52  0-25Bar Pressure TX Part No.: 1751818/001",10,"NO",null,{"$f":"F140*D140","v":0}]
[null,{"$f":"B140+1","v":117},"VEGA BAR 82 2601950/003 0-60 BAR LEVPRESSURE TRANSMITTER",20,"NO",null,0]
[null,{"$f":"B141+1","v":118},"VEGAPULS C31 Radar Level Part No.: RA-222 229",50,"NO",null,0]
[null,{"$f":"B142+1","v":119},"VEGAPULS  C21 Part No.: RA-222 22M",50,"NO",null,0]
[null,120,"VEGAMET 841",15,"NO",null,0]
[null,121,"VEGAMET 842",15,"NO",null,0]
[null,122,"VEGAMET 381",15,"NO",null,0]
[null,123,"VEGA PULSE WL 61 RADA LEVEL 15M PART NO: 2601950/1",30,"NO",null,0]
[null,124,"VEGA BAR 82 2601950/003 0-60 BAR LEVPRESSURE TRANSMITTER",20,"NO",null,0]
[null,125,"VEGAPLUS 52 by VEGA Range 0 -+2.5 Bar (0...+250kPa), Process Pressure -1…+50kPa (100…+5000kPa), Temperature -40...+120-degree C, Electronic 4…20mA HART Power Supply 12…36V, Protection: IP66/67",20,"NO",null,0]
[null,126,"VEGAPLUS 64 by VEGA Range 0 …+25 Bar (0...+2500kPa), Process Pressure -1…+60kPa (-100…+6000kPa), Temperature -20...+120 degree C, Electronic 4…20mA HART, Power Supply 12…36V, Protection: IP66/67",20,"NO",null,0]
[null,127,"VEGAPLUS 61 by VEGA Range 0 -+2.5 Bar (0. +250kPa), Process Pressure -1…2bar , 100…+200kPa), Electronic 4…20mA HART, Power Supply 9.6…36VDC, Protection:  IP66/67",20,"NO",null,0]
[null,128,"VEGAPLUS 52 by VEGA Range 0 -+2.5 Bar (0...+250kPa), Process Pressure -1…+50kPa (100…+5000kPa), Temperature -40...+120-degree C, Electronic 4…20mA HART Power Supply 12…36V, Protection: IP66/67",20,"NO",null,0]
[null,129,"VEGAPLUS 64 by VEGA Range 0 …+25 Bar (0...+2500kPa), Process Pressure -1…+60kPa (-100…+6000kPa), Temperature -20...+120 degree C, Electronic 4…20mA HART, Power Supply 12…36V, Protection: IP66/67",20,"NO",null,0]
[null,130,"VEGAPLUS 61 by VEGA Range 0 -+2.5 Bar (0. +250kPa), Process Pressure -1…2bar , 100…+200kPa), Electronic 4…20mA HART, Power Supply 9.6…36VDC, Protection:  IP66/67",20,"NO",null,0]
[null,131,"VEGAPLUS 61 by VEGA Range 0.25…5m, Process Pressure -20…+200kPa, (-.2…2Bar) Temperature -40. +80-degree C, Electronic 4…20mA HART, Power Supply 12…36V Protection: IP66/67",20,"NO",null,0]
[null,132,"VEGAMET 391 by VEGA Ambient Temperature -20. +60-degree C, Electronic 4…20mA HART, Power Supply 20…253VAC/DC, 50-60HZ, Protection: IP66/67",20,"NO",null,0]
[null,133,"VEGA DIS12 by VEGA Type: DIS12.XBXX, Protection: IP66/IP67 ",2,"NO",null,0]
[null,134,"MiniMe Sensor by VEGA P/N:LU13 – 5001, ",2,"NO",null,0]
[null,135,"VEGA EL 4 by VEGA Type: EL4X5VTKX , LEMGTH 400mm",2,"NO",null,0]
[null,136,"VEGABAR 52 by VEGA Type BR52.XXGG10HKMAS, Range 0 -0.4 Bar (0. +40kPa), Temperature -40. +120-degree C, Electronic 4…20mA HART, Power Supply 12…36V Protection: IP66/67",10,"NO",null,0]
[null,137,"VEGAPLUS 65 by VEGA Range 1-3 Bar (-100 -300kPa), Process Pressure -1…+50kPa Process Temperature -40…+130-degree C, Electronic 4…20Ma HART, Power Supply 12…36V, Protection: IP66/67",10,"NO",null,0]
[null,138,"VEGABAR 52 by VEGA Type BR52.XXGG10HKMAS, Range 0 -0.4 Bar (0. +40kPa), Temperature -40. +120-degree C, Electronic 4…20mA HART, Power Supply 12…36V Protection: IP66/67",10,"NO",null,0]
[null,139,"VEGAPLUS 65 by VEGA Range 1-3 Bar (-100 -300kPa), Process Pressure -1…+50kPa Process Temperature -40…+130-degree C, Electronic 4…20Ma HART, Power Supply 12…36V, Protection: IP66/67",10,"NO",null,0]
[null,null,"SUB-TOTAL",{"$nulls":3},{"$f":"SUM(G10:G164)","v":0}]
[]
[]
[]
[null,null,"Total for all  Deliverables",{"$f":"G164","v":{"$error":"#REF!"}}]
[null,null,"Disbursements at 12% of Total for all Deliverables",{"$f":"D168*0.12","v":{"$error":"#REF!"}}]
[null,null,"Transport Costs at 8%",{"$f":"D168*0.08","v":{"$error":"#REF!"}}]
[null,null,"SUBTOTAL before VAT",{"$f":"SUM(D168:D170)","v":{"$error":"#REF!"}}]
[null,null,"VAT (if applicable)",{"$f":"D171*0.15","v":{"$error":"#REF!"}}]
[null,null,"FORM OF OFFER \n(for commercial evaluation purposes)",{"$f":"SUM(D171:D172)","v":{"$error":"#REF!"}}]
[]
[null,null,"NOTE : Goods/services will be called-off as and when required by Rand Water after the award of the contract. Rand Water reserves the right not to acquire all the estimated quantities at once. Suppliers are therefore advised not to procure goods/services upfront and only procure upon the instruction of Rand Water."]

{"sheet":"GROUP 2 - ACTUATORS & ACCESSORI","index":2,"n_rows":79,"n_cols":7,"rows_kept":79,"merged":[[1,3,1,6],[2,3,2,6],[3,3,3,6],[78,2,78,6]]}
[]
[null,null,"BID NUMBER","RW10392309/21"]
[null,null,"BID DESCRIPTION","SUPPLY & DELIVERY OF INSTRUMENTATION AND AUTOMATION EQUIPMENT SPARES"]
[null,null,"BIDDER NAME"]
[]
[]
[null,null,"DELIVERABLES (DESCRIPTION)","QTY (A)","UNIT OF MEASURE","RATE (B)","Total (A x B)"]
[null,null,"ACTUATORS"]
[null,null,"AUMA ACTUATORS"]
[null,1,"Auma Actuator Profibus Interface Card  Model: AM-E/A-BUS-PBD-STD",30,"NO",null,{"$f":"F10*D10","v":0}]
[null,{"$f":"B10+1","v":2},"Auma Actuator Profibus Cards Part No.: Z023.241A/06-03",30,"NO",null,0]
[null,{"$f":"B11+1","v":3},"Auma Actuator – Profibus Card Part No.: Z023.241/01",30,"NO",null,0]
[null,4,"Auma Actuator - Optic Fibre Cards Part No.: Z023.241/01-04",30,"NO",null,0]
[null,5,"Auma Actuator – Matic AM Logic Board Part No.: Z013.718D/01",30,"NO",null,0]
[null,6,"Auma Actuator - 24VDC Interface Card Part No.: Z009.636B/03",30,"NO",null,0]
[null,null,"EMG ACTUATORS"]
[null,{"$f":"B15+1","v":7},"EMG Actuator - Profibus Cards Part No.: 23435100567",20,"NO",null,{"$f":"F17*D17","v":0}]
[null,8,"EMG Actuator Card DMC-26",20,"NO",null,0]
[null,null,"BURKERT ACTUATORS"]
[null,{"$f":"B18+1","v":9},"Burkert Actuators ID",40,"NO",null,{"$f":"F20*D20","v":0}]
[null,{"$f":"B20+1","v":10},"Burkert Actuators Complete ID 226463",40,"NO",null,0]
[null,{"$f":"B21+1","v":11},"Burkett Solenoid Valves 24VDC Part No.: 00131421 ",40,"NO",null,0]
[null,{"$f":"B22+1","v":12},"Burkert Actuator 225195  240V 90 DEG 35Nm ",40,"NO",null,0]
[null,13,"Burkert 6519 H 8.0 G1/4 PN 2-8Bar 24VDC 2W  Moore Solenoid",40,"NO",null,0]
[null,14,"Burkett 6519 W 6.0  FLNSCH PN 2-8Bar 24VDC 2W   Moore Solenoid",40,"NO",null,0]
[null,15,"Burkett  Solenoid Diaphragm Valve 6519-0013421",40,"NO",null,0]
[null,16,"Burkett 6213A10.0 NBR 24VDC Solenoid Valve Part No.: 00125653",40,"NO",null,0]
[null,17,"Burkett Actuator 3003 24VAC/DC",40,"NO",null,0]
[null,18,"Burkett Actuator / Valve 8804 Part No.: 00226462",40,"NO",null,0]
[null,19,"Burkett Pneumatic Valve 24VDC Part No.: 00131421",40,"NO",null,0]
[null,20,"Burkett solenoid valve 00126244 WWC, W2 4AL, PRA",20,"NO",null,{"$f":"F31*D31","v":0}]
[null,21,"Burket solenoid valve, 0407G40NBR, FLNSCH PN 2-10 bar, 24 V AC/DC  2W 88897",20,"NO",null,{"$f":"F32*D32","v":0}]
[null,22,"Burkert  solenoid valve 6519 H 8.0, G1/4  PN2-8bar, 230V  50/60Hz 2W, 00132468",20,"NO",null,{"$f":"F33*D33","v":0}]
[null,23,"Burket Fluid control system, Type 0330, Circuit function C, Orifice seal material 2.0 Body material Fkm ms, 10..-10 bar, Port connection , Nominal pressure, 8W-voltage, frequency output",2,null,null,{"$f":"F34*D34","v":0}]
[null,24,"2/2 way Solenoid Valve Manufacturer Burkert Part Number 5281-00-A13,0BBMSGM84-5-024/DC-08",12,"NO",null,{"$f":"F35*D35","v":0}]
[null,25,"Burket solenoid valve Type 6516-6519, 3/2s/20rs/s way, Solenoid valve, 6519 H8.0,  G ¼ PN2-8 bar, 230V 50-60Hz 2W, Identity no: 00132468",20,"NO",null,{"$f":"F36*D36","v":0}]
[null,null,"NOAH ACTUATOR"]
[null,{"$f":"B36+1","v":26},"Noah Actuator NA-019  220V Actuator",3,"NO",null,{"$f":"F38*D38","v":0}]
[null,27,"Noah Actuator SA005L  220V Actuator",3,"NO",null,0]
[null,null,"KINETROL ACTUATOR"]
[null,{"$f":"B39+1","v":28},"Kinetrol Actuators GU9-9NU Type 074-100",15,"NO",null,{"$f":"F41*D41","v":0}]
[null,29,"Kinetrol Actuator Type 074-104 ISON",15,"NO",null,0]
[null,null,"FESTO"]
[null,{"$f":"B42+1","v":30},"Festo solenoid valve Feto NVF 3-MOH, S/2-k-114-EX, 535987 E0SS, 2-10bar, 28-145 psi 220/230V  50/60Hz, 9/7VAIp00/65, MSFW-230-50/060Hz, 4540",20,"NO",null,{"$f":"F44*D44","v":0}]
[null,31,"Festo plastic tubing 8mm PLN-8x1, 25-Sw, Mat-nr 195282, Serial 06-2015(016) Menge 50m ",100,"Meters",null,{"$f":"F45*D45","v":0}]
[null,32,"Festo plastic tubing 6mm, PLN-6x1 –SW, Mat-nr 195281, Serial 02-2016(016) Menge 50m",100,"Meters",null,{"$f":"F46*D46","v":0}]
[null,33,"Festo plastic Tubing 4mm PLN-4 0.7-Sw, Mat-nr-195280, Serial 04-20169(016), Menge 50m",100,"Meters",null,{"$f":"F47*D47","v":0}]
[null,null,"MISCELLANEOUS"]
[null,{"$f":"B47+1","v":34},"Manual pneumatic valves for filter house, Part no 0452 06 13, ¼ inch valve",15,"NO",null,{"$f":"F49*D49","v":0}]
[null,35,"Solenoid valves for filter house, Part no C23BA400-X, 24 V DC",20,"NO",null,0]
[null,36,"Solenoid valves for PAC Plant, Part no 001324650-60Hz",20,"NO",null,0]
[null,37,"Waste valve solenoid for 4C Filter house, Make Numatics, Part no C3BA400-X AIR TO OPEN",20,"NO",null,0]
[null,38,"Numatics solenoid valve, C23BA400X, Outlet valve 24 V Single",20,"NO",null,0]
[null,39,"Numatics solenoid valve, C23BB600X, Inlet valve",20,"NO",null,0]
[null,40,"Iminorgren Solenoid Valve Type UQM/22152/122/16, Serial no: 1823, ISO –code 152 Bar 2-16",10,"NO",null,0]
[null,41,"Neumatics solenoid valve C34BA400-X",20,"NO",null,0]
[null,42,"Norgren solenoid valve 1M1 Norgren Type: UQM/23354/6123/16, Serial no: 2020 ISO-code 356, Bar 2.8-16",20,"NO",null,0]
[null,43,"Camozzi solenoid valve DKM/A-1/30 G 1/2”, MS Schlierber, Art 52XM 1030XGISSA Nr 30024374/001",20,"NO",null,0]
[null,44,"Posiflex Positioner Type 368.00.164",10,"NO",null,{"$f":"F59*D59","v":0}]
[null,45,"Jelpc valve Model SV310-08b-s 0.15-0.5mpa, Order code: SV-1-10-06-B-F-AC220V-W-F",2,"NO",null,0]
[null,46,"Solenoid Valve with 24V coil VSNC-FC-M52-MD-G14-F8, 577257, 2.5-10bar/36-145 psi",20,"NO",null,{"$f":"F61*D61","v":0}]
[null,47,"Solenoid valve, Schrader Bellows, Volts 24DC-Watts 9, Max pressure – 140 Model-K05303549",20,"NO",null,0]
[null,48,"Solenoid valve Schrader Bellows, L70543102429, 24 Volt watt 9, Max pressure 140 Model :K065603549",20,"NO",null,0]
[null,49,"EL-O-MATIC F20 PosiFlex  Electro/Pneumatic Positioner     368.00.164 ",10,"NO",null,{"$f":"F64*D64","v":0}]
[null,{"$f":"B64+1","v":50},"Auma ma Cart, Part no:3838501, Serial no:9SC-10519",10,"NO",null,{"$f":"F65*D65","v":0}]
[null,{"$f":"B65+1","v":51},"Siemens positioner , 9-32V, 5W: 5.00.04, 1.4…7bar, -30…+80*C, Serial  No: N1D6247545670",8,"NO",null,0]
[null,{"$f":"B66+1","v":52},"Rotork Vales milliamp card, Rotork 48083-02, 1151487273",10,"NO",null,0]
[null,null,"SUB-TOTAL",{"$nulls":3},{"$f":"SUM(G8:G63)","v":0}]
[]
[]
[]
[null,null,"Total for all  Deliverables",{"$f":"G68","v":0}]
[null,null,"Disbursements at 12% of Total for all Deliverables",{"$f":"D72*0.12","v":0}]
[null,null,"Transport Costs at 8%",{"$f":"D72*0.08","v":0}]
[null,null,"SUBTOTAL before VAT",{"$f":"SUM(D72:D74)","v":0}]
[null,null,"VAT (if applicable)",{"$f":"D75*0.15","v":0}]
[null,null,"FORM OF OFFER \n(for commercial evaluation purposes)",{"$f":"SUM(D75:D76)","v":0}]
[]
[null,null,"NOTE : Goods/services will be called-off as and when required by Rand Water after the award of the contract. Rand Water reserves the right not to acquire all the estimated quantities at once. Suppliers are therefore advised not to procure goods/services upfront and only procure upon the instruction of Rand Water."]

{"sheet":"GROUP 3 - MISCELLANEOUS EQUIP","index":3,"n_rows":208,"n_cols":7,"rows_kept":208,"merged":[[1,3,1,6],[2,3,2,6],[3,3,3,6],[207,2,207,6]]}
[]
[null,null,"BID NUMBER","RW10392309/21"]
[null,null,"BID DESCRIPTION","SUPPLY & DELIVERY OF INSTRUMENTATION AND AUTOMATION EQUIPMENT SPARES"]
[null,null,"BIDDER NAME"]
[]
[]
[null,null,"DELIVERABLES (DESCRIPTION)","QTY (A)","UNIT OF MEASURE","RATE (B)","Total (A x B)"]
[null,null,"POWER SUPPLIES"]
[null,null,"PHOENIX EQUIPMENT"]
[null,1,"Power Supply – PHOENIX Input:100- 240V, Output :24V /40A, O/V 250V, SN: 0000281425",20,"NO",null,{"$f":"F10*D10","v":0}]
[null,{"$f":"B10+1","v":2},"Power Supply / Phoenix Input 24V – 10.5A, Output 24 – 10A, Operational V.22.5 – 30V",20,"NO",null,0]
[null,{"$f":"B11+1","v":3},"Power Supply / Phoenix Input 100V – 240 V, Output DC 24 V– 10A",20,"NO",null,0]
[null,4,"Phoenix power supply contact, order no: 2866381, Input 100-240V-6-3A, 50-60Hz Operation voltage 85-264V, Derating 90V 2.5% V, Output24V-20A",20,"NO",null,{"$f":"F13*D13","v":0}]
[null,5,"Phoenix Trio power supply contact, Trio Ps/AC24DC /s, order no:2866310, Input:100-240V-?1.9-0.9A/SO-60+12, Operational voltage, 85-264V- / Derating <90V-2.5% V Output 24V…15A",20,"NO",null,{"$f":"F14*D14","v":0}]
[null,null,"WEIDMULLER EQUIPMENT"]
[null,{"$f":"B14+1","v":6},"WEIDMULLER QO6-17966-140902-00 POWER SUPPLY",30,"NO",null,0]
[null,{"$f":"B16+1","v":7},"WEIDMULLER QO6-17966-160502-01 POWER SUPPLY",30,"NO",null,0]
[null,8,"WEIDMULLER 1469480000 POWER SUPPLY",30,"NO",null,0]
[null,9,"WEIDMULLER QO6-17966-150209-00 CP DM 10",30,"NO",null,0]
[null,10,"WEIDMULLER QO6-17966-150112-00 POWER SUPPLY",30,"NO",null,0]
[null,null,"POWER SUPPLIES MISCELLANEOUS"]
[null,{"$f":"B20+1","v":11},"Siemens LOGO! Power Part No.: 6EP1331-ISH03   Input: 220VAC  Output: 24VDC 1.3A",15,"NO",null,0]
[null,12,"ANDERSON – NEGELE Power supply 24VDC, 30Ma, Output 2*24 Vdc/100mA",2,"NO",null,0]
[null,13,"Power supply , Input voltage 0-110V, Unregulated 9V supply, Serial no:0506544",20,"NO",null,{"$f":"F24*D24","v":0}]
[null,14,"AC/DC Dynamics Power Supplies; Model: DPSU/3/24; 220VAC-24VDC 3A (AD09F03/BC02B04/AF06M23)",100,"NO",null,{"$f":"F25*D25","v":0}]
[null,15,"Regulated Power Supply: Input Voltage: 85-264VAC; Output Voltage: 24VDC; Output Current: 10A; Power Rating: 240W; Mounting Type: DIN Rail Mounting",100,"NO",null,{"$f":"F26*D26","v":0}]
[null,16,"Regulated Power Supply: Input Voltage: 220VAC; Output Voltage: 24VDC; Output Current: 2A; Power Rating: 48W; Mounting Type: DIN Rail Mounting",100,"NO",null,{"$f":"F27*D27","v":0}]
[null,17,"PRODESIGN SD-50A-24 INPUT DC 12V(9.2-18V) 7A POWER SUPPLY",20,"NO",null,{"$f":"F28*D28","v":0}]
[null,18,"MEAN WELLSD-50A-24 POWER SUPPLY",12,"NO",null,{"$f":"F29*D29","v":0}]
[null,null,"FLOW METERS"]
[null,{"$f":"B29+1","v":19},"Krohne Carbon Dioxide Flow meter Part No.: 011081744.001",2,"NO",null,{"$f":"F31*D31","v":0}]
[null,20,"Siemens mag flow display, 24V AC/DC, 50/60 Hz 10W, IP 67/ NEMA 6, -20*C TO +60*C Serial no:N1D7125601",5,"NO",null,0]
[null,21,"Magflow with positioner, 100 (4inch), Lining: Ebonite, Sensor material: ASTMA 105 Electrodes: Hastelloy c276/24819, 16bar/232psi -10*C, Input 60v max 0.125max Order no:7ME65803TC142AA1",5,"NO",null,0]
[null,22,"Ultrasonic flow transmitter, Input 110-220 V, Output 24V DC",5,"NO",null,0]
[null,23,"Fuji ultrasonic flow meter, Type:flw510Y2YYY1, Serial no: A9B6552T",5,"NO",null,0]
[null,24,"Seimens Transmitter for differential pressure, Rang 16mbar-16mbar",10,"NO",null,0]
[null,25,"Flow transmitter 8mm, Serial no:X0022101019",5,"NO",null,0]
[null,null,"RTD / PT100"]
[null,{"$f":"B37+1","v":26},"RTD PT100 6mm x 210mm",30,"NO",null,{"$f":"F39*D39","v":0}]
[null,27,"Swift RTD SHE 62841 316/SS/FAB/150mm",30,"NO",null,0]
[null,28,"Afriso RTD 0380-14",10,"NO",null,0]
[null,29,"RTD PT100 3 wire RTD, 6mm OD, with bayonet cap and springs, large head without ceramic blocks, 75mm flex leads with profibus head mount transmitter 140mm long Part Number: TMT84-1020/0",40,"NO",null,0]
[null,30,"RTD PT100, 3-wire, Simplex, 6mm diameter, 180mm long with ceramic block and compressed brass fitting",40,"NO",null,0]
[null,31,"RTD PT100, 3-wire, Simplex, 6mm diameter, 140mm long with ceramic block and compressed brass fitting",40,"NO",null,0]
[null,32,"RTD PT100, 3-wire, Simplex, 6mm diameter, 240mm long with ceramic block and compressed brass fitting",40,"NO",null,0]
[null,33,"RTD Wire simplex PT100, 6mm Probe diameter, Length 100mm",40,"NO",null,0]
[null,null,"ENDRESS & HAUSER"]
[null,{"$f":"B46+1","v":34},"Endress & Hauser iTemp  PT100 - PA Converter  Part No.: TMT84-1009/101",10,"NO",null,{"$f":"F48*D48","v":0}]
[null,null,"SIEMENS"]
[null,{"$f":"B48+1","v":35},"Siemens SITRANS T3K   PT100 - PA Converter  Part No.: 7NG3213-0NN00",10,"NO",null,{"$f":"F50*D50","v":0}]
[null,{"$f":"B50+1","v":36},"Siemens SITRANS TH400 PT100 - PA Converter  Part No.: 7NG3214-0NN00",10,"NO",null,0]
[null,null,"FLOW SWITCHES"]
[null,{"$f":"B51+1","v":37},"Switch-Tek Mini Float Switch PVDF Part No.: LH25-5201",20,"NO",null,{"$f":"F53*D53","v":0}]
[null,{"$f":"B53+1","v":38},"Tecfluid SC250 Flow Switch Part No.: LOM09ATEX2087X",15,"NO",null,0]
[null,39,"Tecfluid ADI15/BD Flow Switch",15,"NO",null,0]
[null,40,"Honsberg Flow Switch Part No.: MR-010GM010; Adjustable Range: 1-10l/min H2O; PN 200; IP65; 250VAC/1,5A/50VA",30,"NO",null,0]
[null,41,"Burket flow line switches, IP 66 BP n120308/048, 225192",5,"NO",null,0]
[null,42,"ENDRESS+HAUSER DTT31 FLOW SWITCHES",18,"NO",null,0]
[null,43,"Level Switches for Chlorine plant, Model LS-7 Level switch, 20VA,120-240VAC",10,"NO",null,0]
[null,null,"BARKSDALE EQUIMENT"]
[null,{"$f":"B59+1","v":44},"Barksdale Flow Switch UQS7-170 Part No.: 0728-017",20,"NO",null,{"$f":"F61*D61","v":0}]
[null,null,"INDICATORS"]
[null,{"$f":"B61+1","v":45},"IQ4 Digital Indicator 24VDC 4-020mA",5,"NO",null,{"$f":"F63*D63","v":0}]
[null,{"$f":"B63+1","v":46},"Indicator: RKC Instrument Model: CB 900, Power Supply 240 VAC",10,"NO",null,0]
[null,{"$f":"B64+1","v":47},"Flow indicators for flocculators, Make Calog, IP65V metal housing, ",4,"NO",null,0]
[null,48,"Model 3508, Process indicator instrotech instrument and process control, 12V 24V INPUT signal cal 0-200",20,"NO",null,0]
[null,49,"Lascar indicator, SP5 25j UK, 884567",5,"NO",null,0]
[null,50,"Newport electronic indicators, Model: INFcp-101B, Serial no:0365030, 230V, 9.5W",5,"NO",null,0]
[null,51,"Corel Instrument Calog 4000S indicator, Modul-4001, 230V AC, Input 4-20ma S1N1911421",10,"NO",null,0]
[null,52,"Red Lion Indicator, 3.2 V DC  for cub4LPOO, 4.0 V DC for Cub 4LP40, 32 V DC for CUB CL911, Span range 0-2000, 100Ma, M2248D, RLC PT= CUB4CL20",5,"NO",null,0]
[null,53,"Zenith  489 Indicator, AUX 24V DC, Input 4-20m, Module 489",10,"NO",null,0]
[null,54,"Digital Anzelgel, Besteil lorder code A-A1-1-2-2",10,"NO",null,0]
[null,55,"Zenith Indicator Model:489 INS, SN:10.01.05, Power supply:24VCC",10,"NO",null,0]
[null,56,"Vertex Indicator Corel Instrument, 4-20mA",2,"NO",null,0]
[null,57,"TOHO Electronics/ Indicator TTM-006",2,"NO",null,0]
[null,58,"Honeywell : Amiens factory Indicator, Model:  DC 300E-E, SIN: A940340953149001007",2,"NO",null,0]
[null,null,"VIBRATION EQUIPMENT"]
[null,null,"Monitran Vibration Equipment"]
[null,{"$f":"B76+1","v":59},"Monitran Vibration Sensor MTN-1185M8 Part No.: MONMTN1185-006",15,"NO",null,{"$f":"F79*D79","v":0}]
[null,{"$f":"B79+1","v":60},"Monitran Vibration Sensor Cables 5m Part No.: MONMTNCA137-001",15,"NO",null,0]
[null,null,"VIBRATION EQUIPMENT MISCELLANEOUS"]
[null,{"$f":"B80+1","v":61},"IQ PAT 2400-M8C SENSORS VIBRATION",24,"NO",null,{"$f":"F82*D82","v":0}]
[null,62,"Vibration Sensors, MTN/1185M8-20F, S/N 249940, ",30,"NO",null,{"$f":"F83*D83","v":0}]
[null,63,"Metrix Seismic Vibration Transmitter, STS484E-121-020-00, 9140151",10,"NO",null,{"$f":"F84*D84","v":0}]
[null,64,"Vibration sensor (the plug- in version), Part No: MTN/1185M8-20F, S/N: 249940, Include: 3m cable with plug, Sensitivity: 20.3 mm/sec@20mA, Mounting threads M8 Male",20,"NO",null,{"$f":"F85*D85","v":0}]
[null,65,"SSD Rapier  510-300-5-0-310.0.0.0.00     Lime Plant Vibration drives",10,"NO",null,{"$f":"F86*D86","v":0}]
[null,null,"SIEMENS"]
[null,{"$f":"B86+1","v":66},"Siemens UXA-96285 230V Potentiometer ",10,"NO",null,0]
[null,67,"Siemens Pointek CIS 200 flow switch UA0089",10,"NO",null,0]
[null,null,"MISCELLANEOUS ACCESSORIES"]
[null,{"$f":"B89+1","v":68},"Filter Water Traps, MS12-LFR/LR/LWS, MS12-LF(M)/LF",10,"NO",null,{"$f":"F91*D91","v":0}]
[null,69,"Sensor for Chlorine, A-ULTX-SENS-28-0-0, A16-400444916-10-005",5,"NO",null,0]
[null,70,"Bridges Spring Coupling, XCC-RAR1010, 093570",10,"NO",null,0]
[null,71,"Water Traps, LF1/4-D-Mini-A, Malt no 159617",10,"NO",null,0]
[null,72,"Phoenix Contact Light Arrestors , Art-NR 2792141",30,"NO",null,0]
[null,73,"Relay 24V TRP3122",15,"NO",null,0]
[null,74,"Surge Arrestors Cat No 900600, SABS 171-1986",30,"NO",null,0]
[null,75,"Relays Bazz With 11pins, 10A 250V, 0467H",10,"NO",null,0]
[null,76,"IFM Electronic flow monitor, SID10ADBFKOW/LS, 45128",5,"NO",null,0]
[null,77,"IFM Electronic flow monitor, SID10ADBFPKG/US, 100-IPF",5,"NO",null,0]
[null,78,"Burket, TCR-MODUL CROUSERIAL, 83.161.301 W2",5,"NO",null,0]
[null,79,"Omron P-35, 28Y5",5,"NO",null,0]
[null,80,"Encoders for Bridges, IFM Electronic gmbh, E60203",10,"NO",null,0]
[null,81,"Telemecanique Nautilus, XMLB020A2S11, ENC Type 4x12 15A, 1LO842",4,"NO",null,0]
[null,82,"Phoenix Contact, MCR-SL-1CCP-1/1-00-4Kv, 28 14 841",5,"NO",null,0]
[null,83,"Burket flow , 12-30 VD4-20Ma, 4304, 0044406",7,"NO",null,0]
[null,84,"IFM proximity switch, Electronic D5128, 15mm   20…250V AC/DC, 45…65Hz   350Ma AC, 100 Ma DC , IP 67110012, 11A ",20,"NO",null,0]
[null,85,"IFM proximity switch electronic, D45127, 30…250V AC, 47…63 Hz, 250ma AC, KN 004",20,"NO",null,0]
[null,86,"IFM proximity switch D45127, 600mm, 20…250V AC/DC, 45…65Hz, 180ma AC/DC, 0G0034 0GTHB0A",20,"NO",null,0]
[null,87,"Pepperl+fuchs Proximity switch, EN 50008- A13 , 10-3V, 150ma, Part no:85358 NBB4-12 GM , 50-E2",20,"NO",null,0]
[null,88,"LG circuit breaker, BKN C16 , 400V IEC 60898, GB 10963, R050320 C16",2,"NO",null,0]
[null,89,"Merlin Gerin, Multi 9 , C45, 5A type 2, 380 V 5Ka , 45205",2,"NO",null,0]
[null,90,"Burket Timer , 060638L, ROHS , W4XLP",30,"NO",null,0]
[null,91,"Milltronics high temperature transducer, ST-25HT, Serial no:2419 ",10,"NO",null,0]
[null,92,"Endress and Hauser Serial ma Cart, Lot 23111207",5,"NO",null,0]
[null,93,"Pratley Cable boxes , 2 way, 56206",15,"NO",null,0]
[null,94,"Yokogawa Display , Supply 24V AC/DC, 50/60 Hz, S5J907816",5,"NO",null,0]
[null,95,"Endress and Hauser Serial Display, 5.6V, 1Ma, Order code FHX 40-A5A Serial no:9C00C001064",5,"NO",null,0]
[null,96,"Khrone Altomermeter, 100-230 V AC, 50-60 Hz, 22V, Serial no:A12P05695",5,"NO",null,0]
[null,97,"DPM temperature controller 4003 1303793",15,"NO",null,{"$f":"F120*D120","v":0}]
[null,98,"ERO Electronic Controller Model: PKC 611252300",15,"NO",null,0]
[null,99,"Ifm Electronic, D-45127 Essen 20-30v",5,"NO",null,0]
[null,100,"Flow moun Ltd Harrogate, Flow indicator",5,"NO",null,0]
[null,101,"Fine Tek, TCL 0-24v K200C, Output 4-20ma ",10,"NO",null,0]
[null,102,"Flow Sensor for Filter House, Part no SA4300, Pressure Rating 50 bar",20,"NO",null,0]
[null,103,"Master-shave microprocessor, Model TDC /I/0550, SUPPLY 10VDC",3,"NO",null,0]
[null,104,"Idec Relay Type RR2P-U 26340",3,"NO",null,{"$f":"F127*D127","v":0}]
[null,105,"Posiflex Positioner Type 368.00.164",10,"NO",null,0]
[null,106,"Regulators for Chlorine plant, Material ;Polyethylene Tube, Size 10mm",20,"NO",null,{"$f":"F129*D129","v":0}]
[null,107,"Quint Phoenix contact DC- UPS, input: 24 DC, Output 10A, Order no:286626 22.5-30V",10,"NO",null,0]
[null,108,"Quint diode Phoenix contact, Order no:2938963, Input 24V max 30V, Lighting and surge protection",10,"NO",null,0]
[null,109,"Load cell Cnce// Pacific weighing, Model PA6140W, Capacity st, Output 2.0003 S/no 121716",5,"NO",null,0]
[null,110,"Converter Temperature Transmitter, TX ISO pack, 2 wire 4-20Ma, PT100, 0-150C 50Hz PN 8807000100, SN 19235197",20,"NO",null,0]
[null,111,"Corel instrument Process signal splitter, Dual output , Input 4-20Ma, Output 1 and 2 4-20Ma, 24 V DC Aux, Part no: GB-SP2/1A-1A-/AC",20,"NO",null,0]
[null,112,"Load cell Process automation , ULP, Part no:H3/300kg, Serial No: 9843743, Output 2.00Mv/v",20,"NO",null,0]
[null,113,"Telemecanique inductive proximity switch, XSD-H607339, SN=30…60mm",15,"NO",null,0]
[null,114,"Pepperl+fuchs proximity sensor, Type NBB20-u/-uu, Part no:238884, 250V DC/ 24-230 VAC, 500mA, 20mm, Serial no:40000062272797",15,"NO",null,0]
[null,115,"Phoenix converter contact, EMD-FL 3V-400, Order no:2866064",10,"NO",null,0]
[null,116,"K-unit signal conditioner, Model kwDy-AAR, Input 4-20ma DC, Output1 4-20Ma DC Output2 4-20Ma DC, Power 24V DC, Serial no:1C016198",10,"NO",null,0]
[null,117,"Phoenix repetors contact, PSM-ME-RS485/RS485-p, 24V, Order no:2744429",4,"NO",null,0]
[null,118,"Pepperl+Fuchs Phoenix contact voltage monitor, Supply 240 V ac, 13W 60Hz, Relay contacts 30Vdc, 2A 250 Vac, 2A, 0.2PF",4,"NO",null,0]
[null,119,"Omnierm LP/model C 2063A, B-Serial LP 1, 4-20Ma, 100 to 1000 ohm, Part no: 6.1103.001, ",2,"NO",null,0]
[null,{"$f":"B142+1","v":120},"Burket Fluid control system, Type 0330, Circuit function C, Orifice seal material 2.0 Body material Fkm ms, 10..-10 bar, Port connection , Nominal pressure, 8W-voltage, frequency output",2,null,null,0]
[null,121,"Superior gas CL2 sensor, Crowcon , Sm6323 v3.2, 2-Term sensor fit Lk2, 3 Term sensor fit LK3, Oxygen – none, S-5675 1SS/CL2 0-5ppm, S011263/S",5,"NO",null,0]
[null,122,"Pepperl+Fuchs Phoenix contact MCR-SL-1VLP-1/1-00-4 Kv, At no:2814841",15,"NO",null,0]
[null,123,"Control board Evaporator E – 2000, W 3T163645",1,"NO",null,{"$f":"F146*D146","v":0}]
[null,124,"Isolated Smart Transmitter Output 4- 20Ma, Range: 0_ 1600",2,"NO",null,0]
[null,125,"Relay Contracts 30VDc - 2A, PEPPERL+FUCHS, Supply 240 VAC.BW. 60HZ, N1658",2,"NO",null,0]
[null,126,"WEG Variable Speed drive with controller CFW 08 Vector Inverter, MOD : SACFW080016S2024ESZ , V 3.98   R47, Line: 200-240VAC, 3,5A, 50/60Hz, Output : 0…Red/Line, 1,6A, 0-300Hz, Serial :# 678566, XC8, Serial HMI Interface",2,"NO",null,0]
[null,127,"Controller WEG CFW 08, MOD : HMI-CFW08-RS, Serial # 5166, No: 585788, ",10,"NO",null,0]
[null,128,"Endress + Hou Serial density meter display FHX40, Order Code: FHX40-A1A, Serial. No. C1007201064, Uin<5.6V, Iin < 1mA",5,"NO",null,0]
[null,129,"Load cell Processor Unipro measurement system, Model- SBQ-820-BINWEGH,                  Pareference M09121, 90-230Vac, 50/60Hz",2,"NO",null,0]
[null,130,"Chlorine Sensor Controller Siemens-Wallace and Tierman, GMS plus W3T158771, Electronic Module 230V. 50/60 Hz, 14VA, Sensor 1/11. 2xPT1000 .3xmA - out           ",5,"NO",null,0]
[null,131,"Electromatics System: Dual Level Relays, SN 150220, Power supply 220VAC",4,"NO",null,0]
[null,132,"Electromatics system: Inductive Sensor Relay, SD 110220, Power Supply :230V",4,"NO",null,0]
[null,133,"Inductive proximity switch, XS8D1A1PAL2, Ue: 12V….2V",10,"NO",null,0]
[null,134,"INSTRUMENT BLOWER FANS Blower Fan Part No: AA1282HB-AT, Dimensions 120X120X38, 220 V AC 22W Oriental Blower, 50Hz",5,"NO",null,{"$f":"F157*D157","v":0}]
[null,135,"Timer Control Unit Manufacturer Burkert Part Number 1078-1-BBT/DC-B-1",12,"NO",null,{"$f":"F158*D158","v":0}]
[null,136,"Rotameter 160– 1600 l/hr Manufacturer TEC Part Number PT-11/1600/DR",12,"NO",null,0]
[null,137,"405282400000 Finder relay Mini 2CO 8A 240VAC",20,"NO",null,{"$f":"F160*D160","v":0}]
[null,138,"9505SPA Finder relay base 40/44 series",20,"NO",null,0]
[null,139,"405191100000 Finder relay Mini 2CO 8A 110VDC",20,"NO",null,0]
[null,140,"405281100000 Finder relay Mini 2CO 8A 110VAC",20,"NO",null,0]
[null,141,"405290240000 Finder relay Mini 2CO 8A 24VDC",10,"NO",null,0]
[null,142,"ALLPRONIX RS-232 DAT9011-USB MODBUS CONVERTER",3,"NO",null,{"$f":"F165*D165","v":0}]
[null,143,"ALLP PR6333A RTDS CONVERTER 2 WIRE PROGRAMABLE TRANSMITTERS",9,"NO",null,0]
[null,144,"DANUBE Q06-150112-00",9,"NO",null,0]
[null,145,"ENDRESS+HAUSER DTI130 FLUITECTOR",3,"NO",null,0]
[null,146,"ENDRESS+HAUSER EA021020000 RELAY",0,"NO",null,0]
[null,147,"ENDRESS+HAUSER TR 24-A42BXB300RTD PT100",3,"NO",null,0]
[null,148,"ENDRESS+HAUSER CPS11D-7BT21 LIQUID ANALYSIS SENSOR",3,"NO",null,0]
[null,149,"ENDRESS+HAUSER CPS11D-CIEI LIQUID ANALYSIS SENSOR",3,"NO",null,0]
[null,150,"ENDRESS+HAUSER TMT84-11K/115",12,"NO",null,0]
[null,151,"GE PT878 ULTRASONIC UNIT",18,"NO",null,0]
[null,152,"Grundfos Dosing Pump Model No.: DDI 6010AR PVC/V/GS-31B16F",20,"NO",null,0]
[null,153,"PRO VISTA TECNOLOGY ISC1000 MINI ISC  SOLA REGULATOR",20,"NO",null,{"$f":"F176*D176","v":0}]
[null,154,"SENSUS COSMOS DATA LOGGER: IP68: 2 CHANNELS",30,"NO",null,{"$f":"F177*D177","v":0}]
[null,155,"12V 102A/H Royal Batteries ",200,"NO",null,{"$f":"F178*D178","v":0}]
[null,156,"CS3 12v 7A/H Batteries",200,"NO",null,0]
[null,157,"Battery charger 12V DC - Smart 15 12V",20,"NO",null,0]
[null,158,"Inverter - FCS-3K-VP-3000w",15,"NO",null,0]
[null,159,"Single Phase UPS - UPS 003505MP105 5kva 1Ph",5,"NO",null,0]
[null,160,"Three Phase UPS - UPS0035-3PH-MP1055kva 3ph",5,"NO",null,0]
[null,null,"MW MEAN WELL RANGE OF BATTERY CHARGERS"]
[null,{"$f":"B183+1","v":161},"Part NO: MW Mean Well PB -1000-24 , 2/3/8 Stage Switching Mode Battery Charger ,  Input :100 – 240V AC  12A 50-60 Hz Output: 28.8 V, 34.7A Lead Indicator, Suitable for lead-acid batteries, can be connected to 2 battery banks",6,"NO",null,0]
[null,162,"MW Mean Well Battery Charger, Part NO ADD – 155 B Input: 100 – 240 V   2,5A, 50/60Hz Output V1  + 27.6V(4.5A), V2 +5V(3.0A) , Battery 27,1V(0.5A)",3,"NO",null,0]
[null,null,"DELTEC RANGE OF BATTERIES"]
[null,{"$f":"B186+1","v":163},"Part NO: DELTEC BR-12V180FT, Valve Regulated Sealed Lead-Acid Battery, Constant Voltage Charge, Cycle Use:14,6 – 14,8V (25 C), Standby Use: 13,6 – 13,8 V, Initial Current less than 54A",12,"NO",null,0]
[null,null,"ACDC DYNAMICS RANGE OF BATTERIES"]
[null,{"$f":"B188+1","v":164},"ACDC Dynamics Valve Regulated Rechargeable Battery (Non-spill able)  Part No SY1270 (12V7.OAH) Voltage Regulation (Standby Use 12,7 V – 13,9 V) and (Cyclic Use 14,4 – 14,7 V) Initial Current : 2,1 A Max",3,"NO",null,0]
[null,null,"ACDC DYNAMICS RANGE OF BATTERY INVERTERS"]
[null,{"$f":"B190+1","v":165},"ACDC DYNAMICS Power Inverter, Pure Sine Wave 600W, 24V, DC to AC",6,"NO",null,0]
[null,null,"YOKOGAWA RANGE OF CHART RECORDERS"]
[null,{"$f":"B192+1","v":166},"Yokogawa Chart Recorder, Part No FX1002, Power Supply :100 – 240V AC, Freq 50/60Hz",4,"NO",null,0]
[null,null,"TRUTEQ RANGE OF WIRELESS RADIOS"]
[null,{"$f":"B194+1","v":167},"Truteq Wireless Radio, Part No SPRi V.SMGR.FRG.1.0.0 GPRS/EDGE/HSPA ROUTER",3,"NO",null,0]
[null,null,"SUB-TOTAL",{"$nulls":3},{"$f":"SUM(#REF!)","v":{"$error":"#REF!"}}]
[]
[]
[]
[null,null,"Total for all  Deliverables",{"$f":"G197","v":{"$error":"#REF!"}}]
[null,null,"Disbursements at 12% of Total for all Deliverables",{"$f":"D201*0.12","v":{"$error":"#REF!"}}]
[null,null,"Transport Costs at 8%",{"$f":"D201*0.08","v":{"$error":"#REF!"}}]
[null,null,"SUBTOTAL before VAT",{"$f":"SUM(D201:D203)","v":{"$error":"#REF!"}}]
[null,null,"VAT (if applicable)",{"$f":"D204*0.15","v":{"$error":"#REF!"}}]
[null,null,"FORM OF OFFER \n(for commercial evaluation purposes)",{"$f":"SUM(D204:D205)","v":{"$error":"#REF!"}}]
[]
[null,null,"NOTE : Goods/services will be called-off as and when required by Rand Water after the award of the contract. Rand Water reserves the right not to acquire all the estimated quantities at once. Suppliers are therefore advised not to procure goods/services upfront and only procure upon the instruction of Rand Water."]

{"sheet":"GROUP 4 - PLC EQUIPMENT","index":4,"n_rows":372,"n_cols":6,"rows_kept":372,"merged":[[1,2,1,5],[2,2,2,5],[3,2,3,5],[371,1,371,5]]}
[]
[null,"BID NUMBER","RW10392309/21"]
[null,"BID DESCRIPTION","SUPPLY & DELIVERY OF INSTRUMENTATION AND AUTOMATION EQUIPMENT SPARES"]
[null,"BIDDER NAME"]
[]
[null,"DELIVERABLES (DESCRIPTION)","QTY (A)","UNIT OF MEASURE","RATE (B)","Total (A x B)"]
[]
[null,"PLC, HMI&SCADA, Industrial Communications and Telemetry"]
[null,"PLC [Allen Bradley]"]
[1,"AB 1606-XL 120DR   5A Power supply",6,"NO",null,{"$f":"E10*C10","v":0}]
[2,"AB 1756-DNB D  Devicenet Communication module Part No.: PN-36089                                      ",4,"NO",null,0]
[3,"AB 1794-ADN B Devicenet Flex IO 24V adapter Part No.: PN-90463                                    ",4,"NO",null,0]
[4,"AB Logix5000  Battery assembly  Part No.:1756-BA2",6,"NO",null,0]
[5,"AB 24 Digital input cards for Controllogix PLC",12,"NO",null,0]
[6,"AB 2-20 mA Analog input cards Controllogix PLC",5,"NO",null,0]
[7,"AB 24V DC Digital Output cards Controllogix PLC",12,"NO",null,0]
[null,"PLC [Schneider Electric]"]
[8,"Schneider Electric PLC Processor Module M340 Part No.: BMXP 342020",10,"NO",null,0]
[9,"Schneider Electric PLC Processor Module M580 Part No.: BMEP 583040",15,"NO",null,0]
[10,"Momentum I/O Base 8 Channel Analog Input Module Part No.: 170AA103000",6,"NO",null,0]
[11,"Momentum Top Head (Unity CPU) Part No.: 171CBU98090",7,"NO",null,0]
[12,"Schneider Electric MBX NOM 0200 Modbus Model 2 PLC Card RS 485 / 232 Port",18,"NO",null,0]
[13,"Schneider Electric M580 CPU, Part No.: BME P58 2020",10,"NO",null,0]
[14,"Schneider Electric M580 PLC Rack, Part No.: BME XBP 0600",12,"NO",null,0]
[15,"Schneider Electric M580 PLC Power Supply, Part No.: BMX CPS 3500",25,"NO",null,0]
[16,"Schneider Electric M580 PLC Network Module, Part No.: BME NOC 0311.3",30,"NO",null,0]
[17,"Schneider Electric M580 PLC 24VDC Digital Input Module, Part No.: BMX DDI 1602",80,"NO",null,0]
[18,"Schneider Electric  M580 24V Digital Output module",50,"NO",null,0]
[19,"Schneider Electric M580 4-20mA Analog input module",30,"NO",null,0]
[20,"Schneider Electric M580 RTD/Thermocouple module",25,"NO",null,0]
[21,"Schneider Electric M580 220V ac Digital Input module",30,"NO",null,0]
[22,"Schneider Electric M580 220V ac Digital output module",20,"NO",null,0]
[23,"Schneider Electric  M580 Relay output module",30,"NO",null,0]
[24,"Schneider Electric M580 Ethernet communication module",25,"NO",null,0]
[25,"Profibus PRM Module, Part No.: TCSEGPA23F14F",20,"NO",null,0]
[26,"Power Supply 24VDC, Part No.: ABL8RPS24100",20,"NO",null,0]
[27,"Modicon Momentum 170 AA0 92100 8CH AN OUT",3,"NO",null,0]
[28,"Modicon Momentum 170 AAI 14000 16CH AN IN",3,"NO",null,0]
[29,"Modicon Momentum 170 ADI 34000 16CH 24V IN",4,"NO",null,0]
[30,"Modicon Momentum 170 ADI 74050 16CH 230VAC IN",4,"NO",null,0]
[31,"Modicon Momentum 170 INT 711001Interbus comms adapter",3,"NO",null,0]
[32,"Modicon Momentum 170 PNT11020 Comms adapter MB+ single port",4,"NO",null,0]
[33,"Schneider BMEP583040 M580 processor level 3",20,"NO",null,0]
[34,"Schneider BMXAMI0410   Analog In 4 ch Isolated high speed",20,"NO",null,0]
[35,"Schneider BMXNOM0200 2 RS-485/232 port module",25,"NO",null,0]
[36,"Schneider BMXP342020   CPU340-20 Modbus Ethernet",20,"NO",null,0]
[37,"Schneider EGX100MG  Ethernet Gateway",15,"NO",null,0]
[38,"Schneider STBACO0220K  Analog C OUT 2ch 16Bit",15,"NO",null,0]
[39,"Schneider STBNDP2212 Profibus DP NIM",15,"NO",null,0]
[40,"140 NOE 771 10 TSX Quantum Ethernet Card",20,"NO",null,0]
[41,"140 NOM 252 00 TSX Quantum ModBus Plus Card",10,"NO",null,0]
[42,"140 DDO 353 00 Discreet DC Output 24V 4x8 Source",5,"NO",null,0]
[43,"140 DDO 364 00 DC Output 24V 6x16 Source",15,"NO",null,0]
[44,"140 ACI 030 00 Analog Input",5,"NO",null,0]
[45,"140 DDM 390 00 Module I/O 24VDC",10,"NO",null,0]
[46,"140 DDI 673 00 Module Input 125VDC 3x8",5,"NO",null,0]
[47,"140 DDI 353 00  Discreet DC Input 24V 4x8 Sink",5,"NO",null,0]
[48,"140 DDI 841 00 DC Input 10-60V 8x2 Sink",20,"NO",null,0]
[49,"140 ATI 030 00 TC Input 8CH",10,"NO",null,0]
[50,"140 ACI 030 00 Analog Input 8CH Unipolar",10,"NO",null,0]
[51,"140 ACO 020 00 Analog Output 4CH Current",15,"NO",null,0]
[52,"140 DAO 840 00  AC OUT 24-230V 16x1",10,"NO",null,0]
[53,"140 DAI 540 00 AC Input 115V 16x1",10,"NO",null,0]
[54,"140 DAI 740 00 AC Input 230V 16x1",10,"NO",null,0]
[55,"140 ACI 0400  Modicon Quantum 16 channel Analogue Input module",30,"NO",null,0]
[56,"140 CPS 11420  Modicon Quantum Power Supply module 115/230V AC",20,"NO",null,0]
[57,"140 CRA 21110 DIO DROP ModBus AC Power Supply 1CH",15,"NO",null,0]
[58,"140 CRA 93100 RIO DROP S908 1CH",10,"NO",null,0]
[59,"BMX NOE 0100 Ethernet 10/100 RJ45",20,"NO",null,0]
[60,"BMX AMI  0410 Analogue input module X-80 with 4 high speed inputs",20,"NO",null,0]
[61,"BMX AMI 0810 Analogue input module X-80 with 8 high speed inputs",20,"NO",null,0]
[62,"BMX AMO 0802 Analog 8 U/I Input Isolated Fast",20,"NO",null,0]
[63,"BME CRA 31210 X80 RIO DROP E/IP Perf",15,"NO",null,0]
[64,"BMX NOM 0200 Serial link Module with RS-458/232 ports in Modbus and character mode",5,"NO",null,{"$f":"E74*C74","v":0}]
[65,"BMX CPS 2000 Standard AC Power Supply ",30,"NO",null,0]
[66,"BMX CPS 3000 Power Supply Isolated 24to48VDC",20,"NO",null,0]
[67,"BMX CPS 3020 High Power Isolated 24to48VDC Power Supply",20,"NO",null,0]
[68,"BMX CPS 3500 High Power AC Power Supply",20,"NO",null,0]
[69,"BMX DDO 1602 Digital  16Q Trans Source 0.5A",10,"NO",null,0]
[70,"BMX DDO 3202K Digital  32Q Trans Source 0.1A",20,"NO",null,0]
[71,"BMX DDI 1602 Digital  16I 24VDC Sink ",10,"NO",null,0]
[72,"BMX DDI 6402K  Digital  64I 24VDC Sink ",10,"NO",null,0]
[73,"BMX DDI 3202 Digital  32I 24VDC Sink ",15,"NO",null,0]
[74,"BMX DRA 0805 Digital  16I 24VDC Sink ",20,"NO",null,0]
[75,"BMX PRA 0100 Peripheral Remote IO Adapter",10,"NO",null,0]
[76,"BMX P34 2020 CPU340-20 Modbus Ethernet ",20,"NO",null,0]
[77,"BMX NOC 0401 EtherNet/IP &Modbus TCPM340 Module",10,"NO",null,0]
[78,"BMX EHC 0200 High Speed Counter 2CH",10,"NO",null,0]
[79,"BMX XBP 0800 M340 8 Slot Backplane ",10,"NO",null,0]
[80,"BME P58 3040 M580 Processor level 3 for D&R I/Os",20,"NO",null,0]
[81,"BME P58 4020 M580 Processor level 4 for D I/Os",10,"NO",null,0]
[82,"BME P58 4040 M580 Processor level 4 for D&R I/Os",10,"NO",null,0]
[83,"STB DDI 3725KS 24VDC Input 16PT Basic kit screw, Base",20,"NO",null,0]
[84,"STB DDO 3600 24VDC Output 6PT Basic kit Conns, Base",10,"NO",null,0]
[85,"STB XBA 2200 Mounting Base for STB Power module",10,"NO",null,0]
[86,"STB NDP 2212 Standard Network interface Module for Profibus DP at 9.6kbit/s",10,"NO",null,0]
[87,"STB DRC 3210 Standard Digital output kit 24V 115…230V AC 2 NO/NC",10,"NO",null,0]
[88,"STB NIP 2311 Standard Network Interface Module STB - Ethernet modbus TCP/IP - 10...100 Mbits",20,"NO",null,0]
[89,"STB NIP 2212 Standard Network Interface Module STB - Ethernet - 10 Mbit/s",30,"NO",null,0]
[90,"STB ACO 0220K  Analog C OUT 2CH 4-20MA 16 Bit",20,"NO",null,0]
[91,"STB ACO 1225K  Analog C OUT 2CH Basic  4-20 Kit Conns, Base",10,"NO",null,0]
[92,"STB ACI 0320K  Analog C OUT 4CH,  4-20MA Kit Conns, Base",20,"NO",null,0]
[93,"STB ACI 0320K  Analog C OUT 4CH,  4-20MA Kit Conns, Base",20,"NO",null,0]
[94,"STB PDT 3100K  STB Power Module 24V DC card",15,"NO",null,0]
[95,"STB PDT 2100 STB Power Module 115/220V AC card",10,"NO",null,0]
[96,"STB DAI 7220 230VAC Input 2PT Kit Conns",10,"NO",null,0]
[97,"STB DAO 8210 115/230VAC Output 2PTb Kit",10,"NO",null,0]
[98,"BMX RMS 008 MPF 8MB CPU Memory Card",10,"NO",null,0]
[99,"BME CRA 31210 M580 RIO CPU Remote IO CPU",15,"NO",null,0]
[100,"BMXCPS3500 M340,FA 100/240vCA 36W",10,"NO",null,0]
[101,"BMXXBP1200 M340,Rack 12 Pos",5,"NO",null,0]
[102,"BMEP581020 M580,CPU,Eth,1024D,256A,NoRIO",10,"NO",null,0]
[103,"BMXDDI3202K M340,32 ED,24vDC (40P)",10,"NO",null,0]
[104,"BMXDDO3202K M340,32 SD,TRT,24vDC,LogPos (40P)",10,"NO",null,0]
[105,"BMXFCW303 M340,Bornero 40P+Precable 2x20 Hilos 3m",10,"NO",null,0]
[106,"BMXAMI0810 M340,08 EA 16b,Aisl,10v,20mA",10,"NO",null,0]
[107,"BMXFTW308S M340,Bornero 28P+Precable Apant_3m",5,"NO",null,0]
[108,"BMXART0814 M340,08 EA 15b+sig,Aisl,Temp.TC/RTD",20,"NO",null,0]
[109,"BMXFCW301S M340,Bornero 40P+Precable Apant 1x20 Hil",10,"NO",null,0]
[110,"BMXXEM010 KIT 5 MODULOS VACIOS",5,"NO",null,0]
[111,"ABL8RPS24100 FUENTE CONM. FILTRO ARM. 10A 24Vdc 240W",5,"NO",null,0]
[112,"HMIDT732 PANTALLA 15'' XGA SMART DISPLAY GTU",10,"NO",null,0]
[113,"HMIG3U MODULO PROCESADOR PREMIUM BOX GTU",15,"NO",null,0]
[114,"STBNIP2311 STB,Com,Eth MB TCP/IP Dual Port",20,"NO",null,0]
[115,"BMEXBP1200 M580,Rack Eth 12 Pos",5,"NO",null,0]
[116,"BMEP584040 M580,CPU,Eth,4096D,1024A,RIO",10,"NO",null,0]
[117,"BMXNRP0200 M340,Com,FOMultiLC",15,"NO",null,0]
[118,"BMECRA31210 M580,Com,EthernetIO Drop Avanzado",20,"NO",null,0]
[119,"BMXP342020 M340,CPU,Eth,Serie,USB,1024D,256A",10,"NO",null,0]
[120,"BMXNOC0401 M340,Com,Eth DIO Head",10,"NO",null,0]
[121,"BMXAMO0410 M340,04 SA 15b+sig,Aisl,10v,20mA",15,"NO",null,0]
[122,"BMXFTW301S M340,Bornero 20P+Precable Apant 3m",5,"NO",null,0]
[123,"BMXXBE2005 M340,Kit,2xTSXTLYEX,2xBMXXBE1000,1xBMXXB",5,"NO",null,0]
[124,"BMXDDO3202K M340,32 SD,TRT,24vDC,LogPos (40P)",10,"NO",null,0]
[125,"BMEXBP0400 4 slots Eth backplane",10,"NO",null,0]
[126,"XVUC21B Unidad (DC) XVU, Negro",10,"NO",null,0]
[127,"XVUC23 Elemento Lumnioso LED XVU Verde",10,"NO",null,0]
[128,"XVUC24 Elemento Lumnioso LED XVU Rojo",10,"NO",null,{"$f":"E138*C138","v":0}]
[129,"XVUC25 Elemento Lumnioso LED XVU Naranja",10,"NO",null,0]
[130,"XVSUC9 Elemento Sorono XVU, Negro",10,"NO",null,0]
[131,"XVUZ02 Base con tubo de 100mm, Negro",10,"NO",null,0]
[132,"XVUC29 Multicolour –Unit",10,"NO",null,0]
[133,"405282400000 Finder relay Mini 2CO 8A 240VAC",20,"NO",null,0]
[134,"9505SPA Finder relay base 40/44 series",20,"NO",null,0]
[135,"405191100000 Finder relay Mini 2CO 8A 110VDC",20,"NO",null,0]
[136,"405281100000 Finder relay Mini 2CO 8A 110VAC",20,"NO",null,0]
[137,"405290240000 Finder relay Mini 2CO 8A 24VDC",10,"NO",null,0]
[138,"SCHNEIDER ELECTRIC 140 CPU 65150 PENTIUM CONTROLLER  CPU UNITY",10,"NO",null,0]
[139,"SCHNEIDER ELECTRIC 140 ACO 02000 4CH ANALOGUE OUT VOLTAGE",10,"NO",null,0]
[140,"SCHNEIDER ELECTRIC 140 ACI 0300 ANA IN 8CH UNIPOLAR",30,"NO",null,0]
[141,"SCHNEIDER ELECTRIC 140 CPS 1142ORSTD EXCH",15,"NO",null,0]
[142,"SCHNEIDER ELECTRIC 140 CRA 31200 R10 DROP E/IP QUANTUM",10,"NO",null,0]
[143,"SCHNEIDER ELECTRIC 140 CRP 31200 ETHERNET RIO HEAD",10,"NO",null,0]
[144,"SCHNEIDER ELECTRIC 140 DAI 74000 AC IN 230V",20,"NO",null,0]
[145,"SCHNEIDER ELECTRIC 140 DDI 35300 DC IN 24V 4x8 DISCRETE INPUT MODULE",20,"NO",null,0]
[146,"SCHNEIDER ELECTRIC 140 DDI 84100 DC IN 10-60V 8x2 SINK",20,"NO",null,0]
[147,"SCHNEIDER ELECTRIC 140 DDI 67300IN 125V 3x8 MODULE INPUT",20,"NO",null,0]
[148,"SCHNEIDER ELECTRIC 140 DDM 39000 MODULE 24VDC INPUT/OUTPUT",20,"NO",null,0]
[149,"SCHNEIDER ELECTRIC 140 DRA 84000 RELAY OUT 16x11 NO",20,"NO",null,0]
[150,"SCHNEIDER ELECTRIC 140 DDO 35300 DC OUT 24 V 4x8",20,"NO",null,0]
[151,"SCHNEIDER ELECTRIC 140 DRC 8300 RELAY OUT 8x1 NO/NC",20,"NO",null,0]
[152,"SCHNEIDER ELECTRIC 140 XTS 00200 TERMINAL STRIP 40 POINT",20,"NO",null,0]
[153,"SCHNEIDER ELECTRIC 140 XBP 0100 BACKPLANE",10,"NO",null,0]
[154,"SCHNEIDER ELECTRIC 140 XBP 1600 36 SLOTS",10,"NO",null,0]
[155,"SCHNEIDER ELECTRIC ABL8 REM 24050 OPTIMUM POWER SUPPLY",10,"NO",null,0]
[156,"Profibus PRM Module, Part No.: TCSEGPA23F14F",10,"NO",null,0]
[157,"SCHNEIDER ELECTRIC ABL8 RPS24100 UNIVERSAL POWER SUPPLY",10,"NO",null,0]
[158,"SCHNEIDER ELECTRIC BMX P342000 CPU 340 MODBUS",20,"NO",null,0]
[159,"SCHNEIDER ELECTRIC BMX CPS 3500  HIGH POWER SUPPLY",15,"NO",null,0]
[160,"SCHNEIDER ELECTRIC BMX AM10810 ANA 8U/I IN ISOLATED FAST",20,"NO",null,0]
[161,"SCHNEIDER ELECTRIC BMX NOE0100 ETHERNET 10/100 RI45",15,"NO",null,0]
[162,"SCHNEIDER ELECTRIC BMX XBP 08008 SLOTS BACKPLANE",10,"NO",null,0]
[163,"SCHNEIDER ELECTRIC BMX XBP 1200 12 SLOTS BACKPLANE ",10,"NO",null,0]
[164,"SCHNEIDER ELECTRIC BMX XBP 0600 6 SLOTS",10,"NO",null,0]
[165,"SCHNEIDER ELECTRIC BMX CPS 200 STANDARD AC POWER SUPPLY",15,"NO",null,0]
[166,"SCHNEIDER ELECTRIC BMX DDI 3202K DIG 321 SINK",20,"NO",null,0]
[167,"SCHNEIDER ELECTRIC STBDD3600K 6PT KIT CONNS, BASE",10,"NO",null,0]
[168,"SCHNEIDER ELECTRIC STBACO0220K ANALOG C OUT 2CH 16 BIT",10,"NO",null,0]
[169,"SCHNEIDER ELECTRIC STBNDP2212 PROFIBUS DP NIM",10,"NO",null,0]
[170,"SCHNEIDER ELECTRIC TSX ASY 410 4Q ANA HL 150",10,"NO",null,0]
[171,"SCHNEIDER ELECTRIC TSX AEY 810 81 ANA HIGH LEVEL",10,"NO",null,0]
[172,"SCHNEIDER ELECTRIC TSXPS73634M PROCESS UNIT",5,"NO",null,0]
[173,"SCHNEIDER ELECTRIC TSXPSY2600M POWER SUPPLY",10,"NO",null,0]
[174,"SCHNEIDER ELECTRIC TSXDEY32D2K SINK CONN",10,"NO",null,0]
[175,"BMXDAI1602",30,"NO",null,0]
[176,"BMXDAO1605",30,"NO",null,0]
[177,"BMXFTW308S",20,"NO",null,0]
[178,"BMXFCW303",20,"NO",null,0]
[179,"BMXAMO0802",30,"NO",null,0]
[180,"BMXDDO3202K",30,"NO",null,0]
[181,"BMXDDI3202K",30,"NO",null,0]
[182,"BMXNOM0200",30,"NO",null,0]
[183,"BMXFCW301S",30,"NO",null,0]
[184,"BMXFTB2820",50,"NO",null,0]
[185,"BMXFTB2010",50,"NO",null,0]
[186,"BMXAMI0810",30,"NO",null,0]
[187,"BMXDDI1602",10,"NO",null,0]
[188,"BMEP582040",10,"NO",null,0]
[189,"BMXCPS3500",20,"NO",null,0]
[190,"BMEXBP1200",10,"NO",null,0]
[191,"BMEXBP0800",10,"NO",null,0]
[192,"SCHNEIDER ELECTRIC BMX AM 10410 ISOLATOR",20,"NO",null,{"$f":"E202*C202","v":0}]
[193,"SCHNEIDER ELECTRICBMX P342020 ETHERNET MODBUS",10,"NO",null,0]
[194,"SCHNEIDER ELECTRIC BMX DRA 1605 RELAY",20,"NO",null,0]
[null,"PLC [Siemens]"]
[195,"Siemens RTU 3030C",20,"NO",null,0]
[196,"SIEMENS EMAI 4x12 BIT ANA INPUT MODULE",20,"NO",null,0]
[197,"SIEMENS SM 1231 AI 8x13 BIT ANA INPUT MODULE",20,"NO",null,0]
[198,"SIEMENS SM1223 DQ 16 MODULE DIGITAL INPUT/OUTPUT",20,"NO",null,0]
[199,"SIEMENS CM1241 RS 422/485 COMMUNICATION MODULE",20,"NO",null,0]
[200,"SIEMENS SITOP PSU100S 6EP1332-ISH43 POWER SUPPLY ",20,"NO",null,0]
[201,"SIEMENS KTP700 BASICPANEL",10,"NO",null,0]
[202,"SIEMENS SITOP UPS1100  BATTERY MODUL",10,"NO",null,0]
[203,"SIEMENS RS 422/485BASIC COMMUNICATION MODULE",10,"NO",null,0]
[204,"SIEMENS CP1242-7 COMMUNICATION PROCESSOR",10,"NO",null,0]
[205,"SIEMENS SITOP UPS 1600 POWER SUPPLY",10,"NO",null,0]
[206,"SIEMENS NEC CLASS 2 POWER SUPPLY",10,"NO",null,0]
[207,"SIEMENS 1214C CPU MODULE",10,"NO",null,0]
[208,"SIEMENS SM 1232 AQ 4x14 BIT ANALOGUE OUTPUT MODULE",10,"NO",null,0]
[209,"SIEMENS 7ME6920-1AA30-1AAO",10,"NO",null,0]
[210,"SIEMENS CTRANS1P7ML52211DB11",10,"NO",null,0]
[null,"HMI & Scada"]
[211,"HPE ProLiant DL325 Gen 10 AMD EPYC 7601 180W 1P 2T-16LR P408i-a Premium 10NVMe 2×1600W  SERVER",5,"NO",null,{"$f":"E223*C223","v":0}]
[212,"Alpha FX Video Wall Controller",5,"NO",null,0]
[213,"CINEMASSIVE CINEVIEW VIDEO WALL",5,"NO",null,0]
[214,"LOGIC SUPPLY TM600",5,"NO",null,0]
[215,"BeckHoff C9900-U330 HMI BACKUP POWER SUPPLY",70,"NO",null,0]
[216,"Beckhoff C9900-U33  HMI   UPS 24V 120m ohms                                                  ",70,"NO",null,0]
[217,"Beckhoff CP2219-0010 HMI 19'PCT v04  2.5\"320GB SATA (The exact type to be determined after the design of Opstats project as the HMI type may change)",20,"NO",null,0]
[218,"Beckhoff 19’’ Touch screen",60,"NO",null,0]
[219,"Beckhoff  industrial CPU for InTouch 2017 Run time (The exact type to be determined after the design of Opstats project as the HMI type may change)",60,"NO",null,0]
[220,"HMI HMIDT732 18-28V input power 15-inch display 1024 x 768 pixel XGA IP 67 protection Ethernet TCP/IP Multi touch analogue resistive outdoor installation",20,"NO",null,0]
[221,"HMIG3U MODULO PROCESADOR PREMIUM BOX GTU",30,"NO",null,0]
[222,"HMIDT732 PANTALLA 15'' XGA SMART DISPLAY GTU",3,"NO",null,0]
[223,"HMIG3U MODULO PROCESADOR PREMIUM BOX GTU",3,"NO",null,0]
[224,"BeckHoff C9900-U330 HMI BACKUP POWER SUPPLY",6,"NO",null,0]
[225,"Beckhoff CP2219-0010 HMI 19'PCT v04  2.5\"320GB SATA",6,"NO",null,0]
[226,"Beckhoff C9900-U33  HMI   UPS 24V 120m ohms                                                  ",6,"NO",null,0]
[227,"BECKHOFF CP2215-0010 HMI",15,"NO",null,0]
[228,"HMIGTO5310",15,"NO",null,0]
[229,"HMIGTO6310",15,"NO",null,0]
[230,"HMIGTO4310",15,"NO",null,0]
[231,"HMIDT542",15,"NO",null,0]
[232,"HMIDT642",15,"NO",null,0]
[233,"SCHNEIDER ELECTRIC XBTGT7340 15” COLOUR TOUCH PANEL TFY",2,"NO",null,0]
[234,"SCHNEIDER ELECTRIC 8B-2016-W34 VGA-TFT 10.4",10,"NO",null,0]
[235,"SCHNEIDER ELECTRIC 8B-2016-W455 VGA-TFT",10,"NO",null,0]
[null,"Industrial Communications"]
[236,"WEIDMULLER FBCON PA CG 8 WAY",10,"NO",null,{"$f":"E249*C249","v":0}]
[237,"WEIDMULLER FBCON DP M12 1 WAY",10,"NO",null,0]
[238,"WEIDMULLER FB CON PA CG/M12 8 WAY OVP",10,"NO",null,0]
[239,"PEPPERL +FUCHS HD2-FBPS-1,25.360 POWER SUPPLY PART NO:189516",15,"NO",null,0]
[240,"PEPPERL +FUCHS MBCB-FB-GT",15,"NO",null,0]
[241,"PEPPERL +FUCHS KLD2-PL-1.PA",15,"NO",null,0]
[242,"PEPPERL +FUCHS KFD2 BR-1.PA.93",15,"NO",null,0]
[243,"PEPPERL +FUCHS KFD2 HMM-16",15,"NO",null,0]
[244,"PEPPERL +FUCHS F1-DO-R-Y41610",15,"NO",null,0]
[245,"PROSOFT TECHNOLOGY RLX2-1FH24 E-E ANTENNA",15,"NO",null,0]
[246,"MOXA EDS-408A-MM-SC DISPLAY",20,"NO",null,0]
[247,"MOXA EDS-508A-MM-SC DISPLAY",20,"NO",null,0]
[248,"MOXA RS-232 TCC-100 CONVERTER",20,"NO",null,0]
[249,"Weidmuller FBConnector DP 1 way        Part No.: 8564350000",15,"NO",null,0]
[250,"Weidmuller FBConnector PA 8 way        Part No.: 8564300000",15,"NO",null,0]
[251,"Weidmuller POS-4P M12 M20 300mm   Part No.: 8425940000",20,"NO",null,0]
[252,"Weidmuller FBCon PA CG 8Way Limiter Part No.: 8714230000",15,"NO",null,0]
[253,"Hirschman OZD Profi 12M G12 Fibre Optic Module Profibus",20,"NO",null,0]
[254,"Fiber Optic Patch Leads (1m Long) Part No.: SC-TO-ST",60,"NO",null,0]
[255,"Fiber Optic Patch Leads (1m Long) Part No.: SC-TO-SC",60,"NO",null,0]
[256,"Ethernet Cable CAT6 Armored Part No.: CAT6",1000,"meters",null,0]
[257,"Prosoft 5204-DFNT-PDPMV1   ProLinx Profibus DPV1 Master",2,"NO",null,0]
[258,"Prosoft PTQ-PDPMV1  - (To be replaced by the Schneider  PRM module)",30,"NO",null,0]
[259,"Calog 9000S  Universal Programable Transmitter ",2,"NO",null,0]
[260,"Pepperl and Fuchs Profibus PA Part No.: KLD2-PL-1PA",30,"NO",null,0]
[261,"Pepperl+Fuchs HD2-FBPS-1.25.360 Fieldbus power supply Part No.: 189516",30,"NO",null,0]
[262,"Pepperl+Fuchs KFD2-BR-1.PA.1500 Profibus PA to DP converter Part No.:  277830",15,"NO",null,0]
[263,"Pepperl+Fuchs MB-FG-GTR1 FieldConnex   Part No.: 276874",30,"NO",null,0]
[264,"Pepperl+Fuchs NBB20-U1-UU Proximity switch  Part No.: 238884",15,"NO",null,0]
[265,"Pepperl+Fuchs TMT181L  PT100 - PA Converter Part No.: 206518",50,"NO",null,0]
[266,"Peppler+Fuchs Varikont NCN20+U1+U",10,"NO",null,0]
[267,"AB7028 AnyBus Communicator",30,"NO",null,0]
[268,"EDS-505A-MM-SC  Layer 2, 5 port managed Ethernet Switch EDS-505A-MM-SC",20,"NO",null,0]
[269,"EDS-508A-MM-SC Layer 2, 6(2 Fibre) port managed Ethernet Switch EDS-508A-MM-SC",15,"NO",null,0]
[270,"EDS-508A-SS-SC Layer 2, 6(2 Fibre) port managed Ethernet Switch EDS-508A-SS-SC ",20,"NO",null,0]
[271,"EDS-518E-MM-SC Layer 2, 14 port managed Ethernet Switch EDS-518E-MM-SC ",30,"NO",null,0]
[272,"EDS-82810G-4GTX Layer 3, Gigabit Modular managed Ethernet Switch EDS-82810G-4GTX",15,"NO",null,0]
[273,"Modbus TCP IP Converter Anybus Coverter",10,"NO",null,0]
[274,"EDS-619 Moxa Switch",10,"NO",null,0]
[275,"PA 003135 Profibus  Easy Connector",5,"NO",null,0]
[276,"TCS EGPA23F14F Schneider Communication Module Profibus Remote Master",10,"NO",null,0]
[277,"EGX 100/150 Ethernet Gateway Modbus to Ethernet Gateway ",20,"NO",null,0]
[278,"FTB 1DP16EPO Profibus IO Module Digital Input/Output Module",10,"NO",null,0]
[279,"IM-4TX Moxa Switch Module 4 Coper port module ",15,"NO",null,0]
[280,"IM-4MSC Moxa Switch Module 4 Fibre Port Module SC Connector",15,"NO",null,0]
[281,"EGX150 PASARELA ETHERNET LINK150",10,"NO",null,0]
[282,"EDS-G512E-8POESFP 12 Port Full Gigabit managed Ethernet Switch",5,"NO",null,0]
[283,"EDS-510E-3GTXSFP Managed Gigabit Ethernet Switch",5,"NO",null,0]
[284,"IKS-G6524A 24G part layer 2 full Gigabit managed Ethernet Switch",5,"NO",null,0]
[285,"Pepperl and Fuchs Profibus PA Part No.: KLD2-PL-1PA",10,"NO",null,0]
[286,"Pepperl+Fuchs HD2-FBPS-1.25.360 Fieldbus power supply Part No.: 189516",10,"NO",null,0]
[287,"Pepperl+Fuchs KFD2-BR-1.PA.1500 Profibus PA to DP converter Part No.:  277830",10,"NO",null,0]
[288,"STB NDP 2212 Standard Network interface Module for Profibus DP",10,"NO",null,0]
[289,"Schneider Electric PowerLogic EGX100MG",10,"NO",null,0]
[290,"MOXA EDS-508A-MM-SC",6,"NO",null,0]
[291,"MOXA EDS-611",3,"NO",null,0]
[292,"MOXA IM-4MSC",5,"NO",null,{"$f":"E305*C305","v":0}]
[293,"SCHNEIDER ELECTRIC EGX100MG ETHERNET GATEWAY",15,"NO",null,{"$f":"E306*C306","v":0}]
[294,"SCHNEIDER ELECTRIC EGX150 ETHERNET GATEWAY LINK 150","10","NO",null,0]
[295,"SCHNEIDER ELECTRIC TCSESUO83FNO INDUSRIAL ETHERNET",20,"NO",null,0]
[296,"SCHNEIDER ELECTRIC TCSESMO83F2CUO CONNEXIUM MANAGED SWITCH",25,"NO",null,0]
[null,"Telemetry"]
[297,"SCHNEIDER ELECTRIC TBUABR20-6000 ACCUTECH BR20 BASE RADIO",6,"NO",null,{"$f":"E311*C311","v":0}]
[298,"SCHNEIDER ELECTRIC TBUAAVFGPNOOA RADIO TRANSMITTER",6,"NO",null,0]
[299,"FLEXY E-WON FLX401_00/S MODULE 8DI-4AI-2DO",40,"NO",null,0]
[300,"FLEXY E-WON FBL3202_01/S 3G GSM MODEM",30,"NO",null,0]
[301,"FLEXY E-WON FLEXY 20200_00MA/S E-WON (ETHERNET&SERIAL)",50,"NO",null,0]
[302," E-WON FLEXY  205",50,"NO",null,0]
[303,"EWANT1A AERIAL",30,"NO",null,0]
[304,"SD-Card Ewon SD-card\n",100,"NO",null,0]
[305,"FLB3204 _00/S 4G MODEM",40,"NO",null,0]
[306,"EW-Netgate XG-7100 1U BASE PFSENSE+ SECURITY GATEWAY\n",5,"NO",null,0]
[307,"E520201  VPN server upto 100 suggested users\n",5,"NO",null,0]
[308,"PRODESIGN RTU",20,"NO",null,0]
[309,"PRODESIGN FXT009 SIERRA WIRELESS MODERM",30,"NO",null,0]
[310,"PRODESIGN 410-530 12/24V ISOLATED PSU",20,"NO",null,0]
[311,"PRODESIGN RS232/RS485 ISOLATOR",20,"NO",null,0]
[312,"PRODESIGN 392-355 MH ",20,"NO",null,0]
[313,"PRODESIGN TDCRLPU 151-110-155 LIGHTNING PROTECTOR",20,"NO",null,0]
[314,"PRODESIGN 420-1000 PROGRAMMABLE ISOLATED SIGNAL CONDITIONER",20,"NO",null,0]
[315,"PRODESIGN SD-50A-24 INPUT DC 12V(9.2-18V) 7A POWER SUPPLY",20,"NO",null,0]
[316,"PRO VISTA TECNOLOGY ISC1000 MINI ISC  SOLA REGULATOR",20,"NO",null,0]
[317,"WAGO 787-1662/006-1000 ELECTRIC CIRCUIT BREAKER",20,"NO",null,0]
[318,"750-362 Fieldbus Coupler ETHERNET; 3rd Generation",100,"NO",null,0]
[319,"WAGO 2787-2146",20,"NO",null,0]
[320,"WAGO ECO POWER 787-712 POWER SUPPLY",20,"NO",null,0]
[321,"WAGO 750-455",50,"NO",null,0]
[322,"WAGO 750-402",50,"NO",null,0]
[323,"WAGO 750-430",50,"NO",null,0]
[324,"750-352/040-000 FIELDBUS COUPLER ETHERNET 3RD GENERATION",50,"NO",null,0]
[325,"WAGO 753-110 PLUG",50,"NO",null,0]
[326,"WAGO 753- 455 4AI",50,"NO",null,0]
[327,"WAGO 750-602 POWER SUPPLY MODULE",50,"NO",null,0]
[328,"WAGO 753-402 4DI",50,"NO",null,0]
[329,"WAGO 857-423 ISOLATION AMPLIFIER CRRENT AND VOLTAGE INPUT SIGNAL 2XCURRENT OUTPUT SIGNAL",50,"NO",null,0]
[330,"WAGO 857-451 ",50,"NO",null,0]
[331,"WAGO 857-560",50,"NO",null,0]
[332,"WAGO 857-403",50,"NO",null,0]
[333,"WAGO 857-801",50,"NO",null,0]
[334,"WAGO 7500602",50,"NO",null,0]
[335," WAGO 210-722",50,"NO",null,0]
[336,"WAGO 750-923",50,"NO",null,0]
[337,"WAGO 221-412",50,"NO",null,0]
[338,"WAGO 221-415",50,"NO",null,0]
[339,"WAGO 221-413",50,"NO",null,0]
[340,"WAGO 750-921",50,"NO",null,0]
[341,"WAGO 859-408/000-005",40,"NO",null,0]
[342,"WAGO 859-408/000-006",40,"NO",null,0]
[343,"WAGO 750-600 END MODULE",100,"NO",null,0]
[344,"TERRA WAVE SOLUTION T24085P13606 PATCH ANTENNA",10,"NO",null,0]
[345,"TERRA WAVE SOLUTION TW-ART-MOUNT UNIVERSAL ARTICULATING MODULE",10,"NO",null,0]
[346,"Truteq Wireless Radio, Part No SPRi V.SMGR.FRG.1.0.0 GPRS/EDGE/HSPA ROUTER",3,"NO",null,0]
[null,"SUB-TOTAL",{"$nulls":3},{"$f":"SUM(F9:F360)","v":0}]
[]
[]
[]
[null,"Total for all  Deliverables",{"$f":"F361","v":0}]
[null,"Disbursements at 12% of Total for all Deliverables",{"$f":"C365*0.12","v":0}]
[null,"Transport Costs at 8%",{"$f":"C365*0.08","v":0}]
[null,"SUBTOTAL before VAT",{"$f":"SUM(C365:C367)","v":0}]
[null,"VAT (if applicable)",{"$f":"C368*0.15","v":0}]
[null,"FORM OF OFFER \n(for commercial evaluation purposes)",{"$f":"SUM(C368:C369)","v":0}]
[]
[null,"NOTE : Goods/services will be called-off as and when required by Rand Water after the award of the contract. Rand Water reserves the right not to acquire all the estimated quantities at once. Suppliers are therefore advised not to procure goods/services upfront and only procure upon the instruction of Rand Water."]

{"sheet":"GROUP 5 - ANALYTICAL EQUIPMENT","index":5,"n_rows":168,"n_cols":7,"rows_kept":168,"merged":[[1,3,1,6],[2,3,2,6],[3,3,3,6],[167,2,167,6]]}
[]
[null,null,"BID NUMBER","RW10392309/21"]
[null,null,"BID DESCRIPTION","SUPPLY & DELIVERY OF INSTRUMENTATION AND AUTOMATION EQUIPMENT SPARES"]
[null,null,"BIDDER NAME"]
[]
[]
[null,null,"DELIVERABLES (DESCRIPTION)","QTY (A)","UNIT OF MEASURE","RATE (B)","Total (A x B)"]
[]
[null,null,"ANALYTICAL/WATER QUALITY INSTRUMENTS"]
[null,null,"Wallace+Tiernan"]
[null,1,"Wallace+Tiernan Sensor; Part No.: UXA 86376 (0-10ppm)",20,"NO",null,{"$f":"F11*D11","v":0}]
[null,2,"Wallace+Tiernan Vacuum Switch; Part No.: AAB 6291-40Kg",10,"NO",null,0]
[null,3,"Wallace+Tiernan Rotameter; Part No.: AAB 2623-40Kg",10,"NO",null,0]
[null,4,"Wallace+Tiernan Clamping Screw; Part No.: W3T169846",10,"NO",null,0]
[null,5,"Wallace+Tiernan GSKT Seal; Part No.: W2T376757",10,"NO",null,0]
[null,6,"Wallace+Tiernan Shaft Seal V10K; Part No.: W2T635517",10,"NO",null,0]
[null,7,"Wallace+Tiernan Holder V-Notch; Part No.: W2T12072",10,"NO",null,0]
[null,8,"Wallace+Tiernan GSKT Seal; Part No.: W2T12130",10,"NO",null,0]
[null,9,"Wallace+Tiernan V-Notch Plug; Part No.: W3T171244",10,"NO",null,0]
[null,10,"Wallace+Tiernan FTG ORFC; Part No.: W2T12149",10,"NO",null,0]
[null,11,"Wallace+Tiernan Stem Plug; Part No.: W2T19250",10,"NO",null,0]
[null,12,"Wallace+Tiernan Vacuum Regulator; Part No.: W3T357496",10,"NO",null,0]
[null,13,"WALLANCE &TIERNAN SFCPC EVOQUA 230VAC 100-240V-50/60HZ 15W 42 CONTROLLER",15,"NO",null,0]
[null,14,"WALLANCE &TIERNAN DEPOLOX 5 PART W3T162565 SENSOR",15,"NO",null,0]
[null,15,"Wallace+Tiernan Heater; Part No.: W2T11756 ",10,"NO",null,0]
[null,16,"Wallace+Tiernan AAA 8167 GMS (4-20) Part No.: 231240/18",10,"NO",null,0]
[null,17,"HONEY WELL DO6F-1/2A CHLORINE ANALISER ( DEPOLOX4)",12,"NO",null,0]
[null,null,"Hach"]
[null,18,"HACH SC200 Controllers Part No.: LXV404.99.00502",20,"NO",null,{"$f":"F29*D29","v":0}]
[null,19,"HACH SC200 General purpose analyser Part No.: LXV404.99.00552",80,"NO",null,0]
[null,20,"HACH SC1000 Turbidity Meter; Part No.: LXV 445.99.10112",40,"NO",null,0]
[null,21,"HACH SC1000 Turbidity Meter; Part No.: LXV400.99.1E082",20,"NO",null,0]
[null,22,"HACH SC1000 Display; Part No.: LXV 402.99.00002",20,"NO",null,0]
[null,23,"HACH UltraTurb TU5300 Part No.: LXV445.99.10112",80,"NO",null,0]
[null,24,"HACH pH Probe Part No.: DPD1R1",40,"NO",null,0]
[null,25,"HACH Lamp Assembly 1720D/E Part No.: 1895000",20,"NO",null,0]
[null,26,"HACH Photocell Assembly 1720D Replacement Kit Part No.: 5218000",20,"NO",null,0]
[null,27,"HACH Circuit Board Assembly 1720E with Detector Part No.: 6012000",20,"NO",null,0]
[null,28,"HACH Turb Solution 4000NTU 1000ml Part No.:",10,"NO",null,0]
[null,29,"HACH Chlorine Analyzer CL17 Maintenance Kits Part No.: 5444300",20,"NO",null,0]
[null,30,"HACH SpecCheck Color STD DPD Part No.: 28933-00",100,"NO",null,0]
[null,31,"HACH CL17sc Colorimetric Chlorine Analyser with Pressure Regulator Installation Kit and Reagents for Free Chlorine Manufacturer HACH Part Number 8572900",3,"NO",null,0]
[null,32,"Digital Differential pH Sensor Manufacturer HACH Part Number DPD1R1",80,"NO",null,0]
[null,33,"Digital Contacting Conductivity Sensor for High Conductivity (k=5.0) with 3/4\" Kynar Compression Fitting Manufacturer HACH Part Number D3422D3",6,"NO",null,0]
[null,34,"TU5300sc Low Range Laser Turbidimeter with Flow Sensor, Automatic Cleaning, RFID, and System Check, ISO Version Manufacturer HACH Part Number LXV445.99.53122",12,"NO",null,0]
[null,35,"SC200 Universal Controller: 100-240 Vac with TWO DIGITAL SENSOR INPUTS and TWO 4-20mA Outputs Manufacturer HACH Part Number LXV404.99.00552",40,"NO",null,0]
[null,36,"SC1000 Probe Module Manufacturer HACH Part Number LXV400.99.10092",8,"NO",null,0]
[null,37,"SC1000 Multi-parameter Universal Controller Display Module Manufacturer HACH Part Number LXV402.99.11002",2,"NO",null,0]
[null,38,"SS7 Surface Scatter High Range Turbidity Meter Manufacturer HACH Part Number 2977200",2,"NO",null,0]
[null,39,"Digital Termination Box Manufacturer HACH Part Number 5867000",40,"NO",null,0]
[null,40,"HACH 1895000 TURBIDITY GLOBE",9,"NO",null,0]
[null,41,"HACH 4503400 TURBIDITY GLOBE",9,"NO",null,0]
[null,42,"HACH TU5300 PART NO: LXV445.99.00002",6,"NO",null,0]
[null,43,"HACH SC200 Controllers Part No.: LXV404.99.00502 1610CO162893",6,"NO",null,0]
[null,44,"HACH SC200 General purpose analyser Part No.: LXV404.99.00552",6,"NO",null,0]
[null,45,"HACH TUS300 SC (EPA) LXG445.99.1012 12V",6,"NO",null,0]
[null,46,"HACH SC100 LXV 40 1.52. 00002 09110C2338",6,"NO",null,0]
[null,47,"HACH FLOWFIT W C P A250 CPA-A00 90 DEG BAR",6,"NO",null,0]
[null,48,"HACH Chlorine Analyzer CL-17 Reagents Part No.: 2556900",100,"NO",null,0]
[null,null,"SWAN"]
[null,49,null,10,"NO",null,{"$f":"F61*D61","v":0}]
[null,50,"Swan Shurecon P  Conductivity Probe  Part No.: A-87.342.110",30,"NO",null,0]
[null,51,"Swan Swansensor Cable Sensor Cable and Screws  Part No.: A-88.131.120",30,"NO",null,0]
[null,52,"Swan Swansensor PT 1000  Temperature probe Part No.: A-87.030.200",30,"NO",null,0]
[null,53,"Swan Solicon4 AMI-2     Part No.:23.421.200     100-240VAC",10,"NO",null,0]
[null,54,"Swan  Flow Cell M-Flow 10-3PG   Part No.:4-83.416.330",20,"NO",null,0]
[null,55,"Yokogawa SC21C-AGP26  Combined pH Sensor non flow heavy duty",20,"NO",null,0]
[null,56,"pH Sensor SWAN AMI pH-Redox Manufacturer SWAN Part Number A.21.221.210 ",12,"NO",null,0]
[null,57,"Temperature Sensor SWAN AMI pH-Redox Manufacturer SWAN Part Number A.87.120.200",12,"NO",null,0]
[null,58,"Conductivity Sensor SWAN AMI SILICON4 Manufacturer SWAN Part Number A.23.421.200",12,"NO",null,0]
[null,59,"Controller/Transmitter AMI pH/Redox- Power Supply 100-240 Vac, 50/60Hz Manufacturer SWAN Part Number A-11.411.100",12,"NO",null,0]
[null,60,"Controller/Transmitter AMI Solicon 4 - Power Supply 100-240 Vac, 50/60Hz Manufacturer SWAN Part Number A-13.411.100",12,"NO",null,0]
[null,61,null,10,"NO",null,0]
[null,null,"ATI"]
[null,62,"ATI, Part Number: Q46-P-1-1-4-1,  pH Monitor",24,"NO",null,{"$f":"F75*D75","v":0}]
[null,63,"ATI, Part Number: 07-0092, 03-0029, pH Sensor with Cable",45,"NO",null,0]
[null,64,"ATI, Part Number: Q46-63-1-1-1-4-1-3,  Residual CL2 Analyser complete",30,"NO",null,0]
[null,65,"ATI, Part Number: Q46-62-1-1-1-4-1-3,  Free CL2 Analyser complete",30,"NO",null,0]
[null,66,"ATI, Part Number: 00-15-10,  Combined CL2 Sensor",30,"NO",null,0]
[null,67,"ATI, Part Number: 00-0066,  Free CL2 Sensor",30,"NO",null,0]
[null,68,"ATI, Part Number: 09-0010,  Residual CL2 Electrolyte",45,"NO",null,0]
[null,69,"ATI, Part Number: 09-0011,  Free CL2 Electrolyte",45,"NO",null,0]
[null,70,"ATI, Part Number: 05-0007,  Residual CL2 Membranes",150,"NO",null,0]
[null,71,"ATI, Part Number: 05-0005,  Free CL2 Membranes",150,"NO",null,0]
[null,72,"ATI, Part Number: 23-00018,  Residual CL2 Fuses",30,"NO",null,0]
[null,73,"ATI, Part Number: Q46/76-2-1-1-1-4,  Turbidity Analyser ",15,"NO",null,0]
[null,74,"ATI, Part Number: 63-0109,  Turbidity Sensor",15,"NO",null,0]
[null,75,"ATI, Part Number: Q46C2-1-3-4-4-1-1,  Cond Analyser-=",30,"NO",null,0]
[null,76,"ATI, Part Number: 07-0056,  2 Electrode Conductivity Sensor",45,"NO",null,0]
[null,null,"ENDRESS+HAUSER"]
[null,77,"ENDRESS+HAUSER PH METER",9,"NO",null,{"$f":"F91*D91","v":0}]
[null,78,"ENDRESS+HAUSER PROFIBUS TURBIDITY METER ",3,"NO",null,0]
[null,79,"ENDRESS+HAUSER DTI130 FLUITECTOR",3,"NO",null,0]
[null,80,"ENDRESS+HAUSER EA021020000 RELAY",0,"NO",null,0]
[null,81,"ENDRESS+HAUSER DTT31 FLOWSWITCHES",18,"NO",null,0]
[null,82,"ENDRESS+HAUSER TR 24-A42BXB300RTD PT100",3,"NO",null,0]
[null,83,"ENDRESS+HAUSER CPS11D-7BT21 LIQUID ANALYSIS SENSOR",3,"NO",null,0]
[null,84,"ENDRESS+HAUSER CPS11D-CIEI LIQUID ANALYSIS SENSOR",3,"NO",null,0]
[null,85,"ENDRESS+HAUSER TMT84-11K/115",12,"NO",null,0]
[null,null,"TPS"]
[null,86,"TPS BUFFER 4.01 PH BUFFER",50,"NO",null,{"$f":"F101*D101","v":0}]
[null,87,"TPS BUFFER 7.00 PH BUFFER",50,"NO",null,0]
[null,88,"TPS 122306 STANDARD SOLUTION CONDUCTIVITY",50,"NO",null,0]
[null,89,"TPS 11228 5M PH SENSOR CABLES",20,"NO",null,0]
[null,null,"YOKOGAWA"]
[null,90,"Yokogawa SC21C-AGP26  Combined pH Sensor non flow heavy duty",20,"NO",null,{"$f":"F106*D106","v":0}]
[null,null,"CHLORINATOR EQUIPMENT [Grundfos]"]
[null,91,"Grundfos Vacuum Regulator Maintenance Kits Part No.: 96688766; CL2/148/120Kg/H/FH; 553-1084",10,"NO",null,0]
[null,92,"Grundfos Regulators Maintenance Kits Part No.: 96688767",10,"NO",null,{"$f":"F109*D109","v":0}]
[null,93,"Grundfos Chlorinator Rotameter Part No.: 96680945",10,"NO",null,0]
[null,94,"Grundfos Differential Pressure Regulator Part No.: 96708603",10,"NO",null,0]
[null,95,"Grundfos Dosing Pump Model No.: DDI 6010AR PVC/V/GS-31B16F",10,"NO",null,0]
[null,96,"Grundfos Chlorine Leak Detectors Sensors 553-1011 Part No.: 91835823",100,"NO",null,0]
[null,97,"Grundfos Differential Regulator Part No.: 96708604",10,"NO",null,0]
[null,98,"Grundfos CONEX  DIS-G-P-CCA-X-W-G Chlorine Detector Type 307 Part No.:  96734178                           ",10,"NO",null,0]
[null,99,"Grundfos VGS-148 Chlorine Pressure Regulator Part No.: 96681286                                    ",10,"NO",null,0]
[null,100,"Grundfos Vacuum Regulator and attachments VGS148-120 Part No.:96681286",10,"NO",null,0]
[null,101,"Grundfos Smart Digital XL AR-PVC/V/C-F-31U3FG",10,"NO",null,0]
[null,102,"Grundfos Dosing Pump Maintenance Kit Part No.: 96688971",10,"NO",null,0]
[null,103,"Grundfos Dosing Pump DDI 150-4APF-PVC-L/V/G/-31B2B2F Part No.: 96717300",10,"NO",null,0]
[null,104,"Grundfos Dosing Pump Pressure Switch DDI 150-4PVC/FM Part No.: 96688971",10,"NO",null,0]
[null,105,"Grundfos Vacuum Pressure Gauge Part No.: 96680904",10,"NO",null,0]
[null,106,"Grundfos Vacuum Pressure Gauge Range: -10 – 0 Part No.: 96708738",10,"NO",null,0]
[null,107,"Grundfos Chlorinator GS145 Selector Switch",10,"NO",null,0]
[null,null,"CHLORINATOR EQUIPMENT [WALLACE & TIERNAN]"]
[null,108,"Wallace+Tiernan Sensor; Part No.: UXA 86376 (0-10ppm)",20,"NO",null,{"$f":"F126*D126","v":0}]
[null,109,"Wallace+Tiernan Vacuum Switch; Part No.: AAB 6291-40Kg",10,"NO",null,0]
[null,110,"Wallace+Tiernan Rotameter; Part No.: AAB 2623-40Kg",10,"NO",null,0]
[null,111,"Wallace+Tiernan Clamping Screw; Part No.: W3T169846",10,"NO",null,0]
[null,112,"Wallace+Tiernan GSKT Seal; Part No.: W2T376757",10,"NO",null,0]
[null,113,"Wallace+Tiernan Shaft Seal V10K; Part No.: W2T635517",10,"NO",null,0]
[null,114,"Wallace+Tiernan Holder V-Notch; Part No.: W2T12072",10,"NO",null,0]
[null,115,"Wallace+Tiernan GSKT Seal; Part No.: W2T12130",10,"NO",null,0]
[null,116,"Wallace+Tiernan V-Notch Plug; Part No.: W3T171244",10,"NO",null,0]
[null,117,"Wallace+Tiernan FTG ORFC; Part No.: W2T12149",10,"NO",null,0]
[null,118,"Wallace+Tiernan Stem Plug; Part No.: W2T19250",10,"NO",null,0]
[null,119,"Wallace+Tiernan Vacuum Regulator; Part No.: W3T357496",10,"NO",null,0]
[null,120,"Wallace+Tiernan Heater; Part No.: W2T11756 ",10,"NO",null,0]
[null,121,"Wallace+Tiernan AAA 8167 GMS (4-20) Part No.: 231240/18",10,"NO",null,0]
[null,122,"Level Switches for Chlorine plant, Model LS-7 Level switch, 20VA,120-240VAC",10,"NO",null,0]
[null,123,"Control board Evaporator E – 2000, W 3T163645",1,"NO",null,0]
[null,124,"VGS-148-70/W/17/17-S-2F-L-G, Vacuum regulator, VGS-148, PN: 96681284 Type 148, 070-10003, Full vacuum regulator for chlorine gas dosing up to max 70, kg/h. Vacuum output connection for PVC pipe DN40. inlet valve, 70 kg/h, chlorine, Indication manometer, type of contact: min. contact (closing unit), medium: chlorine connection material: PVC tube: PE-hose 8/11 labelling Grundfos connection set nominal width: DN25 connection type: R1\" standard parts 70-200KG/H, chlorine, 0.00 bar Material number: 96681284 4 68,248.00 272,992.00, 30 524 Liqufilt-200/G/L-R,G, Product Code: 96696435",2,"NO",null,0]
[null,125,"Chlorine Sensor Controller Siemens-Wallace and Tierman, GMS plus W3T158771, Electronic Module 230V. 50/60 Hz, 14VA, Sensor 1/11. 2xPT1000 .3xmA - out           ",5,"NO",null,0]
[null,126," Rotameter glass Chlorine-Kilograms per hour: 3 to 60, Man 329/565, Chlorine pounds per day: 150 to 3000, AAB 5427",20,"NO",null,0]
[null,null,"CHLORINATOR EQUIPMENT [WATSON MARLOW]"]
[null,127,"WATSON MARLOW 050.914N EMD 181129-202843 530 UN/REM IP66 DOSING PUMP ZA VIN 4BAR",30,"NO",null,{"$f":"F146*D146","v":0}]
[null,128,"WATSON MARLOW 520 REM 0-2 BAR 0-30 PSI ROTA",30,"NO",null,0]
[null,129,"WATSON MARLOW 520 REM 2-4 BAR 30-60 PSI ROTA",30,"NO",null,0]
[null,130,"WATSON MARLOW 520 REM 4-7 BAR 60-100 PSI ROTA",30,"NO",null,0]
[null,131,"WATSON MARLOW 050.716N.EHO 520 Bpn/REH PROFIBUS LOAD SURE DOSING PUMP S 313066 ZA VIN 4BAR",30,"NO",null,0]
[null,null,"MISCELENEOUS"]
[null,132,"Switch-Tek Mini Float Switch PVDF Part No.: LH25-5201",20,"NO",null,{"$f":"F152*D152","v":0}]
[null,133,"HACH Chlorine Analyzer CL 17; Part No.: 5440001",15,"NO",null,0]
[null,134,"Swan pH Probes Part No.: A-87.120.200",30,"NO",null,0]
[null,135,"2/2 way Solenoid Valve Manufacturer Burkert Part Number 5281-00-A13,0BBMSGM84-5-024/DC-08",12,"NO",null,0]
[null,136,"Timer Control Unit Manufacturer Burkert Part Number 1078-1-BBT/DC-B-1",12,"NO",null,0]
[null,137,"Rotameter 160– 1600 l/hr Manufacturer TEC Part Number PT-11/1600/DR",12,"NO",null,0]
[null,138,"DANUBE Q06-150112-00",9,"NO",null,0]
[null,null,"SUB-TOTAL",{"$nulls":3},{"$f":"SUM(#REF!)","v":{"$error":"#REF!"}}]
[]
[null,null,"Total for all  Deliverables",{"$f":"G157","v":0}]
[null,null,"Disbursements at 12% of Total for all Deliverables",{"$f":"D161*0.12","v":0}]
[null,null,"Transport Costs at 8%",{"$f":"D161*0.08","v":0}]
[null,null,"SUBTOTAL before VAT",{"$f":"SUM(D161:D163)","v":0}]
[null,null,"VAT (if applicable)",{"$f":"D164*0.15","v":0}]
[null,null,"FORM OF OFFER \n(for commercial evaluation purposes)",{"$f":"SUM(D164:D165)","v":0}]
[]
[null,null,"NOTE : Goods/services will be called-off as and when required by Rand Water after the award of the contract. Rand Water reserves the right not to acquire all the estimated quantities at once. Suppliers are therefore advised not to procure goods/services upfront and only procure upon the instruction of Rand Water."]